Body Name,Body,Service Area Categorisation,Service Division Categorisation,Responsible Unit,Expenses Type,Detailed Expenses Type,Payment Date,Transaction Number,Payment Amount,Supplier Type,Supplier Name,Supplier Id
Portsmouth City Council,PCC,Housing Revenue Account,"Rents, Rates, Taxes and Other Charges","Housing, Neighbourhood and Building Services",Premises-Related Expenditure,Rates,26-Nov-21,6541413,124,OTHER LOCAL AUTHORITY,HAVANT BOROUGH COUNCIL,300000020457057
Portsmouth City Council,PCC,Housing Revenue Account,"Rents, Rates, Taxes and Other Charges","Housing, Neighbourhood and Building Services",Premises-Related Expenditure,Rates,26-Nov-21,6541413,124,OTHER LOCAL AUTHORITY,HAVANT BOROUGH COUNCIL,300000020457057
Portsmouth City Council,PCC,Housing Revenue Account,"Rents, Rates, Taxes and Other Charges","Housing, Neighbourhood and Building Services",Premises-Related Expenditure,Rates,26-Nov-21,6541413,124,OTHER LOCAL AUTHORITY,HAVANT BOROUGH COUNCIL,300000020457057
Portsmouth City Council,PCC,Housing Revenue Account,"Rents, Rates, Taxes and Other Charges","Housing, Neighbourhood and Building Services",Premises-Related Expenditure,Rates,26-Nov-21,6541413,124,OTHER LOCAL AUTHORITY,HAVANT BOROUGH COUNCIL,300000020457057
Portsmouth City Council,PCC,Housing Revenue Account,"Rents, Rates, Taxes and Other Charges","Housing, Neighbourhood and Building Services",Premises-Related Expenditure,Rates,26-Nov-21,6541413,124,OTHER LOCAL AUTHORITY,HAVANT BOROUGH COUNCIL,300000020457057
Portsmouth City Council,PCC,Housing Revenue Account,"Rents, Rates, Taxes and Other Charges","Housing, Neighbourhood and Building Services",Premises-Related Expenditure,Rates,26-Nov-21,6541413,124,OTHER LOCAL AUTHORITY,HAVANT BOROUGH COUNCIL,300000020457057
Portsmouth City Council,PCC,Housing Revenue Account,"Rents, Rates, Taxes and Other Charges","Housing, Neighbourhood and Building Services",Premises-Related Expenditure,Rates,26-Nov-21,6541413,124,OTHER LOCAL AUTHORITY,HAVANT BOROUGH COUNCIL,300000020457057
Portsmouth City Council,PCC,Housing Revenue Account,"Rents, Rates, Taxes and Other Charges","Housing, Neighbourhood and Building Services",Premises-Related Expenditure,Rates,26-Nov-21,6541413,124,OTHER LOCAL AUTHORITY,HAVANT BOROUGH COUNCIL,300000020457057
Portsmouth City Council,PCC,Housing Revenue Account,"Rents, Rates, Taxes and Other Charges","Housing, Neighbourhood and Building Services",Premises-Related Expenditure,Rates,26-Nov-21,6541413,-124,OTHER LOCAL AUTHORITY,HAVANT BOROUGH COUNCIL,300000020457057
Portsmouth City Council,PCC,Housing Revenue Account,"Rents, Rates, Taxes and Other Charges","Housing, Neighbourhood and Building Services",Premises-Related Expenditure,Rates,26-Nov-21,6541413,124,OTHER LOCAL AUTHORITY,HAVANT BOROUGH COUNCIL,300000020457057
Portsmouth City Council,PCC,Housing Revenue Account,"Rents, Rates, Taxes and Other Charges","Housing, Neighbourhood and Building Services",Premises-Related Expenditure,Rates,26-Nov-21,6541413,248,OTHER LOCAL AUTHORITY,HAVANT BOROUGH COUNCIL,300000020457057
Portsmouth City Council,PCC,Housing Revenue Account,"Rents, Rates, Taxes and Other Charges","Housing, Neighbourhood and Building Services",Premises-Related Expenditure,Rates,26-Nov-21,6541413,76,OTHER LOCAL AUTHORITY,HAVANT BOROUGH COUNCIL,300000020457057
Portsmouth City Council,PCC,Housing Revenue Account,"Rents, Rates, Taxes and Other Charges","Housing, Neighbourhood and Building Services",Premises-Related Expenditure,Rates,26-Nov-21,6541413,124,OTHER LOCAL AUTHORITY,HAVANT BOROUGH COUNCIL,300000020457057
Portsmouth City Council,PCC,Housing Revenue Account,"Rents, Rates, Taxes and Other Charges","Housing, Neighbourhood and Building Services",Premises-Related Expenditure,Rates,26-Nov-21,6541413,124,OTHER LOCAL AUTHORITY,HAVANT BOROUGH COUNCIL,300000020457057
Portsmouth City Council,PCC,Housing Revenue Account,"Rents, Rates, Taxes and Other Charges","Housing, Neighbourhood and Building Services",Premises-Related Expenditure,Rates,26-Nov-21,6541413,124,OTHER LOCAL AUTHORITY,HAVANT BOROUGH COUNCIL,300000020457057
Portsmouth City Council,PCC,Housing Revenue Account,"Rents, Rates, Taxes and Other Charges","Housing, Neighbourhood and Building Services",Premises-Related Expenditure,Rates,26-Nov-21,6541413,124,OTHER LOCAL AUTHORITY,HAVANT BOROUGH COUNCIL,300000020457057
Portsmouth City Council,PCC,Housing Revenue Account,Special Services,"Housing, Neighbourhood and Building Services",Premises-Related Expenditure,Rates,26-Nov-21,6541413,394,OTHER LOCAL AUTHORITY,HAVANT BOROUGH COUNCIL,300000020457057
Portsmouth City Council,PCC,Housing Revenue Account,"Rents, Rates, Taxes and Other Charges","Housing, Neighbourhood and Building Services",Premises-Related Expenditure,Rates,25-Nov-21,6541133,124,OTHER LOCAL AUTHORITY,HAVANT BOROUGH COUNCIL,300000020457057
Portsmouth City Council,PCC,Housing Revenue Account,Supervision and Management,"Housing, Neighbourhood and Building Services",Premises-Related Expenditure,Rates,26-Nov-21,6541413,"3,174.00",OTHER LOCAL AUTHORITY,HAVANT BOROUGH COUNCIL,300000020457057
Portsmouth City Council,PCC,Housing Revenue Account,Supervision and Management,"Housing, Neighbourhood and Building Services",Premises-Related Expenditure,Rates,26-Nov-21,6541413,"1,198.00",OTHER LOCAL AUTHORITY,HAVANT BOROUGH COUNCIL,300000020457057
Portsmouth City Council,PCC,Housing Revenue Account,"Rents, Rates, Taxes and Other Charges","Housing, Neighbourhood and Building Services",Premises-Related Expenditure,Rates,25-Nov-21,6541133,120,OTHER LOCAL AUTHORITY,HAVANT BOROUGH COUNCIL,300000020457057
Portsmouth City Council,PCC,Housing Revenue Account,Special Services,"Housing, Neighbourhood and Building Services",Premises-Related Expenditure,Rates,26-Nov-21,6541413,254,OTHER LOCAL AUTHORITY,HAVANT BOROUGH COUNCIL,300000020457057
Portsmouth City Council,PCC,Housing Revenue Account,Special Services,"Housing, Neighbourhood and Building Services",Premises-Related Expenditure,Rates,25-Nov-21,6541133,182,OTHER LOCAL AUTHORITY,HAVANT BOROUGH COUNCIL,300000020457057
Portsmouth City Council,PCC,Costs below Net Cost of Services,Trading,Regeneration,Premises-Related Expenditure,Rates,12-Nov-21,6538739,137,SUPPLIER,MANCHESTER CITY COUNCIL,300000112662644
Portsmouth City Council,PCC,Costs below Net Cost of Services,Trading,Regeneration,Premises-Related Expenditure,Rates,12-Nov-21,6538739,137,SUPPLIER,MANCHESTER CITY COUNCIL,300000112662644
Portsmouth City Council,PCC,Costs below Net Cost of Services,Trading,Regeneration,Premises-Related Expenditure,Rates,12-Nov-21,6538739,137,SUPPLIER,MANCHESTER CITY COUNCIL,300000112662644
Portsmouth City Council,PCC,Costs below Net Cost of Services,Trading,Regeneration,Premises-Related Expenditure,Rates,12-Nov-21,6538739,137,SUPPLIER,MANCHESTER CITY COUNCIL,300000112662644
Portsmouth City Council,PCC,Costs below Net Cost of Services,Trading,Regeneration,Premises-Related Expenditure,Rates,12-Nov-21,6538739,274,SUPPLIER,MANCHESTER CITY COUNCIL,300000112662644
Portsmouth City Council,PCC,Housing Revenue Account,"Rents, Rates, Taxes and Other Charges","Housing, Neighbourhood and Building Services",Premises-Related Expenditure,Rates,25-Nov-21,6541133,119,OTHER LOCAL AUTHORITY,HAVANT BOROUGH COUNCIL,300000020457057
Portsmouth City Council,PCC,Costs below Net Cost of Services,Trading,Regeneration,Premises-Related Expenditure,Rates,12-Nov-21,6538739,409,SUPPLIER,MANCHESTER CITY COUNCIL,300000112662644
Portsmouth City Council,PCC,Housing Revenue Account,"Rents, Rates, Taxes and Other Charges","Housing, Neighbourhood and Building Services",Premises-Related Expenditure,Rates,25-Nov-21,6541133,124,OTHER LOCAL AUTHORITY,HAVANT BOROUGH COUNCIL,300000020457057
Portsmouth City Council,PCC,Housing Revenue Account,"Rents, Rates, Taxes and Other Charges","Housing, Neighbourhood and Building Services",Premises-Related Expenditure,Rates,25-Nov-21,6541133,228,OTHER LOCAL AUTHORITY,HAVANT BOROUGH COUNCIL,300000020457057
Portsmouth City Council,PCC,Housing Revenue Account,"Rents, Rates, Taxes and Other Charges","Housing, Neighbourhood and Building Services",Premises-Related Expenditure,Rates,25-Nov-21,6541133,113,OTHER LOCAL AUTHORITY,HAVANT BOROUGH COUNCIL,300000020457057
Portsmouth City Council,PCC,Housing Revenue Account,"Rents, Rates, Taxes and Other Charges","Housing, Neighbourhood and Building Services",Premises-Related Expenditure,Rates,25-Nov-21,6541133,124,OTHER LOCAL AUTHORITY,HAVANT BOROUGH COUNCIL,300000020457057
Portsmouth City Council,PCC,Housing Revenue Account,"Rents, Rates, Taxes and Other Charges","Housing, Neighbourhood and Building Services",Premises-Related Expenditure,Rates,25-Nov-21,6541133,124,OTHER LOCAL AUTHORITY,HAVANT BOROUGH COUNCIL,300000020457057
Portsmouth City Council,PCC,Housing Revenue Account,"Rents, Rates, Taxes and Other Charges","Housing, Neighbourhood and Building Services",Premises-Related Expenditure,Rates,25-Nov-21,6541133,120,OTHER LOCAL AUTHORITY,HAVANT BOROUGH COUNCIL,300000020457057
Portsmouth City Council,PCC,Housing Revenue Account,"Rents, Rates, Taxes and Other Charges","Housing, Neighbourhood and Building Services",Premises-Related Expenditure,Rates,25-Nov-21,6541133,126,OTHER LOCAL AUTHORITY,HAVANT BOROUGH COUNCIL,300000020457057
Portsmouth City Council,PCC,Housing Revenue Account,"Rents, Rates, Taxes and Other Charges","Housing, Neighbourhood and Building Services",Premises-Related Expenditure,Rates,25-Nov-21,6541133,128,OTHER LOCAL AUTHORITY,HAVANT BOROUGH COUNCIL,300000020457057
Portsmouth City Council,PCC,Housing Revenue Account,"Rents, Rates, Taxes and Other Charges","Housing, Neighbourhood and Building Services",Premises-Related Expenditure,Rates,25-Nov-21,6541133,110,OTHER LOCAL AUTHORITY,HAVANT BOROUGH COUNCIL,300000020457057
Portsmouth City Council,PCC,Housing Services,Homelessness,"Housing, Neighbourhood and Building Services",Premises-Related Expenditure,Rents,01-Nov-21,6536572,"6,000.00",SUPPLIER,K H PROPERTY INVESTMENT LIMITED,300000020467836
Portsmouth City Council,PCC,Housing Revenue Account,"Rents, Rates, Taxes and Other Charges","Housing, Neighbourhood and Building Services",Premises-Related Expenditure,Rates,25-Nov-21,6541133,131,OTHER LOCAL AUTHORITY,HAVANT BOROUGH COUNCIL,300000020457057
Portsmouth City Council,PCC,Housing Revenue Account,"Rents, Rates, Taxes and Other Charges","Housing, Neighbourhood and Building Services",Premises-Related Expenditure,Rates,25-Nov-21,6541133,112,OTHER LOCAL AUTHORITY,HAVANT BOROUGH COUNCIL,300000020457057
Portsmouth City Council,PCC,Children's and Education Services,Special Schools,Children's Services and Education,Third Party Payments,Other establishments,25-Nov-21,6541218,"169,369.76",SUPPLIER,SOLENT ACADEMIES TRUST,300000020477417
Portsmouth City Council,PCC,Children's and Education Services,Special Schools,Children's Services and Education,Third Party Payments,Other establishments,25-Nov-21,6541218,"25,273.20",SUPPLIER,SOLENT ACADEMIES TRUST,300000020477417
Portsmouth City Council,PCC,Children's and Education Services,Special Schools,Children's Services and Education,Third Party Payments,Other establishments,25-Nov-21,6541218,"17,266.64",SUPPLIER,SOLENT ACADEMIES TRUST,300000020477417
Portsmouth City Council,PCC,Children's and Education Services,Special Schools,Children's Services and Education,Third Party Payments,Other establishments,26-Nov-21,6541403,"189,943.36",SUPPLIER,SOLENT ACADEMIES TRUST,300000020477417
Portsmouth City Council,PCC,Children's and Education Services,Special Schools,Children's Services and Education,Third Party Payments,Other establishments,26-Nov-21,6541403,"24,425.60",SUPPLIER,SOLENT ACADEMIES TRUST,300000020477417
Portsmouth City Council,PCC,Children's and Education Services,Special Schools,Children's Services and Education,Third Party Payments,Other establishments,26-Nov-21,6541403,"15,600.00",SUPPLIER,SOLENT ACADEMIES TRUST,300000020477417
Portsmouth City Council,PCC,Children's and Education Services,Special Schools,Children's Services and Education,Third Party Payments,Other establishments,25-Nov-21,6541220,"86,635.28",SUPPLIER,SOLENT ACADEMIES TRUST,300000020477417
Portsmouth City Council,PCC,Children's and Education Services,Special Schools,Children's Services and Education,Third Party Payments,Other establishments,25-Nov-21,6541220,"3,118.00",SUPPLIER,SOLENT ACADEMIES TRUST,300000020477417
Portsmouth City Council,PCC,Children's and Education Services,Special Schools,Children's Services and Education,Third Party Payments,Other establishments,25-Nov-21,6541220,"3,666.64",SUPPLIER,SOLENT ACADEMIES TRUST,300000020477417
Portsmouth City Council,PCC,Children's and Education Services,Management and Support Services,Children's Services and Education,Third Party Payments,Other establishments,25-Nov-21,6541219,"-27,374.36",SUPPLIER,THE DELTA EDUCATION TRUST,300000020481637
Portsmouth City Council,PCC,Children's and Education Services,Special Schools,Children's Services and Education,Third Party Payments,Other establishments,25-Nov-21,6541219,"-12,847.54",SUPPLIER,THE DELTA EDUCATION TRUST,300000020481637
Portsmouth City Council,PCC,Children's and Education Services,Special Schools,Children's Services and Education,Third Party Payments,Other establishments,25-Nov-21,6541219,"-1,572.03",SUPPLIER,THE DELTA EDUCATION TRUST,300000020481637
Portsmouth City Council,PCC,Children's and Education Services,Special Schools,Children's Services and Education,Third Party Payments,Other establishments,25-Nov-21,6541219,"12,847.54",SUPPLIER,THE DELTA EDUCATION TRUST,300000020481637
Portsmouth City Council,PCC,Children's and Education Services,Special Schools,Children's Services and Education,Third Party Payments,Other establishments,25-Nov-21,6541219,"112,474.00",SUPPLIER,THE DELTA EDUCATION TRUST,300000020481637
Portsmouth City Council,PCC,Children's and Education Services,Management and Support Services,Children's Services and Education,Third Party Payments,Other establishments,25-Nov-21,6541219,"19,040.00",SUPPLIER,THE DELTA EDUCATION TRUST,300000020481637
Portsmouth City Council,PCC,Children's and Education Services,Special Schools,Children's Services and Education,Third Party Payments,Other establishments,25-Nov-21,6541219,"10,569.86",SUPPLIER,THE DELTA EDUCATION TRUST,300000020481637
Portsmouth City Council,PCC,Children's and Education Services,Special Schools,Children's Services and Education,Third Party Payments,Other establishments,25-Nov-21,6541219,"6,666.71",SUPPLIER,THE DELTA EDUCATION TRUST,300000020481637
Portsmouth City Council,PCC,Children's and Education Services,Management and Support Services,Children's Services and Education,Third Party Payments,Other establishments,25-Nov-21,6541219,"4,800.00",SUPPLIER,THE DELTA EDUCATION TRUST,300000020481637
Portsmouth City Council,PCC,Children's and Education Services,Management and Support Services,Children's Services and Education,Third Party Payments,Other establishments,25-Nov-21,6541219,"52,800.00",SUPPLIER,THE DELTA EDUCATION TRUST,300000020481637
Portsmouth City Council,PCC,Housing Revenue Account,"Rents, Rates, Taxes and Other Charges","Housing, Neighbourhood and Building Services",Premises-Related Expenditure,Rates,25-Nov-21,6541133,126,OTHER LOCAL AUTHORITY,HAVANT BOROUGH COUNCIL,300000020457057
Portsmouth City Council,PCC,Housing Revenue Account,"Rents, Rates, Taxes and Other Charges","Housing, Neighbourhood and Building Services",Premises-Related Expenditure,Rates,25-Nov-21,6541133,177,OTHER LOCAL AUTHORITY,HAVANT BOROUGH COUNCIL,300000020457057
Portsmouth City Council,PCC,Housing Revenue Account,"Rents, Rates, Taxes and Other Charges","Housing, Neighbourhood and Building Services",Premises-Related Expenditure,Rates,25-Nov-21,6541133,129,OTHER LOCAL AUTHORITY,HAVANT BOROUGH COUNCIL,300000020457057
Portsmouth City Council,PCC,Housing Revenue Account,"Rents, Rates, Taxes and Other Charges","Housing, Neighbourhood and Building Services",Premises-Related Expenditure,Rates,25-Nov-21,6541133,122,OTHER LOCAL AUTHORITY,HAVANT BOROUGH COUNCIL,300000020457057
Portsmouth City Council,PCC,Housing Revenue Account,"Rents, Rates, Taxes and Other Charges","Housing, Neighbourhood and Building Services",Premises-Related Expenditure,Rates,25-Nov-21,6541133,119,OTHER LOCAL AUTHORITY,HAVANT BOROUGH COUNCIL,300000020457057
Portsmouth City Council,PCC,Housing Revenue Account,"Rents, Rates, Taxes and Other Charges","Housing, Neighbourhood and Building Services",Premises-Related Expenditure,Rates,25-Nov-21,6541133,124,OTHER LOCAL AUTHORITY,HAVANT BOROUGH COUNCIL,300000020457057
Portsmouth City Council,PCC,Housing Revenue Account,"Rents, Rates, Taxes and Other Charges","Housing, Neighbourhood and Building Services",Premises-Related Expenditure,Rates,25-Nov-21,6541133,129,OTHER LOCAL AUTHORITY,HAVANT BOROUGH COUNCIL,300000020457057
Portsmouth City Council,PCC,Housing Revenue Account,"Rents, Rates, Taxes and Other Charges","Housing, Neighbourhood and Building Services",Premises-Related Expenditure,Rates,25-Nov-21,6541133,125,OTHER LOCAL AUTHORITY,HAVANT BOROUGH COUNCIL,300000020457057
Portsmouth City Council,PCC,Housing Revenue Account,"Rents, Rates, Taxes and Other Charges","Housing, Neighbourhood and Building Services",Premises-Related Expenditure,Rates,25-Nov-21,6541133,167,OTHER LOCAL AUTHORITY,HAVANT BOROUGH COUNCIL,300000020457057
Portsmouth City Council,PCC,Children's and Education Services,Children Looked After,Children's Services and Education,Third Party Payments,Other establishments,19-Nov-21,6540050,-101.72,SUPPLIER,ACORN CARE AND EDUCATION LTD,300000020481370
Portsmouth City Council,PCC,Children's and Education Services,Children Looked After,Children's Services and Education,Third Party Payments,Other establishments,19-Nov-21,6540050,325.71,SUPPLIER,ACORN CARE AND EDUCATION LTD,300000020481370
Portsmouth City Council,PCC,Children's and Education Services,Children Looked After,Children's Services and Education,Third Party Payments,Other establishments,19-Nov-21,6540050,"3,040.00",SUPPLIER,ACORN CARE AND EDUCATION LTD,300000020481370
Portsmouth City Council,PCC,Housing Revenue Account,"Rents, Rates, Taxes and Other Charges","Housing, Neighbourhood and Building Services",Premises-Related Expenditure,Rates,25-Nov-21,6541133,136,OTHER LOCAL AUTHORITY,HAVANT BOROUGH COUNCIL,300000020457057
Portsmouth City Council,PCC,Children's and Education Services,Children Looked After,Children's Services and Education,Premises-Related Expenditure,Rents,02-Nov-21,6536722,670,SUPPLIER,SKIPTON BUILDING SOCIETY,300000020462557
Portsmouth City Council,PCC,Adult Social Care,Physical Support Older People (85+),Adult Services,Third Party Payments,Other establishments,02-Nov-21,6536607,"1,456.00",SUPPLIER,ABICARE SERVICES LTD,300000020470310
Portsmouth City Council,PCC,Children's and Education Services,Safeguarding Children and Young Peoples Services,Children's Services and Education,Third Party Payments,Other establishments,15-Nov-21,6539067,-969.15,SUPPLIER,FOSTERING SOLUTIONS,300000009793967
Portsmouth City Council,PCC,Housing Revenue Account,"Rents, Rates, Taxes and Other Charges","Housing, Neighbourhood and Building Services",Premises-Related Expenditure,Rates,25-Nov-21,6541133,135,OTHER LOCAL AUTHORITY,HAVANT BOROUGH COUNCIL,300000020457057
Portsmouth City Council,PCC,Children's and Education Services,Other Education and Community Budget,Children's Services and Education,Third Party Payments,Other establishments,01-Nov-21,6536559,"6,490.00",SUPPLIER,PREPAID FINANCIAL SERVICES,300000020477745
Portsmouth City Council,PCC,Children's and Education Services,Safeguarding Children and Young Peoples Services,Children's Services and Education,Third Party Payments,Other establishments,01-Nov-21,6536588,413.72,SUPPLIER,COMPASS FOSTERING LIMITED,300000020462668
Portsmouth City Council,PCC,Children's and Education Services,Safeguarding Children and Young Peoples Services,Children's Services and Education,Third Party Payments,Other establishments,01-Nov-21,6536588,517.15,SUPPLIER,COMPASS FOSTERING LIMITED,300000020462668
Portsmouth City Council,PCC,Children's and Education Services,Safeguarding Children and Young Peoples Services,Children's Services and Education,Third Party Payments,Other establishments,01-Nov-21,6536588,"2,172.03",SUPPLIER,COMPASS FOSTERING LIMITED,300000020462668
Portsmouth City Council,PCC,Children's and Education Services,Children Looked After,Children's Services and Education,Third Party Payments,Other establishments,01-Nov-21,6536560,110.61,SUPPLIER,THE CHILDRENS FAMILY TRUST,300000020479545
Portsmouth City Council,PCC,Children's and Education Services,Children Looked After,Children's Services and Education,Third Party Payments,Other establishments,01-Nov-21,6536560,221.22,SUPPLIER,THE CHILDRENS FAMILY TRUST,300000020479545
Portsmouth City Council,PCC,Children's and Education Services,Children Looked After,Children's Services and Education,Third Party Payments,Other establishments,01-Nov-21,6536560,"3,097.08",SUPPLIER,THE CHILDRENS FAMILY TRUST,300000020479545
Portsmouth City Council,PCC,Children's and Education Services,Children Looked After,Children's Services and Education,Third Party Payments,Other establishments,01-Nov-21,6536560,-0.04,SUPPLIER,THE CHILDRENS FAMILY TRUST,300000020479545
Portsmouth City Council,PCC,Children's and Education Services,Children Looked After,Children's Services and Education,Third Party Payments,Other establishments,01-Nov-21,6536560,107.81,SUPPLIER,THE CHILDRENS FAMILY TRUST,300000020479545
Portsmouth City Council,PCC,Children's and Education Services,Children Looked After,Children's Services and Education,Third Party Payments,Other establishments,01-Nov-21,6536560,215.62,SUPPLIER,THE CHILDRENS FAMILY TRUST,300000020479545
Portsmouth City Council,PCC,Children's and Education Services,Children Looked After,Children's Services and Education,Third Party Payments,Other establishments,01-Nov-21,6536560,"3,018.72",SUPPLIER,THE CHILDRENS FAMILY TRUST,300000020479545
Portsmouth City Council,PCC,Children's and Education Services,Children Looked After,Children's Services and Education,Third Party Payments,Other establishments,01-Nov-21,6536560,-0.04,SUPPLIER,THE CHILDRENS FAMILY TRUST,300000020479545
Portsmouth City Council,PCC,Children's and Education Services,Children Looked After,Children's Services and Education,Third Party Payments,Other establishments,01-Nov-21,6536560,110.61,SUPPLIER,THE CHILDRENS FAMILY TRUST,300000020479545
Portsmouth City Council,PCC,Children's and Education Services,Children Looked After,Children's Services and Education,Third Party Payments,Other establishments,01-Nov-21,6536560,221.22,SUPPLIER,THE CHILDRENS FAMILY TRUST,300000020479545
Portsmouth City Council,PCC,Children's and Education Services,Children Looked After,Children's Services and Education,Third Party Payments,Other establishments,01-Nov-21,6536560,"3,097.12",SUPPLIER,THE CHILDRENS FAMILY TRUST,300000020479545
Portsmouth City Council,PCC,Children's and Education Services,Children Looked After,Children's Services and Education,Third Party Payments,Other establishments,01-Nov-21,6536560,109.5,SUPPLIER,THE CHILDRENS FAMILY TRUST,300000020479545
Portsmouth City Council,PCC,Children's and Education Services,Children Looked After,Children's Services and Education,Third Party Payments,Other establishments,01-Nov-21,6536560,219,SUPPLIER,THE CHILDRENS FAMILY TRUST,300000020479545
Portsmouth City Council,PCC,Children's and Education Services,Children Looked After,Children's Services and Education,Third Party Payments,Other establishments,01-Nov-21,6536560,"3,066.00",SUPPLIER,THE CHILDRENS FAMILY TRUST,300000020479545
Portsmouth City Council,PCC,Children's and Education Services,Children Looked After,Children's Services and Education,Third Party Payments,Other establishments,02-Nov-21,6536623,-0.05,SUPPLIER,COMPASS FOSTERING LIMITED,300000020462668
Portsmouth City Council,PCC,Children's and Education Services,Children Looked After,Children's Services and Education,Third Party Payments,Other establishments,02-Nov-21,6536623,490.85,SUPPLIER,COMPASS FOSTERING LIMITED,300000020462668
Portsmouth City Council,PCC,Children's and Education Services,Children Looked After,Children's Services and Education,Third Party Payments,Other establishments,02-Nov-21,6536623,613.56,SUPPLIER,COMPASS FOSTERING LIMITED,300000020462668
Portsmouth City Council,PCC,Children's and Education Services,Children Looked After,Children's Services and Education,Third Party Payments,Other establishments,02-Nov-21,6536623,"2,576.94",SUPPLIER,COMPASS FOSTERING LIMITED,300000020462668
Portsmouth City Council,PCC,Children's and Education Services,Safeguarding Children and Young Peoples Services,Children's Services and Education,Third Party Payments,Other establishments,02-Nov-21,6536623,231.16,SUPPLIER,COMPASS FOSTERING LIMITED,300000020462668
Portsmouth City Council,PCC,Children's and Education Services,Safeguarding Children and Young Peoples Services,Children's Services and Education,Third Party Payments,Other establishments,02-Nov-21,6536623,288.95,SUPPLIER,COMPASS FOSTERING LIMITED,300000020462668
Portsmouth City Council,PCC,Children's and Education Services,Safeguarding Children and Young Peoples Services,Children's Services and Education,Third Party Payments,Other establishments,02-Nov-21,6536623,"1,213.59",SUPPLIER,COMPASS FOSTERING LIMITED,300000020462668
Portsmouth City Council,PCC,Children's and Education Services,Family Support Services,Children's Services and Education,Third Party Payments,Other establishments,02-Nov-21,6536703,9.5,SUPPLIER,AQUA CARS LIMITED,300000019988490
Portsmouth City Council,PCC,Children's and Education Services,Children Looked After,Children's Services and Education,Third Party Payments,Other establishments,03-Nov-21,6536883,423.72,SUPPLIER,RAINBOW FOSTERING,300000020482345
Portsmouth City Council,PCC,Children's and Education Services,Children Looked After,Children's Services and Education,Third Party Payments,Other establishments,03-Nov-21,6536883,529.65,SUPPLIER,RAINBOW FOSTERING,300000020482345
Portsmouth City Council,PCC,Children's and Education Services,Children Looked After,Children's Services and Education,Third Party Payments,Other establishments,03-Nov-21,6536883,"2,224.53",SUPPLIER,RAINBOW FOSTERING,300000020482345
Portsmouth City Council,PCC,Children's and Education Services,Children Looked After,Children's Services and Education,Third Party Payments,Other establishments,03-Nov-21,6536883,0.01,SUPPLIER,RAINBOW FOSTERING,300000020482345
Portsmouth City Council,PCC,Children's and Education Services,Children Looked After,Children's Services and Education,Third Party Payments,Other establishments,03-Nov-21,6536883,505.71,SUPPLIER,RAINBOW FOSTERING,300000020482345
Portsmouth City Council,PCC,Children's and Education Services,Children Looked After,Children's Services and Education,Third Party Payments,Other establishments,03-Nov-21,6536883,632.14,SUPPLIER,RAINBOW FOSTERING,300000020482345
Portsmouth City Council,PCC,Children's and Education Services,Children Looked After,Children's Services and Education,Third Party Payments,Other establishments,03-Nov-21,6536883,"2,655.00",SUPPLIER,RAINBOW FOSTERING,300000020482345
Portsmouth City Council,PCC,Highways and Transport Services,"Airports, Harbours and Toll Facilities",Portsmouth International Port,Third Party Payments,Private contractors,09-Nov-21,6537861,-146.88,SUPPLIER,BAILEYS BUS SERVICE,300000020458011
Portsmouth City Council,PCC,Highways and Transport Services,"Airports, Harbours and Toll Facilities",Portsmouth International Port,Third Party Payments,Private contractors,09-Nov-21,6537861,-282,SUPPLIER,BAILEYS BUS SERVICE,300000020458011
Portsmouth City Council,PCC,Highways and Transport Services,"Airports, Harbours and Toll Facilities",Portsmouth International Port,Third Party Payments,Private contractors,09-Nov-21,6537861,"-1,186.75",SUPPLIER,BAILEYS BUS SERVICE,300000020458011
Portsmouth City Council,PCC,Highways and Transport Services,"Airports, Harbours and Toll Facilities",Portsmouth International Port,Third Party Payments,Private contractors,09-Nov-21,6537861,"-3,619.01",SUPPLIER,BAILEYS BUS SERVICE,300000020458011
Portsmouth City Council,PCC,Adult Social Care,Physical Support Older People (85+),Adult Services,Third Party Payments,Other establishments,12-Nov-21,6538682,"2,859.30",SUPPLIER,AGINCARE UK,300000020481869
Portsmouth City Council,PCC,Children's and Education Services,Children Looked After,Children's Services and Education,Third Party Payments,Other establishments,05-Nov-21,6537610,600,SUPPLIER,SPRINGCROFT HOMES LIMITED,300000020474214
Portsmouth City Council,PCC,Children's and Education Services,Children Looked After,Children's Services and Education,Third Party Payments,Other establishments,05-Nov-21,6537610,"1,500.00",SUPPLIER,SPRINGCROFT HOMES LIMITED,300000020474214
Portsmouth City Council,PCC,Children's and Education Services,Children Looked After,Children's Services and Education,Third Party Payments,Other establishments,05-Nov-21,6537610,"2,100.00",SUPPLIER,SPRINGCROFT HOMES LIMITED,300000020474214
Portsmouth City Council,PCC,Children's and Education Services,Children Looked After,Children's Services and Education,Third Party Payments,Other establishments,05-Nov-21,6537610,"2,100.00",SUPPLIER,SPRINGCROFT HOMES LIMITED,300000020474214
Portsmouth City Council,PCC,Children's and Education Services,Children Looked After,Children's Services and Education,Third Party Payments,Other establishments,05-Nov-21,6537610,"2,100.00",SUPPLIER,SPRINGCROFT HOMES LIMITED,300000020474214
Portsmouth City Council,PCC,Children's and Education Services,Safeguarding Children and Young Peoples Services,Children's Services and Education,Third Party Payments,Other establishments,02-Nov-21,6536749,-0.01,SUPPLIER,BUILDING FOUNDATIONS LIMITED,300000020474383
Portsmouth City Council,PCC,Children's and Education Services,Safeguarding Children and Young Peoples Services,Children's Services and Education,Third Party Payments,Other establishments,02-Nov-21,6536749,17.86,SUPPLIER,BUILDING FOUNDATIONS LIMITED,300000020474383
Portsmouth City Council,PCC,Children's and Education Services,Safeguarding Children and Young Peoples Services,Children's Services and Education,Third Party Payments,Other establishments,02-Nov-21,6536749,35.71,SUPPLIER,BUILDING FOUNDATIONS LIMITED,300000020474383
Portsmouth City Council,PCC,Children's and Education Services,Safeguarding Children and Young Peoples Services,Children's Services and Education,Third Party Payments,Other establishments,02-Nov-21,6536749,89.29,SUPPLIER,BUILDING FOUNDATIONS LIMITED,300000020474383
Portsmouth City Council,PCC,Children's and Education Services,Safeguarding Children and Young Peoples Services,Children's Services and Education,Third Party Payments,Other establishments,02-Nov-21,6536749,125,SUPPLIER,BUILDING FOUNDATIONS LIMITED,300000020474383
Portsmouth City Council,PCC,Children's and Education Services,Safeguarding Children and Young Peoples Services,Children's Services and Education,Third Party Payments,Other establishments,02-Nov-21,6536749,125,SUPPLIER,BUILDING FOUNDATIONS LIMITED,300000020474383
Portsmouth City Council,PCC,Children's and Education Services,Safeguarding Children and Young Peoples Services,Children's Services and Education,Third Party Payments,Other establishments,02-Nov-21,6536749,125,SUPPLIER,BUILDING FOUNDATIONS LIMITED,300000020474383
Portsmouth City Council,PCC,Children's and Education Services,Safeguarding Children and Young Peoples Services,Children's Services and Education,Third Party Payments,Other establishments,02-Nov-21,6536749,125,SUPPLIER,BUILDING FOUNDATIONS LIMITED,300000020474383
Portsmouth City Council,PCC,Children's and Education Services,Safeguarding Children and Young Peoples Services,Children's Services and Education,Third Party Payments,Other establishments,02-Nov-21,6536749,178.57,SUPPLIER,BUILDING FOUNDATIONS LIMITED,300000020474383
Portsmouth City Council,PCC,Children's and Education Services,Safeguarding Children and Young Peoples Services,Children's Services and Education,Third Party Payments,Other establishments,02-Nov-21,6536749,625,SUPPLIER,BUILDING FOUNDATIONS LIMITED,300000020474383
Portsmouth City Council,PCC,Children's and Education Services,Safeguarding Children and Young Peoples Services,Children's Services and Education,Third Party Payments,Other establishments,02-Nov-21,6536749,625,SUPPLIER,BUILDING FOUNDATIONS LIMITED,300000020474383
Portsmouth City Council,PCC,Children's and Education Services,Safeguarding Children and Young Peoples Services,Children's Services and Education,Third Party Payments,Other establishments,02-Nov-21,6536749,625,SUPPLIER,BUILDING FOUNDATIONS LIMITED,300000020474383
Portsmouth City Council,PCC,Children's and Education Services,Safeguarding Children and Young Peoples Services,Children's Services and Education,Third Party Payments,Other establishments,02-Nov-21,6536749,625,SUPPLIER,BUILDING FOUNDATIONS LIMITED,300000020474383
Portsmouth City Council,PCC,Children's and Education Services,Safeguarding Children and Young Peoples Services,Children's Services and Education,Third Party Payments,Other establishments,02-Nov-21,6536749,-10,SUPPLIER,BUILDING FOUNDATIONS LIMITED,300000020474383
Portsmouth City Council,PCC,Children's and Education Services,Safeguarding Children and Young Peoples Services,Children's Services and Education,Third Party Payments,Other establishments,02-Nov-21,6536749,-10,SUPPLIER,BUILDING FOUNDATIONS LIMITED,300000020474383
Portsmouth City Council,PCC,Children's and Education Services,Safeguarding Children and Young Peoples Services,Children's Services and Education,Third Party Payments,Other establishments,02-Nov-21,6536749,-10,SUPPLIER,BUILDING FOUNDATIONS LIMITED,300000020474383
Portsmouth City Council,PCC,Children's and Education Services,Safeguarding Children and Young Peoples Services,Children's Services and Education,Third Party Payments,Other establishments,02-Nov-21,6536749,-10,SUPPLIER,BUILDING FOUNDATIONS LIMITED,300000020474383
Portsmouth City Council,PCC,Children's and Education Services,Safeguarding Children and Young Peoples Services,Children's Services and Education,Third Party Payments,Other establishments,02-Nov-21,6536749,-2.86,SUPPLIER,BUILDING FOUNDATIONS LIMITED,300000020474383
Portsmouth City Council,PCC,Children's and Education Services,Safeguarding Children and Young Peoples Services,Children's Services and Education,Third Party Payments,Other establishments,02-Nov-21,6536749,-1.43,SUPPLIER,BUILDING FOUNDATIONS LIMITED,300000020474383
Portsmouth City Council,PCC,Children's and Education Services,Safeguarding Children and Young Peoples Services,Children's Services and Education,Third Party Payments,Other establishments,02-Nov-21,6536749,1.43,SUPPLIER,BUILDING FOUNDATIONS LIMITED,300000020474383
Portsmouth City Council,PCC,Children's and Education Services,Safeguarding Children and Young Peoples Services,Children's Services and Education,Third Party Payments,Other establishments,02-Nov-21,6536749,8.27,SUPPLIER,BUILDING FOUNDATIONS LIMITED,300000020474383
Portsmouth City Council,PCC,Children's and Education Services,Safeguarding Children and Young Peoples Services,Children's Services and Education,Third Party Payments,Other establishments,02-Nov-21,6536749,10.71,SUPPLIER,BUILDING FOUNDATIONS LIMITED,300000020474383
Portsmouth City Council,PCC,Children's and Education Services,Safeguarding Children and Young Peoples Services,Children's Services and Education,Third Party Payments,Other establishments,02-Nov-21,6536749,16.54,SUPPLIER,BUILDING FOUNDATIONS LIMITED,300000020474383
Portsmouth City Council,PCC,Children's and Education Services,Safeguarding Children and Young Peoples Services,Children's Services and Education,Third Party Payments,Other establishments,02-Nov-21,6536749,21.43,SUPPLIER,BUILDING FOUNDATIONS LIMITED,300000020474383
Portsmouth City Council,PCC,Children's and Education Services,Safeguarding Children and Young Peoples Services,Children's Services and Education,Third Party Payments,Other establishments,02-Nov-21,6536749,57.9,SUPPLIER,BUILDING FOUNDATIONS LIMITED,300000020474383
Portsmouth City Council,PCC,Children's and Education Services,Safeguarding Children and Young Peoples Services,Children's Services and Education,Third Party Payments,Other establishments,02-Nov-21,6536749,57.9,SUPPLIER,BUILDING FOUNDATIONS LIMITED,300000020474383
Portsmouth City Council,PCC,Children's and Education Services,Safeguarding Children and Young Peoples Services,Children's Services and Education,Third Party Payments,Other establishments,02-Nov-21,6536749,57.9,SUPPLIER,BUILDING FOUNDATIONS LIMITED,300000020474383
Portsmouth City Council,PCC,Children's and Education Services,Safeguarding Children and Young Peoples Services,Children's Services and Education,Third Party Payments,Other establishments,02-Nov-21,6536749,57.9,SUPPLIER,BUILDING FOUNDATIONS LIMITED,300000020474383
Portsmouth City Council,PCC,Children's and Education Services,Safeguarding Children and Young Peoples Services,Children's Services and Education,Third Party Payments,Other establishments,02-Nov-21,6536749,75,SUPPLIER,BUILDING FOUNDATIONS LIMITED,300000020474383
Portsmouth City Council,PCC,Children's and Education Services,Safeguarding Children and Young Peoples Services,Children's Services and Education,Third Party Payments,Other establishments,02-Nov-21,6536749,75,SUPPLIER,BUILDING FOUNDATIONS LIMITED,300000020474383
Portsmouth City Council,PCC,Children's and Education Services,Safeguarding Children and Young Peoples Services,Children's Services and Education,Third Party Payments,Other establishments,02-Nov-21,6536749,75,SUPPLIER,BUILDING FOUNDATIONS LIMITED,300000020474383
Portsmouth City Council,PCC,Children's and Education Services,Safeguarding Children and Young Peoples Services,Children's Services and Education,Third Party Payments,Other establishments,02-Nov-21,6536749,75,SUPPLIER,BUILDING FOUNDATIONS LIMITED,300000020474383
Portsmouth City Council,PCC,Children's and Education Services,Safeguarding Children and Young Peoples Services,Children's Services and Education,Third Party Payments,Other establishments,02-Nov-21,6536749,107.14,SUPPLIER,BUILDING FOUNDATIONS LIMITED,300000020474383
Portsmouth City Council,PCC,Children's and Education Services,Safeguarding Children and Young Peoples Services,Children's Services and Education,Third Party Payments,Other establishments,02-Nov-21,6536749,214.29,SUPPLIER,BUILDING FOUNDATIONS LIMITED,300000020474383
Portsmouth City Council,PCC,Children's and Education Services,Safeguarding Children and Young Peoples Services,Children's Services and Education,Third Party Payments,Other establishments,02-Nov-21,6536749,750,SUPPLIER,BUILDING FOUNDATIONS LIMITED,300000020474383
Portsmouth City Council,PCC,Children's and Education Services,Safeguarding Children and Young Peoples Services,Children's Services and Education,Third Party Payments,Other establishments,02-Nov-21,6536749,750,SUPPLIER,BUILDING FOUNDATIONS LIMITED,300000020474383
Portsmouth City Council,PCC,Children's and Education Services,Safeguarding Children and Young Peoples Services,Children's Services and Education,Third Party Payments,Other establishments,02-Nov-21,6536749,750,SUPPLIER,BUILDING FOUNDATIONS LIMITED,300000020474383
Portsmouth City Council,PCC,Children's and Education Services,Safeguarding Children and Young Peoples Services,Children's Services and Education,Third Party Payments,Other establishments,02-Nov-21,6536749,750,SUPPLIER,BUILDING FOUNDATIONS LIMITED,300000020474383
Portsmouth City Council,PCC,Children's and Education Services,Safeguarding Children and Young Peoples Services,Children's Services and Education,Third Party Payments,Other establishments,02-Nov-21,6536749,-0.01,SUPPLIER,BUILDING FOUNDATIONS LIMITED,300000020474383
Portsmouth City Council,PCC,Children's and Education Services,Safeguarding Children and Young Peoples Services,Children's Services and Education,Third Party Payments,Other establishments,02-Nov-21,6536749,17.86,SUPPLIER,BUILDING FOUNDATIONS LIMITED,300000020474383
Portsmouth City Council,PCC,Children's and Education Services,Safeguarding Children and Young Peoples Services,Children's Services and Education,Third Party Payments,Other establishments,02-Nov-21,6536749,35.71,SUPPLIER,BUILDING FOUNDATIONS LIMITED,300000020474383
Portsmouth City Council,PCC,Children's and Education Services,Safeguarding Children and Young Peoples Services,Children's Services and Education,Third Party Payments,Other establishments,02-Nov-21,6536749,89.29,SUPPLIER,BUILDING FOUNDATIONS LIMITED,300000020474383
Portsmouth City Council,PCC,Children's and Education Services,Safeguarding Children and Young Peoples Services,Children's Services and Education,Third Party Payments,Other establishments,02-Nov-21,6536749,125,SUPPLIER,BUILDING FOUNDATIONS LIMITED,300000020474383
Portsmouth City Council,PCC,Children's and Education Services,Safeguarding Children and Young Peoples Services,Children's Services and Education,Third Party Payments,Other establishments,02-Nov-21,6536749,125,SUPPLIER,BUILDING FOUNDATIONS LIMITED,300000020474383
Portsmouth City Council,PCC,Children's and Education Services,Safeguarding Children and Young Peoples Services,Children's Services and Education,Third Party Payments,Other establishments,02-Nov-21,6536749,125,SUPPLIER,BUILDING FOUNDATIONS LIMITED,300000020474383
Portsmouth City Council,PCC,Children's and Education Services,Safeguarding Children and Young Peoples Services,Children's Services and Education,Third Party Payments,Other establishments,02-Nov-21,6536749,125,SUPPLIER,BUILDING FOUNDATIONS LIMITED,300000020474383
Portsmouth City Council,PCC,Children's and Education Services,Safeguarding Children and Young Peoples Services,Children's Services and Education,Third Party Payments,Other establishments,02-Nov-21,6536749,178.57,SUPPLIER,BUILDING FOUNDATIONS LIMITED,300000020474383
Portsmouth City Council,PCC,Children's and Education Services,Safeguarding Children and Young Peoples Services,Children's Services and Education,Third Party Payments,Other establishments,02-Nov-21,6536749,625,SUPPLIER,BUILDING FOUNDATIONS LIMITED,300000020474383
Portsmouth City Council,PCC,Children's and Education Services,Safeguarding Children and Young Peoples Services,Children's Services and Education,Third Party Payments,Other establishments,02-Nov-21,6536749,625,SUPPLIER,BUILDING FOUNDATIONS LIMITED,300000020474383
Portsmouth City Council,PCC,Children's and Education Services,Safeguarding Children and Young Peoples Services,Children's Services and Education,Third Party Payments,Other establishments,02-Nov-21,6536749,625,SUPPLIER,BUILDING FOUNDATIONS LIMITED,300000020474383
Portsmouth City Council,PCC,Children's and Education Services,Safeguarding Children and Young Peoples Services,Children's Services and Education,Third Party Payments,Other establishments,02-Nov-21,6536749,625,SUPPLIER,BUILDING FOUNDATIONS LIMITED,300000020474383
Portsmouth City Council,PCC,Children's and Education Services,Safeguarding Children and Young Peoples Services,Children's Services and Education,Third Party Payments,Other establishments,02-Nov-21,6536749,-0.01,SUPPLIER,BUILDING FOUNDATIONS LIMITED,300000020474383
Portsmouth City Council,PCC,Children's and Education Services,Safeguarding Children and Young Peoples Services,Children's Services and Education,Third Party Payments,Other establishments,02-Nov-21,6536749,17.86,SUPPLIER,BUILDING FOUNDATIONS LIMITED,300000020474383
Portsmouth City Council,PCC,Children's and Education Services,Safeguarding Children and Young Peoples Services,Children's Services and Education,Third Party Payments,Other establishments,02-Nov-21,6536749,35.71,SUPPLIER,BUILDING FOUNDATIONS LIMITED,300000020474383
Portsmouth City Council,PCC,Children's and Education Services,Safeguarding Children and Young Peoples Services,Children's Services and Education,Third Party Payments,Other establishments,02-Nov-21,6536749,89.29,SUPPLIER,BUILDING FOUNDATIONS LIMITED,300000020474383
Portsmouth City Council,PCC,Children's and Education Services,Safeguarding Children and Young Peoples Services,Children's Services and Education,Third Party Payments,Other establishments,02-Nov-21,6536749,125,SUPPLIER,BUILDING FOUNDATIONS LIMITED,300000020474383
Portsmouth City Council,PCC,Children's and Education Services,Safeguarding Children and Young Peoples Services,Children's Services and Education,Third Party Payments,Other establishments,02-Nov-21,6536749,125,SUPPLIER,BUILDING FOUNDATIONS LIMITED,300000020474383
Portsmouth City Council,PCC,Children's and Education Services,Safeguarding Children and Young Peoples Services,Children's Services and Education,Third Party Payments,Other establishments,02-Nov-21,6536749,125,SUPPLIER,BUILDING FOUNDATIONS LIMITED,300000020474383
Portsmouth City Council,PCC,Children's and Education Services,Safeguarding Children and Young Peoples Services,Children's Services and Education,Third Party Payments,Other establishments,02-Nov-21,6536749,125,SUPPLIER,BUILDING FOUNDATIONS LIMITED,300000020474383
Portsmouth City Council,PCC,Children's and Education Services,Safeguarding Children and Young Peoples Services,Children's Services and Education,Third Party Payments,Other establishments,02-Nov-21,6536749,178.57,SUPPLIER,BUILDING FOUNDATIONS LIMITED,300000020474383
Portsmouth City Council,PCC,Children's and Education Services,Safeguarding Children and Young Peoples Services,Children's Services and Education,Third Party Payments,Other establishments,02-Nov-21,6536749,625,SUPPLIER,BUILDING FOUNDATIONS LIMITED,300000020474383
Portsmouth City Council,PCC,Children's and Education Services,Safeguarding Children and Young Peoples Services,Children's Services and Education,Third Party Payments,Other establishments,02-Nov-21,6536749,625,SUPPLIER,BUILDING FOUNDATIONS LIMITED,300000020474383
Portsmouth City Council,PCC,Children's and Education Services,Safeguarding Children and Young Peoples Services,Children's Services and Education,Third Party Payments,Other establishments,02-Nov-21,6536749,625,SUPPLIER,BUILDING FOUNDATIONS LIMITED,300000020474383
Portsmouth City Council,PCC,Children's and Education Services,Safeguarding Children and Young Peoples Services,Children's Services and Education,Third Party Payments,Other establishments,02-Nov-21,6536749,625,SUPPLIER,BUILDING FOUNDATIONS LIMITED,300000020474383
Portsmouth City Council,PCC,Children's and Education Services,Asylum seekers,Children's Services and Education,Third Party Payments,Other establishments,03-Nov-21,6536799,0.01,SUPPLIER,BANYA FAMILY PLACEMENT AGENCY LTD,300000020481029
Portsmouth City Council,PCC,Children's and Education Services,Asylum seekers,Children's Services and Education,Third Party Payments,Other establishments,03-Nov-21,6536799,474.3,SUPPLIER,BANYA FAMILY PLACEMENT AGENCY LTD,300000020481029
Portsmouth City Council,PCC,Children's and Education Services,Asylum seekers,Children's Services and Education,Third Party Payments,Other establishments,03-Nov-21,6536799,474.3,SUPPLIER,BANYA FAMILY PLACEMENT AGENCY LTD,300000020481029
Portsmouth City Council,PCC,Children's and Education Services,Safeguarding Children and Young Peoples Services,Children's Services and Education,Third Party Payments,Other establishments,08-Nov-21,6537771,-0.01,SUPPLIER,LOVE146,300000020473545
Portsmouth City Council,PCC,Children's and Education Services,Safeguarding Children and Young Peoples Services,Children's Services and Education,Third Party Payments,Other establishments,08-Nov-21,6537771,371.43,SUPPLIER,LOVE146,300000020473545
Portsmouth City Council,PCC,Children's and Education Services,Safeguarding Children and Young Peoples Services,Children's Services and Education,Third Party Payments,Other establishments,08-Nov-21,6537771,464.29,SUPPLIER,LOVE146,300000020473545
Portsmouth City Council,PCC,Children's and Education Services,Safeguarding Children and Young Peoples Services,Children's Services and Education,Third Party Payments,Other establishments,08-Nov-21,6537771,650,SUPPLIER,LOVE146,300000020473545
Portsmouth City Council,PCC,Children's and Education Services,Safeguarding Children and Young Peoples Services,Children's Services and Education,Third Party Payments,Other establishments,08-Nov-21,6537771,650,SUPPLIER,LOVE146,300000020473545
Portsmouth City Council,PCC,Children's and Education Services,Safeguarding Children and Young Peoples Services,Children's Services and Education,Third Party Payments,Other establishments,08-Nov-21,6537771,650,SUPPLIER,LOVE146,300000020473545
Portsmouth City Council,PCC,Children's and Education Services,Safeguarding Children and Young Peoples Services,Children's Services and Education,Third Party Payments,Other establishments,08-Nov-21,6537771,-0.01,SUPPLIER,LOVE146,300000020473545
Portsmouth City Council,PCC,Children's and Education Services,Safeguarding Children and Young Peoples Services,Children's Services and Education,Third Party Payments,Other establishments,08-Nov-21,6537771,7.14,SUPPLIER,LOVE146,300000020473545
Portsmouth City Council,PCC,Children's and Education Services,Safeguarding Children and Young Peoples Services,Children's Services and Education,Third Party Payments,Other establishments,08-Nov-21,6537771,7.15,SUPPLIER,LOVE146,300000020473545
Portsmouth City Council,PCC,Children's and Education Services,Safeguarding Children and Young Peoples Services,Children's Services and Education,Third Party Payments,Other establishments,08-Nov-21,6537771,7.15,SUPPLIER,LOVE146,300000020473545
Portsmouth City Council,PCC,Children's and Education Services,Safeguarding Children and Young Peoples Services,Children's Services and Education,Third Party Payments,Other establishments,08-Nov-21,6537771,28.57,SUPPLIER,LOVE146,300000020473545
Portsmouth City Council,PCC,Children's and Education Services,Safeguarding Children and Young Peoples Services,Children's Services and Education,Third Party Payments,Other establishments,08-Nov-21,6537771,50,SUPPLIER,LOVE146,300000020473545
Portsmouth City Council,PCC,Children's and Education Services,Safeguarding Children and Young Peoples Services,Children's Services and Education,Third Party Payments,Other establishments,08-Nov-21,6537771,50,SUPPLIER,LOVE146,300000020473545
Portsmouth City Council,PCC,Children's and Education Services,Safeguarding Children and Young Peoples Services,Children's Services and Education,Third Party Payments,Other establishments,08-Nov-21,6537771,50,SUPPLIER,LOVE146,300000020473545
Portsmouth City Council,PCC,Children's and Education Services,Children Looked After,Children's Services and Education,Third Party Payments,Other establishments,08-Nov-21,6537770,709,SUPPLIER,AMBERLEIGH CARE LIMITED,300000020471653
Portsmouth City Council,PCC,Children's and Education Services,Children Looked After,Children's Services and Education,Third Party Payments,Other establishments,08-Nov-21,6537770,"1,418.00",SUPPLIER,AMBERLEIGH CARE LIMITED,300000020471653
Portsmouth City Council,PCC,Children's and Education Services,Children Looked After,Children's Services and Education,Third Party Payments,Other establishments,08-Nov-21,6537770,"4,963.00",SUPPLIER,AMBERLEIGH CARE LIMITED,300000020471653
Portsmouth City Council,PCC,Children's and Education Services,Children Looked After,Children's Services and Education,Third Party Payments,Other establishments,08-Nov-21,6537770,"4,963.00",SUPPLIER,AMBERLEIGH CARE LIMITED,300000020471653
Portsmouth City Council,PCC,Children's and Education Services,Children Looked After,Children's Services and Education,Third Party Payments,Other establishments,08-Nov-21,6537770,"4,963.00",SUPPLIER,AMBERLEIGH CARE LIMITED,300000020471653
Portsmouth City Council,PCC,Children's and Education Services,Children Looked After,Children's Services and Education,Third Party Payments,Other establishments,08-Nov-21,6537770,"4,963.00",SUPPLIER,AMBERLEIGH CARE LIMITED,300000020471653
Portsmouth City Council,PCC,Children's and Education Services,Children Looked After,Children's Services and Education,Third Party Payments,Other establishments,08-Nov-21,6537654,-8.57,SUPPLIER,ISWP SUPPORT SERVICES LTD,300000020472942
Portsmouth City Council,PCC,Children's and Education Services,Children Looked After,Children's Services and Education,Third Party Payments,Other establishments,08-Nov-21,6537654,-1.43,SUPPLIER,ISWP SUPPORT SERVICES LTD,300000020472942
Portsmouth City Council,PCC,Children's and Education Services,Children Looked After,Children's Services and Education,Third Party Payments,Other establishments,08-Nov-21,6537654,8.27,SUPPLIER,ISWP SUPPORT SERVICES LTD,300000020472942
Portsmouth City Council,PCC,Children's and Education Services,Children Looked After,Children's Services and Education,Third Party Payments,Other establishments,08-Nov-21,6537654,49.63,SUPPLIER,ISWP SUPPORT SERVICES LTD,300000020472942
Portsmouth City Council,PCC,Children's and Education Services,Children Looked After,Children's Services and Education,Third Party Payments,Other establishments,08-Nov-21,6537654,57.14,SUPPLIER,ISWP SUPPORT SERVICES LTD,300000020472942
Portsmouth City Council,PCC,Children's and Education Services,Children Looked After,Children's Services and Education,Third Party Payments,Other establishments,08-Nov-21,6537654,342.86,SUPPLIER,ISWP SUPPORT SERVICES LTD,300000020472942
Portsmouth City Council,PCC,Children's and Education Services,Children Looked After,Children's Services and Education,Third Party Payments,Other establishments,08-Nov-21,6537654,552,SUPPLIER,ISWP SUPPORT SERVICES LTD,300000020472942
Portsmouth City Council,PCC,Children's and Education Services,Children Looked After,Children's Services and Education,Third Party Payments,Other establishments,08-Nov-21,6537654,"3,312.00",SUPPLIER,ISWP SUPPORT SERVICES LTD,300000020472942
Portsmouth City Council,PCC,Children's and Education Services,Children Looked After,Children's Services and Education,Third Party Payments,Other establishments,08-Nov-21,6537654,-8.57,SUPPLIER,ISWP SUPPORT SERVICES LTD,300000020472942
Portsmouth City Council,PCC,Children's and Education Services,Children Looked After,Children's Services and Education,Third Party Payments,Other establishments,08-Nov-21,6537654,-1.43,SUPPLIER,ISWP SUPPORT SERVICES LTD,300000020472942
Portsmouth City Council,PCC,Children's and Education Services,Children Looked After,Children's Services and Education,Third Party Payments,Other establishments,08-Nov-21,6537654,57.14,SUPPLIER,ISWP SUPPORT SERVICES LTD,300000020472942
Portsmouth City Council,PCC,Children's and Education Services,Children Looked After,Children's Services and Education,Third Party Payments,Other establishments,08-Nov-21,6537654,342.86,SUPPLIER,ISWP SUPPORT SERVICES LTD,300000020472942
Portsmouth City Council,PCC,Children's and Education Services,Children Looked After,Children's Services and Education,Third Party Payments,Other establishments,08-Nov-21,6537654,552,SUPPLIER,ISWP SUPPORT SERVICES LTD,300000020472942
Portsmouth City Council,PCC,Children's and Education Services,Children Looked After,Children's Services and Education,Third Party Payments,Other establishments,08-Nov-21,6537654,"3,312.00",SUPPLIER,ISWP SUPPORT SERVICES LTD,300000020472942
Portsmouth City Council,PCC,Children's and Education Services,Children Looked After,Children's Services and Education,Third Party Payments,Other establishments,08-Nov-21,6537659,"1,000.00",SUPPLIER,ADVANCED ADOLESCENT CARE SOLUTIONS LTD,300000020475160
Portsmouth City Council,PCC,Children's and Education Services,Children Looked After,Children's Services and Education,Third Party Payments,Other establishments,08-Nov-21,6537659,"6,000.00",SUPPLIER,ADVANCED ADOLESCENT CARE SOLUTIONS LTD,300000020475160
Portsmouth City Council,PCC,Children's and Education Services,Children Looked After,Children's Services and Education,Third Party Payments,Other establishments,08-Nov-21,6537659,"7,000.00",SUPPLIER,ADVANCED ADOLESCENT CARE SOLUTIONS LTD,300000020475160
Portsmouth City Council,PCC,Children's and Education Services,Children Looked After,Children's Services and Education,Third Party Payments,Other establishments,08-Nov-21,6537659,"7,000.00",SUPPLIER,ADVANCED ADOLESCENT CARE SOLUTIONS LTD,300000020475160
Portsmouth City Council,PCC,Children's and Education Services,Children Looked After,Children's Services and Education,Third Party Payments,Other establishments,08-Nov-21,6537659,"7,000.00",SUPPLIER,ADVANCED ADOLESCENT CARE SOLUTIONS LTD,300000020475160
Portsmouth City Council,PCC,Children's and Education Services,Children Looked After,Children's Services and Education,Third Party Payments,Other establishments,09-Nov-21,6537851,0.13,SUPPLIER,FAIR WAYS COMMUNITY BENEFIT SOCEITY T/A FAIRWAYS CARE (UK) LTD,300000020459125
Portsmouth City Council,PCC,Children's and Education Services,Children Looked After,Children's Services and Education,Third Party Payments,Other establishments,09-Nov-21,6537851,"2,758.22",SUPPLIER,FAIR WAYS COMMUNITY BENEFIT SOCEITY T/A FAIRWAYS CARE (UK) LTD,300000020459125
Portsmouth City Council,PCC,Children's and Education Services,Children Looked After,Children's Services and Education,Third Party Payments,Other establishments,09-Nov-21,6537851,"3,447.78",SUPPLIER,FAIR WAYS COMMUNITY BENEFIT SOCEITY T/A FAIRWAYS CARE (UK) LTD,300000020459125
Portsmouth City Council,PCC,Children's and Education Services,Children Looked After,Children's Services and Education,Third Party Payments,Other establishments,09-Nov-21,6537851,"4,826.89",SUPPLIER,FAIR WAYS COMMUNITY BENEFIT SOCEITY T/A FAIRWAYS CARE (UK) LTD,300000020459125
Portsmouth City Council,PCC,Children's and Education Services,Children Looked After,Children's Services and Education,Third Party Payments,Other establishments,09-Nov-21,6537851,"4,826.89",SUPPLIER,FAIR WAYS COMMUNITY BENEFIT SOCEITY T/A FAIRWAYS CARE (UK) LTD,300000020459125
Portsmouth City Council,PCC,Children's and Education Services,Children Looked After,Children's Services and Education,Third Party Payments,Other establishments,09-Nov-21,6537851,"4,826.89",SUPPLIER,FAIR WAYS COMMUNITY BENEFIT SOCEITY T/A FAIRWAYS CARE (UK) LTD,300000020459125
Portsmouth City Council,PCC,Adult Social Care,Physical Support Older People (85+),Adult Services,Third Party Payments,Other establishments,22-Nov-21,6540084,"1,118.88",SUPPLIER,AGINCARE UK,300000020481869
Portsmouth City Council,PCC,Adult Social Care,Social Support - Support for Carer,Adult Services,Third Party Payments,Other establishments,22-Nov-21,6540084,122.24,SUPPLIER,AGINCARE UK,300000020481869
Portsmouth City Council,PCC,Adult Social Care,Physical Support Older People (85+),Adult Services,Third Party Payments,Other establishments,22-Nov-21,6540084,612.72,SUPPLIER,AGINCARE UK,300000020481869
Portsmouth City Council,PCC,Adult Social Care,Physical Support Older People (85+),Adult Services,Third Party Payments,Other establishments,22-Nov-21,6540084,612.72,SUPPLIER,AGINCARE UK,300000020481869
Portsmouth City Council,PCC,Adult Social Care,Physical Support Older People (85+),Adult Services,Third Party Payments,Other establishments,22-Nov-21,6540084,621.6,SUPPLIER,AGINCARE UK,300000020481869
Portsmouth City Council,PCC,Adult Social Care,Social Care Activities,Adult Services,Third Party Payments,Other establishments,22-Nov-21,6540084,372.96,SUPPLIER,AGINCARE UK,300000020481869
Portsmouth City Council,PCC,Adult Social Care,Social Care Activities,Adult Services,Third Party Payments,Other establishments,22-Nov-21,6540084,372.96,SUPPLIER,AGINCARE UK,300000020481869
Portsmouth City Council,PCC,Adult Social Care,Physical Support Older People (85+),Adult Services,Third Party Payments,Other establishments,22-Nov-21,6540084,372.96,SUPPLIER,AGINCARE UK,300000020481869
Portsmouth City Council,PCC,Adult Social Care,Physical Support Older People (85+),Adult Services,Third Party Payments,Other establishments,22-Nov-21,6540084,497.28,SUPPLIER,AGINCARE UK,300000020481869
Portsmouth City Council,PCC,Adult Social Care,Physical Support Older People (85+),Adult Services,Third Party Payments,Other establishments,22-Nov-21,6540084,248.64,SUPPLIER,AGINCARE UK,300000020481869
Portsmouth City Council,PCC,Adult Social Care,Social Support - Support for Carer,Adult Services,Third Party Payments,Other establishments,22-Nov-21,6540084,366.72,SUPPLIER,AGINCARE UK,300000020481869
Portsmouth City Council,PCC,Adult Social Care,Physical Support Older People (85+),Adult Services,Third Party Payments,Other establishments,22-Nov-21,6540084,497.28,SUPPLIER,AGINCARE UK,300000020481869
Portsmouth City Council,PCC,Adult Social Care,Physical Support Older People (85+),Adult Services,Third Party Payments,Other establishments,22-Nov-21,6540084,745.92,SUPPLIER,AGINCARE UK,300000020481869
Portsmouth City Council,PCC,Adult Social Care,Physical Support Older People (85+),Adult Services,Third Party Payments,Other establishments,22-Nov-21,6540084,106.56,SUPPLIER,AGINCARE UK,300000020481869
Portsmouth City Council,PCC,Adult Social Care,Physical Support Older People (85+),Adult Services,Third Party Payments,Other establishments,22-Nov-21,6540084,976.8,SUPPLIER,AGINCARE UK,300000020481869
Portsmouth City Council,PCC,Adult Social Care,Physical Support Older People (85+),Adult Services,Third Party Payments,Other establishments,22-Nov-21,6540084,976.8,SUPPLIER,AGINCARE UK,300000020481869
Portsmouth City Council,PCC,Adult Social Care,Physical Support Older People (85+),Adult Services,Third Party Payments,Other establishments,22-Nov-21,6540084,"1,110.00",SUPPLIER,AGINCARE UK,300000020481869
Portsmouth City Council,PCC,Adult Social Care,Social Care Activities,Adult Services,Third Party Payments,Other establishments,22-Nov-21,6540084,923.52,SUPPLIER,AGINCARE UK,300000020481869
Portsmouth City Council,PCC,Adult Social Care,Physical Support Older People (85+),Adult Services,Third Party Payments,Other establishments,22-Nov-21,6540084,479.52,SUPPLIER,AGINCARE UK,300000020481869
Portsmouth City Council,PCC,Adult Social Care,Physical Support Older People (85+),Adult Services,Third Party Payments,Other establishments,22-Nov-21,6540084,479.52,SUPPLIER,AGINCARE UK,300000020481869
Portsmouth City Council,PCC,Housing Services,Private Sector Housing Renewal,"Housing, Neighbourhood and Building Services",Income,Other grants reimbursements and contributions,04-Nov-21,6537365,-771.5,LIMITED COMPANY,LIFTECH SYSTEMS (SE) LIMITED,300000020461913
Portsmouth City Council,PCC,Other,Suspense and Capital Schemes,Capital - Housing General Fund,Capital Charges,REFCUS,04-Nov-21,6537365,925.8,LIMITED COMPANY,LIFTECH SYSTEMS (SE) LIMITED,300000020461913
Portsmouth City Council,PCC,Other,Suspense and Capital Schemes,Capital - Housing General Fund,Capital Charges,REFCUS,04-Nov-21,6537365,"1,780.00",LIMITED COMPANY,LIFTECH SYSTEMS (SE) LIMITED,300000020461913
Portsmouth City Council,PCC,Adult Social Care,Physical Support Older People (85+),Adult Services,Third Party Payments,Other establishments,22-Nov-21,6540084,248.64,SUPPLIER,AGINCARE UK,300000020481869
Portsmouth City Council,PCC,Adult Social Care,Social Support - Support for Carer,Adult Services,Third Party Payments,Other establishments,22-Nov-21,6540084,366.72,SUPPLIER,AGINCARE UK,300000020481869
Portsmouth City Council,PCC,Adult Social Care,Physical Support Older People (85+),Adult Services,Third Party Payments,Other establishments,22-Nov-21,6540084,599.4,SUPPLIER,AGINCARE UK,300000020481869
Portsmouth City Council,PCC,Adult Social Care,Social Care Activities,Adult Services,Third Party Payments,Other establishments,26-Nov-21,6541349,48.9,SUPPLIER,AGINCARE UK,300000020481869
Portsmouth City Council,PCC,Adult Social Care,Social Care Activities,Adult Services,Third Party Payments,Other establishments,26-Nov-21,6541349,107.3,SUPPLIER,AGINCARE UK,300000020481869
Portsmouth City Council,PCC,Adult Social Care,Physical Support Older People (85+),Adult Services,Third Party Payments,Other establishments,26-Nov-21,6541349,517.2,SUPPLIER,AGINCARE UK,300000020481869
Portsmouth City Council,PCC,Adult Social Care,Social Care Activities,Adult Services,Third Party Payments,Other establishments,26-Nov-21,6541349,54.05,SUPPLIER,AGINCARE UK,300000020481869
Portsmouth City Council,PCC,Adult Social Care,Physical Support Older People (85+),Adult Services,Third Party Payments,Other establishments,26-Nov-21,6541349,262.6,SUPPLIER,AGINCARE UK,300000020481869
Portsmouth City Council,PCC,Adult Social Care,Physical Support Older People (85+),Adult Services,Third Party Payments,Other establishments,22-Nov-21,6540084,710.4,SUPPLIER,AGINCARE UK,300000020481869
Portsmouth City Council,PCC,Adult Social Care,Physical Support Older People (85+),Adult Services,Third Party Payments,Other establishments,22-Nov-21,6540084,794.76,SUPPLIER,AGINCARE UK,300000020481869
Portsmouth City Council,PCC,Adult Social Care,Social Care Activities,Adult Services,Third Party Payments,Other establishments,23-Nov-21,6540514,"5,000.00",SUPPLIER,AGINCARE UK,300000020481869
Portsmouth City Council,PCC,Adult Social Care,Learning Disability Support Adults (18 - 64),Adult Services,Third Party Payments,Other establishments,12-Nov-21,6538874,"4,438.80",SUPPLIER,ALLIED CARE ASHSTEAD HOUSE,300000020473831
Portsmouth City Council,PCC,Adult Social Care,Physical Support Older People (85+),Adult Services,Third Party Payments,Other establishments,22-Nov-21,6540086,46.56,SUPPLIER,ALTOGETHER CARE LLP,300000120931464
Portsmouth City Council,PCC,Adult Social Care,Physical Support Adults (18 - 64),Adult Services,Third Party Payments,Other establishments,22-Nov-21,6540086,60.08,SUPPLIER,ALTOGETHER CARE LLP,300000120931464
Portsmouth City Council,PCC,Adult Social Care,Physical Support Older People (85+),Adult Services,Third Party Payments,Other establishments,22-Nov-21,6540086,300.4,SUPPLIER,ALTOGETHER CARE LLP,300000120931464
Portsmouth City Council,PCC,Adult Social Care,Physical Support Older People (85+),Adult Services,Third Party Payments,Other establishments,22-Nov-21,6540086,325.92,SUPPLIER,ALTOGETHER CARE LLP,300000120931464
Portsmouth City Council,PCC,Adult Social Care,Support with Memory and Cognition Older People (85+),Adult Services,Third Party Payments,Other establishments,12-Nov-21,6538656,"2,907.30",SUPPLIER,ALTON HOUSE PARTNERSHIP,300000020463909
Portsmouth City Council,PCC,Adult Social Care,Support with Memory and Cognition Older People (85+),Adult Services,Third Party Payments,Other establishments,12-Nov-21,6538656,"2,907.30",SUPPLIER,ALTON HOUSE PARTNERSHIP,300000020463909
Portsmouth City Council,PCC,Adult Social Care,Learning Disability Support Adults (18 - 64),Adult Services,Supplies and Services,Catering,05-Nov-21,6537535,36.67,SUPPLIER,AMAZON BUSINESS EU SARL,300000020473393
Portsmouth City Council,PCC,Adult Social Care,Learning Disability Support Adults (18 - 64),Adult Services,Supplies and Services,"Equipment, furniture and materials",05-Nov-21,6537535,34.98,SUPPLIER,AMAZON BUSINESS EU SARL,300000020473393
Portsmouth City Council,PCC,Adult Social Care,Learning Disability Support Adults (18 - 64),Adult Services,Supplies and Services,Catering,05-Nov-21,6537535,19.14,SUPPLIER,AMAZON BUSINESS EU SARL,300000020473393
Portsmouth City Council,PCC,Children's and Education Services,Children Looked After,Children's Services and Education,Third Party Payments,Other establishments,02-Nov-21,6536703,836,SUPPLIER,AQUA CARS LIMITED,300000019988490
Portsmouth City Council,PCC,Children's and Education Services,Children Looked After,Children's Services and Education,Third Party Payments,Other establishments,03-Nov-21,6536883,-0.01,SUPPLIER,RAINBOW FOSTERING,300000020482345
Portsmouth City Council,PCC,Children's and Education Services,Children Looked After,Children's Services and Education,Third Party Payments,Other establishments,03-Nov-21,6536883,471.43,SUPPLIER,RAINBOW FOSTERING,300000020482345
Portsmouth City Council,PCC,Children's and Education Services,Children Looked After,Children's Services and Education,Third Party Payments,Other establishments,03-Nov-21,6536883,589.29,SUPPLIER,RAINBOW FOSTERING,300000020482345
Portsmouth City Council,PCC,Children's and Education Services,Children Looked After,Children's Services and Education,Third Party Payments,Other establishments,03-Nov-21,6536883,825,SUPPLIER,RAINBOW FOSTERING,300000020482345
Portsmouth City Council,PCC,Children's and Education Services,Children Looked After,Children's Services and Education,Third Party Payments,Other establishments,03-Nov-21,6536883,825,SUPPLIER,RAINBOW FOSTERING,300000020482345
Portsmouth City Council,PCC,Children's and Education Services,Children Looked After,Children's Services and Education,Third Party Payments,Other establishments,03-Nov-21,6536883,825,SUPPLIER,RAINBOW FOSTERING,300000020482345
Portsmouth City Council,PCC,Children's and Education Services,Children Looked After,Children's Services and Education,Third Party Payments,Other establishments,09-Nov-21,6537843,-0.08,SUPPLIER,HORIZON CARE AND EDUCATION GROUP LTD,300000020480667
Portsmouth City Council,PCC,Children's and Education Services,Children Looked After,Children's Services and Education,Third Party Payments,Other establishments,09-Nov-21,6537843,311.65,SUPPLIER,HORIZON CARE AND EDUCATION GROUP LTD,300000020480667
Portsmouth City Council,PCC,Children's and Education Services,Children Looked After,Children's Services and Education,Third Party Payments,Other establishments,09-Nov-21,6537843,389.56,SUPPLIER,HORIZON CARE AND EDUCATION GROUP LTD,300000020480667
Portsmouth City Council,PCC,Children's and Education Services,Children Looked After,Children's Services and Education,Third Party Payments,Other establishments,09-Nov-21,6537843,545.39,SUPPLIER,HORIZON CARE AND EDUCATION GROUP LTD,300000020480667
Portsmouth City Council,PCC,Children's and Education Services,Children Looked After,Children's Services and Education,Third Party Payments,Other establishments,09-Nov-21,6537843,545.39,SUPPLIER,HORIZON CARE AND EDUCATION GROUP LTD,300000020480667
Portsmouth City Council,PCC,Children's and Education Services,Children Looked After,Children's Services and Education,Third Party Payments,Other establishments,09-Nov-21,6537843,545.39,SUPPLIER,HORIZON CARE AND EDUCATION GROUP LTD,300000020480667
Portsmouth City Council,PCC,Children's and Education Services,Safeguarding Children and Young Peoples Services,Children's Services and Education,Third Party Payments,Other establishments,09-Nov-21,6537843,-0.08,SUPPLIER,HORIZON CARE AND EDUCATION GROUP LTD,300000020480667
Portsmouth City Council,PCC,Children's and Education Services,Safeguarding Children and Young Peoples Services,Children's Services and Education,Third Party Payments,Other establishments,09-Nov-21,6537843,311.65,SUPPLIER,HORIZON CARE AND EDUCATION GROUP LTD,300000020480667
Portsmouth City Council,PCC,Children's and Education Services,Safeguarding Children and Young Peoples Services,Children's Services and Education,Third Party Payments,Other establishments,09-Nov-21,6537843,389.56,SUPPLIER,HORIZON CARE AND EDUCATION GROUP LTD,300000020480667
Portsmouth City Council,PCC,Children's and Education Services,Safeguarding Children and Young Peoples Services,Children's Services and Education,Third Party Payments,Other establishments,09-Nov-21,6537843,545.39,SUPPLIER,HORIZON CARE AND EDUCATION GROUP LTD,300000020480667
Portsmouth City Council,PCC,Children's and Education Services,Safeguarding Children and Young Peoples Services,Children's Services and Education,Third Party Payments,Other establishments,09-Nov-21,6537843,545.39,SUPPLIER,HORIZON CARE AND EDUCATION GROUP LTD,300000020480667
Portsmouth City Council,PCC,Children's and Education Services,Safeguarding Children and Young Peoples Services,Children's Services and Education,Third Party Payments,Other establishments,09-Nov-21,6537843,545.39,SUPPLIER,HORIZON CARE AND EDUCATION GROUP LTD,300000020480667
Portsmouth City Council,PCC,Children's and Education Services,Children Looked After,Children's Services and Education,Third Party Payments,Other establishments,09-Nov-21,6537843,0.05,SUPPLIER,HORIZON CARE AND EDUCATION GROUP LTD,300000020480667
Portsmouth City Council,PCC,Children's and Education Services,Children Looked After,Children's Services and Education,Third Party Payments,Other establishments,09-Nov-21,6537843,319.47,SUPPLIER,HORIZON CARE AND EDUCATION GROUP LTD,300000020480667
Portsmouth City Council,PCC,Children's and Education Services,Children Looked After,Children's Services and Education,Third Party Payments,Other establishments,09-Nov-21,6537843,399.34,SUPPLIER,HORIZON CARE AND EDUCATION GROUP LTD,300000020480667
Portsmouth City Council,PCC,Children's and Education Services,Children Looked After,Children's Services and Education,Third Party Payments,Other establishments,09-Nov-21,6537843,559.08,SUPPLIER,HORIZON CARE AND EDUCATION GROUP LTD,300000020480667
Portsmouth City Council,PCC,Children's and Education Services,Children Looked After,Children's Services and Education,Third Party Payments,Other establishments,09-Nov-21,6537843,559.08,SUPPLIER,HORIZON CARE AND EDUCATION GROUP LTD,300000020480667
Portsmouth City Council,PCC,Children's and Education Services,Children Looked After,Children's Services and Education,Third Party Payments,Other establishments,09-Nov-21,6537843,559.08,SUPPLIER,HORIZON CARE AND EDUCATION GROUP LTD,300000020480667
Portsmouth City Council,PCC,Children's and Education Services,Children Looked After,Children's Services and Education,Third Party Payments,Other establishments,09-Nov-21,6537843,0.05,SUPPLIER,HORIZON CARE AND EDUCATION GROUP LTD,300000020480667
Portsmouth City Council,PCC,Children's and Education Services,Children Looked After,Children's Services and Education,Third Party Payments,Other establishments,09-Nov-21,6537843,397.71,SUPPLIER,HORIZON CARE AND EDUCATION GROUP LTD,300000020480667
Portsmouth City Council,PCC,Children's and Education Services,Children Looked After,Children's Services and Education,Third Party Payments,Other establishments,09-Nov-21,6537843,497.14,SUPPLIER,HORIZON CARE AND EDUCATION GROUP LTD,300000020480667
Portsmouth City Council,PCC,Children's and Education Services,Children Looked After,Children's Services and Education,Third Party Payments,Other establishments,09-Nov-21,6537843,696,SUPPLIER,HORIZON CARE AND EDUCATION GROUP LTD,300000020480667
Portsmouth City Council,PCC,Children's and Education Services,Children Looked After,Children's Services and Education,Third Party Payments,Other establishments,09-Nov-21,6537843,696,SUPPLIER,HORIZON CARE AND EDUCATION GROUP LTD,300000020480667
Portsmouth City Council,PCC,Children's and Education Services,Children Looked After,Children's Services and Education,Third Party Payments,Other establishments,09-Nov-21,6537843,696,SUPPLIER,HORIZON CARE AND EDUCATION GROUP LTD,300000020480667
Portsmouth City Council,PCC,Children's and Education Services,Safeguarding Children and Young Peoples Services,Children's Services and Education,Third Party Payments,Other establishments,09-Nov-21,6537843,0.05,SUPPLIER,HORIZON CARE AND EDUCATION GROUP LTD,300000020480667
Portsmouth City Council,PCC,Children's and Education Services,Safeguarding Children and Young Peoples Services,Children's Services and Education,Third Party Payments,Other establishments,09-Nov-21,6537843,320.79,SUPPLIER,HORIZON CARE AND EDUCATION GROUP LTD,300000020480667
Portsmouth City Council,PCC,Children's and Education Services,Safeguarding Children and Young Peoples Services,Children's Services and Education,Third Party Payments,Other establishments,09-Nov-21,6537843,400.99,SUPPLIER,HORIZON CARE AND EDUCATION GROUP LTD,300000020480667
Portsmouth City Council,PCC,Children's and Education Services,Safeguarding Children and Young Peoples Services,Children's Services and Education,Third Party Payments,Other establishments,09-Nov-21,6537843,561.39,SUPPLIER,HORIZON CARE AND EDUCATION GROUP LTD,300000020480667
Portsmouth City Council,PCC,Children's and Education Services,Safeguarding Children and Young Peoples Services,Children's Services and Education,Third Party Payments,Other establishments,09-Nov-21,6537843,561.39,SUPPLIER,HORIZON CARE AND EDUCATION GROUP LTD,300000020480667
Portsmouth City Council,PCC,Children's and Education Services,Safeguarding Children and Young Peoples Services,Children's Services and Education,Third Party Payments,Other establishments,09-Nov-21,6537843,561.39,SUPPLIER,HORIZON CARE AND EDUCATION GROUP LTD,300000020480667
Portsmouth City Council,PCC,Children's and Education Services,Children Looked After,Children's Services and Education,Third Party Payments,Other establishments,09-Nov-21,6537843,0.05,SUPPLIER,HORIZON CARE AND EDUCATION GROUP LTD,300000020480667
Portsmouth City Council,PCC,Children's and Education Services,Children Looked After,Children's Services and Education,Third Party Payments,Other establishments,09-Nov-21,6537843,319.47,SUPPLIER,HORIZON CARE AND EDUCATION GROUP LTD,300000020480667
Portsmouth City Council,PCC,Children's and Education Services,Children Looked After,Children's Services and Education,Third Party Payments,Other establishments,09-Nov-21,6537843,399.34,SUPPLIER,HORIZON CARE AND EDUCATION GROUP LTD,300000020480667
Portsmouth City Council,PCC,Children's and Education Services,Children Looked After,Children's Services and Education,Third Party Payments,Other establishments,09-Nov-21,6537843,559.08,SUPPLIER,HORIZON CARE AND EDUCATION GROUP LTD,300000020480667
Portsmouth City Council,PCC,Children's and Education Services,Children Looked After,Children's Services and Education,Third Party Payments,Other establishments,09-Nov-21,6537843,559.08,SUPPLIER,HORIZON CARE AND EDUCATION GROUP LTD,300000020480667
Portsmouth City Council,PCC,Children's and Education Services,Children Looked After,Children's Services and Education,Third Party Payments,Other establishments,09-Nov-21,6537843,559.08,SUPPLIER,HORIZON CARE AND EDUCATION GROUP LTD,300000020480667
Portsmouth City Council,PCC,Children's and Education Services,Safeguarding Children and Young Peoples Services,Children's Services and Education,Third Party Payments,Other establishments,09-Nov-21,6537843,0.05,SUPPLIER,HORIZON CARE AND EDUCATION GROUP LTD,300000020480667
Portsmouth City Council,PCC,Children's and Education Services,Safeguarding Children and Young Peoples Services,Children's Services and Education,Third Party Payments,Other establishments,09-Nov-21,6537843,397.71,SUPPLIER,HORIZON CARE AND EDUCATION GROUP LTD,300000020480667
Portsmouth City Council,PCC,Children's and Education Services,Safeguarding Children and Young Peoples Services,Children's Services and Education,Third Party Payments,Other establishments,09-Nov-21,6537843,497.14,SUPPLIER,HORIZON CARE AND EDUCATION GROUP LTD,300000020480667
Portsmouth City Council,PCC,Children's and Education Services,Safeguarding Children and Young Peoples Services,Children's Services and Education,Third Party Payments,Other establishments,09-Nov-21,6537843,696,SUPPLIER,HORIZON CARE AND EDUCATION GROUP LTD,300000020480667
Portsmouth City Council,PCC,Children's and Education Services,Safeguarding Children and Young Peoples Services,Children's Services and Education,Third Party Payments,Other establishments,09-Nov-21,6537843,696,SUPPLIER,HORIZON CARE AND EDUCATION GROUP LTD,300000020480667
Portsmouth City Council,PCC,Children's and Education Services,Safeguarding Children and Young Peoples Services,Children's Services and Education,Third Party Payments,Other establishments,09-Nov-21,6537843,696,SUPPLIER,HORIZON CARE AND EDUCATION GROUP LTD,300000020480667
Portsmouth City Council,PCC,Children's and Education Services,Safeguarding Children and Young Peoples Services,Children's Services and Education,Third Party Payments,Other establishments,09-Nov-21,6537843,0.05,SUPPLIER,HORIZON CARE AND EDUCATION GROUP LTD,300000020480667
Portsmouth City Council,PCC,Children's and Education Services,Safeguarding Children and Young Peoples Services,Children's Services and Education,Third Party Payments,Other establishments,09-Nov-21,6537843,320.79,SUPPLIER,HORIZON CARE AND EDUCATION GROUP LTD,300000020480667
Portsmouth City Council,PCC,Children's and Education Services,Safeguarding Children and Young Peoples Services,Children's Services and Education,Third Party Payments,Other establishments,09-Nov-21,6537843,400.99,SUPPLIER,HORIZON CARE AND EDUCATION GROUP LTD,300000020480667
Portsmouth City Council,PCC,Children's and Education Services,Safeguarding Children and Young Peoples Services,Children's Services and Education,Third Party Payments,Other establishments,09-Nov-21,6537843,561.39,SUPPLIER,HORIZON CARE AND EDUCATION GROUP LTD,300000020480667
Portsmouth City Council,PCC,Children's and Education Services,Safeguarding Children and Young Peoples Services,Children's Services and Education,Third Party Payments,Other establishments,09-Nov-21,6537843,561.39,SUPPLIER,HORIZON CARE AND EDUCATION GROUP LTD,300000020480667
Portsmouth City Council,PCC,Children's and Education Services,Safeguarding Children and Young Peoples Services,Children's Services and Education,Third Party Payments,Other establishments,09-Nov-21,6537843,561.39,SUPPLIER,HORIZON CARE AND EDUCATION GROUP LTD,300000020480667
Portsmouth City Council,PCC,Adult Social Care,Physical Support Older People (85+),Adult Services,Third Party Payments,Other establishments,02-Nov-21,6536607,"1,961.68",SUPPLIER,ABICARE SERVICES LTD,300000020470310
Portsmouth City Council,PCC,Adult Social Care,Physical Support Older People (85+),Adult Services,Third Party Payments,Other establishments,30-Nov-21,6541790,"-1,456.00",SUPPLIER,ABICARE SERVICES LTD,300000020470310
Portsmouth City Council,PCC,Adult Social Care,Physical Support Older People (85+),Adult Services,Third Party Payments,Other establishments,30-Nov-21,6541790,"-1,456.00",SUPPLIER,ABICARE SERVICES LTD,300000020470310
Portsmouth City Council,PCC,Adult Social Care,Physical Support Older People (85+),Adult Services,Third Party Payments,Other establishments,30-Nov-21,6541790,"-1,456.00",SUPPLIER,ABICARE SERVICES LTD,300000020470310
Portsmouth City Council,PCC,Adult Social Care,Physical Support Older People (85+),Adult Services,Third Party Payments,Other establishments,30-Nov-21,6541790,"-1,456.00",SUPPLIER,ABICARE SERVICES LTD,300000020470310
Portsmouth City Council,PCC,Adult Social Care,Physical Support Older People (85+),Adult Services,Third Party Payments,Other establishments,30-Nov-21,6541790,"-1,456.00",SUPPLIER,ABICARE SERVICES LTD,300000020470310
Portsmouth City Council,PCC,Adult Social Care,Physical Support Older People (85+),Adult Services,Third Party Payments,Other establishments,30-Nov-21,6541790,"-1,456.00",SUPPLIER,ABICARE SERVICES LTD,300000020470310
Portsmouth City Council,PCC,Adult Social Care,Physical Support Older People (85+),Adult Services,Third Party Payments,Other establishments,30-Nov-21,6541790,"-1,456.00",SUPPLIER,ABICARE SERVICES LTD,300000020470310
Portsmouth City Council,PCC,Adult Social Care,Physical Support Older People (85+),Adult Services,Third Party Payments,Other establishments,30-Nov-21,6541790,-208,SUPPLIER,ABICARE SERVICES LTD,300000020470310
Portsmouth City Council,PCC,Adult Social Care,Physical Support Older People (85+),Adult Services,Third Party Payments,Other establishments,30-Nov-21,6541790,212.32,SUPPLIER,ABICARE SERVICES LTD,300000020470310
Portsmouth City Council,PCC,Adult Social Care,Physical Support Older People (85+),Adult Services,Third Party Payments,Other establishments,30-Nov-21,6541790,"1,486.24",SUPPLIER,ABICARE SERVICES LTD,300000020470310
Portsmouth City Council,PCC,Adult Social Care,Physical Support Older People (85+),Adult Services,Third Party Payments,Other establishments,30-Nov-21,6541790,"1,486.24",SUPPLIER,ABICARE SERVICES LTD,300000020470310
Portsmouth City Council,PCC,Adult Social Care,Physical Support Older People (85+),Adult Services,Third Party Payments,Other establishments,30-Nov-21,6541790,"1,486.24",SUPPLIER,ABICARE SERVICES LTD,300000020470310
Portsmouth City Council,PCC,Adult Social Care,Physical Support Older People (85+),Adult Services,Third Party Payments,Other establishments,30-Nov-21,6541790,"1,486.24",SUPPLIER,ABICARE SERVICES LTD,300000020470310
Portsmouth City Council,PCC,Adult Social Care,Physical Support Older People (85+),Adult Services,Third Party Payments,Other establishments,30-Nov-21,6541790,"1,486.24",SUPPLIER,ABICARE SERVICES LTD,300000020470310
Portsmouth City Council,PCC,Adult Social Care,Physical Support Older People (85+),Adult Services,Third Party Payments,Other establishments,30-Nov-21,6541790,"1,486.24",SUPPLIER,ABICARE SERVICES LTD,300000020470310
Portsmouth City Council,PCC,Adult Social Care,Physical Support Older People (85+),Adult Services,Third Party Payments,Other establishments,30-Nov-21,6541790,"1,486.24",SUPPLIER,ABICARE SERVICES LTD,300000020470310
Portsmouth City Council,PCC,Adult Social Care,Physical Support Older People (85+),Adult Services,Third Party Payments,Other establishments,30-Nov-21,6541790,"1,486.24",SUPPLIER,ABICARE SERVICES LTD,300000020470310
Portsmouth City Council,PCC,Adult Social Care,Physical Support Older People (85+),Adult Services,Third Party Payments,Other establishments,30-Nov-21,6541790,"-1,961.68",SUPPLIER,ABICARE SERVICES LTD,300000020470310
Portsmouth City Council,PCC,Adult Social Care,Physical Support Older People (85+),Adult Services,Third Party Payments,Other establishments,30-Nov-21,6541790,"-1,961.68",SUPPLIER,ABICARE SERVICES LTD,300000020470310
Portsmouth City Council,PCC,Adult Social Care,Physical Support Older People (85+),Adult Services,Third Party Payments,Other establishments,30-Nov-21,6541790,"-1,961.68",SUPPLIER,ABICARE SERVICES LTD,300000020470310
Portsmouth City Council,PCC,Adult Social Care,Physical Support Older People (85+),Adult Services,Third Party Payments,Other establishments,30-Nov-21,6541790,"-1,961.68",SUPPLIER,ABICARE SERVICES LTD,300000020470310
Portsmouth City Council,PCC,Adult Social Care,Physical Support Older People (85+),Adult Services,Third Party Payments,Other establishments,30-Nov-21,6541790,"-1,961.68",SUPPLIER,ABICARE SERVICES LTD,300000020470310
Portsmouth City Council,PCC,Adult Social Care,Physical Support Older People (85+),Adult Services,Third Party Payments,Other establishments,30-Nov-21,6541790,"-1,961.68",SUPPLIER,ABICARE SERVICES LTD,300000020470310
Portsmouth City Council,PCC,Adult Social Care,Physical Support Older People (85+),Adult Services,Third Party Payments,Other establishments,30-Nov-21,6541790,"-1,961.68",SUPPLIER,ABICARE SERVICES LTD,300000020470310
Portsmouth City Council,PCC,Adult Social Care,Physical Support Older People (85+),Adult Services,Third Party Payments,Other establishments,30-Nov-21,6541790,-280.24,SUPPLIER,ABICARE SERVICES LTD,300000020470310
Portsmouth City Council,PCC,Adult Social Care,Physical Support Older People (85+),Adult Services,Third Party Payments,Other establishments,30-Nov-21,6541790,286.08,SUPPLIER,ABICARE SERVICES LTD,300000020470310
Portsmouth City Council,PCC,Adult Social Care,Physical Support Older People (85+),Adult Services,Third Party Payments,Other establishments,30-Nov-21,6541790,"2,002.56",SUPPLIER,ABICARE SERVICES LTD,300000020470310
Portsmouth City Council,PCC,Housing Revenue Account,Special Services,"Housing, Neighbourhood and Building Services",Supplies and Services,Communications and computing,02-Nov-21,6536729,1.56,PUBLIC LIMITED COMPANY,BRITISH TELECOMMUNICATIONS PLC,300000015963906
Portsmouth City Council,PCC,Housing Revenue Account,Special Services,"Housing, Neighbourhood and Building Services",Supplies and Services,Communications and computing,02-Nov-21,6536729,2.93,PUBLIC LIMITED COMPANY,BRITISH TELECOMMUNICATIONS PLC,300000015963906
Portsmouth City Council,PCC,Children's and Education Services,Primary Schools,Children's Services and Education,Supplies and Services,Communications and computing,02-Nov-21,6536729,10,PUBLIC LIMITED COMPANY,BRITISH TELECOMMUNICATIONS PLC,300000015963906
Portsmouth City Council,PCC,Children's and Education Services,Primary Schools,Children's Services and Education,Supplies and Services,Communications and computing,02-Nov-21,6536729,10,PUBLIC LIMITED COMPANY,BRITISH TELECOMMUNICATIONS PLC,300000015963906
Portsmouth City Council,PCC,Children's and Education Services,Secondary Schools,Children's Services and Education,Supplies and Services,Communications and computing,02-Nov-21,6536729,12.63,PUBLIC LIMITED COMPANY,BRITISH TELECOMMUNICATIONS PLC,300000015963906
Portsmouth City Council,PCC,Environmental and Regulatory Services,Regulatory Services,"Culture, Leisure & Regulatory Services",Supplies and Services,Communications and computing,02-Nov-21,6536729,12.63,PUBLIC LIMITED COMPANY,BRITISH TELECOMMUNICATIONS PLC,300000015963906
Portsmouth City Council,PCC,Children's and Education Services,Family Support Services,Children's Services and Education,Supplies and Services,Communications and computing,02-Nov-21,6536729,12.63,PUBLIC LIMITED COMPANY,BRITISH TELECOMMUNICATIONS PLC,300000015963906
Portsmouth City Council,PCC,Children's and Education Services,Family Support Services,Children's Services and Education,Supplies and Services,Communications and computing,02-Nov-21,6536729,12.63,PUBLIC LIMITED COMPANY,BRITISH TELECOMMUNICATIONS PLC,300000015963906
Portsmouth City Council,PCC,Children's and Education Services,Family Support Services,Children's Services and Education,Supplies and Services,Communications and computing,02-Nov-21,6536729,12.63,PUBLIC LIMITED COMPANY,BRITISH TELECOMMUNICATIONS PLC,300000015963906
Portsmouth City Council,PCC,Children's and Education Services,Family Support Services,Children's Services and Education,Supplies and Services,Communications and computing,02-Nov-21,6536729,12.63,PUBLIC LIMITED COMPANY,BRITISH TELECOMMUNICATIONS PLC,300000015963906
Portsmouth City Council,PCC,Children's and Education Services,Family Support Services,Children's Services and Education,Supplies and Services,Communications and computing,02-Nov-21,6536729,12.63,PUBLIC LIMITED COMPANY,BRITISH TELECOMMUNICATIONS PLC,300000015963906
Portsmouth City Council,PCC,Planning Services,Business support,Regeneration,Supplies and Services,Communications and computing,02-Nov-21,6536729,12.63,PUBLIC LIMITED COMPANY,BRITISH TELECOMMUNICATIONS PLC,300000015963906
Portsmouth City Council,PCC,Planning Services,Business support,Regeneration,Supplies and Services,Communications and computing,02-Nov-21,6536729,12.63,PUBLIC LIMITED COMPANY,BRITISH TELECOMMUNICATIONS PLC,300000015963906
Portsmouth City Council,PCC,Planning Services,Business support,Regeneration,Supplies and Services,Communications and computing,02-Nov-21,6536729,12.63,PUBLIC LIMITED COMPANY,BRITISH TELECOMMUNICATIONS PLC,300000015963906
Portsmouth City Council,PCC,Planning Services,Business support,Regeneration,Supplies and Services,Communications and computing,02-Nov-21,6536729,12.63,PUBLIC LIMITED COMPANY,BRITISH TELECOMMUNICATIONS PLC,300000015963906
Portsmouth City Council,PCC,Adult Social Care,Learning Disability Support Adults (18 - 64),Adult Services,Supplies and Services,"Equipment, furniture and materials",22-Nov-21,6540157,29.16,SUPPLIER,AMAZON BUSINESS EU SARL,300000020473393
Portsmouth City Council,PCC,Highways and Transport Services,Traffic Management and Road Safety,Regeneration,Supplies and Services,Communications and computing,02-Nov-21,6536729,12.63,PUBLIC LIMITED COMPANY,BRITISH TELECOMMUNICATIONS PLC,300000015963906
Portsmouth City Council,PCC,Highways and Transport Services,Parking Services,Regeneration,Supplies and Services,Communications and computing,02-Nov-21,6536729,12.63,PUBLIC LIMITED COMPANY,BRITISH TELECOMMUNICATIONS PLC,300000015963906
Portsmouth City Council,PCC,Cultural and Related Services,Culture and Heritage,"Culture, Leisure & Regulatory Services",Supplies and Services,Communications and computing,02-Nov-21,6536729,12.63,PUBLIC LIMITED COMPANY,BRITISH TELECOMMUNICATIONS PLC,300000015963906
Portsmouth City Council,PCC,Cultural and Related Services,Culture and Heritage,"Culture, Leisure & Regulatory Services",Supplies and Services,Communications and computing,02-Nov-21,6536729,12.63,PUBLIC LIMITED COMPANY,BRITISH TELECOMMUNICATIONS PLC,300000015963906
Portsmouth City Council,PCC,Cultural and Related Services,Culture and Heritage,"Culture, Leisure & Regulatory Services",Supplies and Services,Communications and computing,02-Nov-21,6536729,12.63,PUBLIC LIMITED COMPANY,BRITISH TELECOMMUNICATIONS PLC,300000015963906
Portsmouth City Council,PCC,Cultural and Related Services,Culture and Heritage,"Culture, Leisure & Regulatory Services",Supplies and Services,Communications and computing,02-Nov-21,6536729,12.63,PUBLIC LIMITED COMPANY,BRITISH TELECOMMUNICATIONS PLC,300000015963906
Portsmouth City Council,PCC,Cultural and Related Services,Culture and Heritage,"Culture, Leisure & Regulatory Services",Supplies and Services,Communications and computing,02-Nov-21,6536729,12.63,PUBLIC LIMITED COMPANY,BRITISH TELECOMMUNICATIONS PLC,300000015963906
Portsmouth City Council,PCC,Cultural and Related Services,Culture and Heritage,"Culture, Leisure & Regulatory Services",Supplies and Services,Communications and computing,02-Nov-21,6536729,12.63,PUBLIC LIMITED COMPANY,BRITISH TELECOMMUNICATIONS PLC,300000015963906
Portsmouth City Council,PCC,Cultural and Related Services,Culture and Heritage,"Culture, Leisure & Regulatory Services",Supplies and Services,Communications and computing,02-Nov-21,6536729,12.63,PUBLIC LIMITED COMPANY,BRITISH TELECOMMUNICATIONS PLC,300000015963906
Portsmouth City Council,PCC,Cultural and Related Services,Culture and Heritage,"Culture, Leisure & Regulatory Services",Supplies and Services,Communications and computing,02-Nov-21,6536729,12.63,PUBLIC LIMITED COMPANY,BRITISH TELECOMMUNICATIONS PLC,300000015963906
Portsmouth City Council,PCC,Cultural and Related Services,Culture and Heritage,"Culture, Leisure & Regulatory Services",Supplies and Services,Communications and computing,02-Nov-21,6536729,12.63,PUBLIC LIMITED COMPANY,BRITISH TELECOMMUNICATIONS PLC,300000015963906
Portsmouth City Council,PCC,Cultural and Related Services,Culture and Heritage,"Culture, Leisure & Regulatory Services",Supplies and Services,Communications and computing,02-Nov-21,6536729,12.63,PUBLIC LIMITED COMPANY,BRITISH TELECOMMUNICATIONS PLC,300000015963906
Portsmouth City Council,PCC,Cultural and Related Services,Culture and Heritage,"Culture, Leisure & Regulatory Services",Supplies and Services,Communications and computing,02-Nov-21,6536729,12.63,PUBLIC LIMITED COMPANY,BRITISH TELECOMMUNICATIONS PLC,300000015963906
Portsmouth City Council,PCC,Corporate and Democratic Core,Democratic Representation and Management,"Culture, Leisure & Regulatory Services",Supplies and Services,Communications and computing,02-Nov-21,6536729,12.63,PUBLIC LIMITED COMPANY,BRITISH TELECOMMUNICATIONS PLC,300000015963906
Portsmouth City Council,PCC,Support Service / Transparency Costs Unallocated,Financial Services,Finance & Resources,Supplies and Services,Communications and computing,02-Nov-21,6536729,12.63,PUBLIC LIMITED COMPANY,BRITISH TELECOMMUNICATIONS PLC,300000015963906
Portsmouth City Council,PCC,Support Service / Transparency Costs Unallocated,Information Services,Corporate Services,Supplies and Services,Communications and computing,02-Nov-21,6536729,12.63,PUBLIC LIMITED COMPANY,BRITISH TELECOMMUNICATIONS PLC,300000015963906
Portsmouth City Council,PCC,Support Service / Transparency Costs Unallocated,AMS,"Housing, Neighbourhood and Building Services",Supplies and Services,Communications and computing,02-Nov-21,6536729,12.63,PUBLIC LIMITED COMPANY,BRITISH TELECOMMUNICATIONS PLC,300000015963906
Portsmouth City Council,PCC,Costs below Net Cost of Services,Trading,Regeneration,Supplies and Services,Communications and computing,02-Nov-21,6536729,12.63,PUBLIC LIMITED COMPANY,BRITISH TELECOMMUNICATIONS PLC,300000015963906
Portsmouth City Council,PCC,Adult Social Care,Support with Memory and Cognition Older People (65 - 74),Adult Services,Supplies and Services,"Printing, stationery and general office expenses",19-Nov-21,6540054,-2.4,SUPPLIER,AMAZON BUSINESS EU SARL,300000020473393
Portsmouth City Council,PCC,Adult Social Care,Support with Memory and Cognition Older People (65 - 74),Adult Services,Supplies and Services,"Printing, stationery and general office expenses",19-Nov-21,6540054,5.3,SUPPLIER,AMAZON BUSINESS EU SARL,300000020473393
Portsmouth City Council,PCC,Housing Revenue Account,Supervision and Management,"Housing, Neighbourhood and Building Services",Supplies and Services,Communications and computing,02-Nov-21,6536729,12.63,PUBLIC LIMITED COMPANY,BRITISH TELECOMMUNICATIONS PLC,300000015963906
Portsmouth City Council,PCC,Housing Revenue Account,Supervision and Management,"Housing, Neighbourhood and Building Services",Supplies and Services,Communications and computing,02-Nov-21,6536729,12.63,PUBLIC LIMITED COMPANY,BRITISH TELECOMMUNICATIONS PLC,300000015963906
Portsmouth City Council,PCC,Housing Revenue Account,Supervision and Management,"Housing, Neighbourhood and Building Services",Supplies and Services,Communications and computing,02-Nov-21,6536729,12.63,PUBLIC LIMITED COMPANY,BRITISH TELECOMMUNICATIONS PLC,300000015963906
Portsmouth City Council,PCC,Housing Revenue Account,Supervision and Management,"Housing, Neighbourhood and Building Services",Supplies and Services,Communications and computing,02-Nov-21,6536729,12.63,PUBLIC LIMITED COMPANY,BRITISH TELECOMMUNICATIONS PLC,300000015963906
Portsmouth City Council,PCC,Housing Revenue Account,Supervision and Management,"Housing, Neighbourhood and Building Services",Supplies and Services,Communications and computing,02-Nov-21,6536729,12.63,PUBLIC LIMITED COMPANY,BRITISH TELECOMMUNICATIONS PLC,300000015963906
Portsmouth City Council,PCC,Housing Revenue Account,Supervision and Management,"Housing, Neighbourhood and Building Services",Supplies and Services,Communications and computing,02-Nov-21,6536729,12.63,PUBLIC LIMITED COMPANY,BRITISH TELECOMMUNICATIONS PLC,300000015963906
Portsmouth City Council,PCC,Housing Revenue Account,Supervision and Management,"Housing, Neighbourhood and Building Services",Supplies and Services,Communications and computing,02-Nov-21,6536729,12.63,PUBLIC LIMITED COMPANY,BRITISH TELECOMMUNICATIONS PLC,300000015963906
Portsmouth City Council,PCC,Housing Revenue Account,Supervision and Management,"Housing, Neighbourhood and Building Services",Supplies and Services,Communications and computing,02-Nov-21,6536729,12.63,PUBLIC LIMITED COMPANY,BRITISH TELECOMMUNICATIONS PLC,300000015963906
Portsmouth City Council,PCC,Housing Revenue Account,Supervision and Management,"Housing, Neighbourhood and Building Services",Supplies and Services,Communications and computing,02-Nov-21,6536729,12.63,PUBLIC LIMITED COMPANY,BRITISH TELECOMMUNICATIONS PLC,300000015963906
Portsmouth City Council,PCC,Housing Revenue Account,Supervision and Management,"Housing, Neighbourhood and Building Services",Supplies and Services,Communications and computing,02-Nov-21,6536729,12.63,PUBLIC LIMITED COMPANY,BRITISH TELECOMMUNICATIONS PLC,300000015963906
Portsmouth City Council,PCC,Housing Revenue Account,Supervision and Management,"Housing, Neighbourhood and Building Services",Supplies and Services,Communications and computing,02-Nov-21,6536729,12.63,PUBLIC LIMITED COMPANY,BRITISH TELECOMMUNICATIONS PLC,300000015963906
Portsmouth City Council,PCC,Housing Revenue Account,Supervision and Management,"Housing, Neighbourhood and Building Services",Supplies and Services,Communications and computing,02-Nov-21,6536729,12.63,PUBLIC LIMITED COMPANY,BRITISH TELECOMMUNICATIONS PLC,300000015963906
Portsmouth City Council,PCC,Housing Revenue Account,Supervision and Management,"Housing, Neighbourhood and Building Services",Supplies and Services,Communications and computing,02-Nov-21,6536729,12.63,PUBLIC LIMITED COMPANY,BRITISH TELECOMMUNICATIONS PLC,300000015963906
Portsmouth City Council,PCC,Housing Revenue Account,Supervision and Management,"Housing, Neighbourhood and Building Services",Supplies and Services,Communications and computing,02-Nov-21,6536729,12.63,PUBLIC LIMITED COMPANY,BRITISH TELECOMMUNICATIONS PLC,300000015963906
Portsmouth City Council,PCC,Housing Revenue Account,Supervision and Management,"Housing, Neighbourhood and Building Services",Supplies and Services,Communications and computing,02-Nov-21,6536729,12.63,PUBLIC LIMITED COMPANY,BRITISH TELECOMMUNICATIONS PLC,300000015963906
Portsmouth City Council,PCC,Housing Revenue Account,Supervision and Management,"Housing, Neighbourhood and Building Services",Supplies and Services,Communications and computing,02-Nov-21,6536729,12.63,PUBLIC LIMITED COMPANY,BRITISH TELECOMMUNICATIONS PLC,300000015963906
Portsmouth City Council,PCC,Housing Revenue Account,Supervision and Management,"Housing, Neighbourhood and Building Services",Supplies and Services,Communications and computing,02-Nov-21,6536729,12.63,PUBLIC LIMITED COMPANY,BRITISH TELECOMMUNICATIONS PLC,300000015963906
Portsmouth City Council,PCC,Housing Revenue Account,Supervision and Management,"Housing, Neighbourhood and Building Services",Supplies and Services,Communications and computing,02-Nov-21,6536729,12.63,PUBLIC LIMITED COMPANY,BRITISH TELECOMMUNICATIONS PLC,300000015963906
Portsmouth City Council,PCC,Housing Revenue Account,Supervision and Management,"Housing, Neighbourhood and Building Services",Supplies and Services,Communications and computing,02-Nov-21,6536729,12.63,PUBLIC LIMITED COMPANY,BRITISH TELECOMMUNICATIONS PLC,300000015963906
Portsmouth City Council,PCC,Housing Revenue Account,Supervision and Management,"Housing, Neighbourhood and Building Services",Supplies and Services,Communications and computing,02-Nov-21,6536729,12.63,PUBLIC LIMITED COMPANY,BRITISH TELECOMMUNICATIONS PLC,300000015963906
Portsmouth City Council,PCC,Housing Revenue Account,Special Services,"Housing, Neighbourhood and Building Services",Supplies and Services,Communications and computing,02-Nov-21,6536729,12.63,PUBLIC LIMITED COMPANY,BRITISH TELECOMMUNICATIONS PLC,300000015963906
Portsmouth City Council,PCC,Housing Revenue Account,Special Services,"Housing, Neighbourhood and Building Services",Supplies and Services,Communications and computing,02-Nov-21,6536729,12.63,PUBLIC LIMITED COMPANY,BRITISH TELECOMMUNICATIONS PLC,300000015963906
Portsmouth City Council,PCC,Housing Revenue Account,Special Services,"Housing, Neighbourhood and Building Services",Supplies and Services,Communications and computing,02-Nov-21,6536729,12.63,PUBLIC LIMITED COMPANY,BRITISH TELECOMMUNICATIONS PLC,300000015963906
Portsmouth City Council,PCC,Housing Revenue Account,Special Services,"Housing, Neighbourhood and Building Services",Supplies and Services,Communications and computing,02-Nov-21,6536729,12.63,PUBLIC LIMITED COMPANY,BRITISH TELECOMMUNICATIONS PLC,300000015963906
Portsmouth City Council,PCC,Housing Revenue Account,Special Services,"Housing, Neighbourhood and Building Services",Supplies and Services,Communications and computing,02-Nov-21,6536729,12.63,PUBLIC LIMITED COMPANY,BRITISH TELECOMMUNICATIONS PLC,300000015963906
Portsmouth City Council,PCC,Housing Revenue Account,Special Services,"Housing, Neighbourhood and Building Services",Supplies and Services,Communications and computing,02-Nov-21,6536729,12.63,PUBLIC LIMITED COMPANY,BRITISH TELECOMMUNICATIONS PLC,300000015963906
Portsmouth City Council,PCC,Housing Revenue Account,Special Services,"Housing, Neighbourhood and Building Services",Supplies and Services,Communications and computing,02-Nov-21,6536729,12.63,PUBLIC LIMITED COMPANY,BRITISH TELECOMMUNICATIONS PLC,300000015963906
Portsmouth City Council,PCC,Housing Revenue Account,Special Services,"Housing, Neighbourhood and Building Services",Supplies and Services,Communications and computing,02-Nov-21,6536729,12.63,PUBLIC LIMITED COMPANY,BRITISH TELECOMMUNICATIONS PLC,300000015963906
Portsmouth City Council,PCC,Housing Revenue Account,Special Services,"Housing, Neighbourhood and Building Services",Supplies and Services,Communications and computing,02-Nov-21,6536729,12.63,PUBLIC LIMITED COMPANY,BRITISH TELECOMMUNICATIONS PLC,300000015963906
Portsmouth City Council,PCC,Housing Revenue Account,Special Services,"Housing, Neighbourhood and Building Services",Supplies and Services,Communications and computing,02-Nov-21,6536729,12.63,PUBLIC LIMITED COMPANY,BRITISH TELECOMMUNICATIONS PLC,300000015963906
Portsmouth City Council,PCC,Housing Revenue Account,Special Services,"Housing, Neighbourhood and Building Services",Supplies and Services,Communications and computing,02-Nov-21,6536729,12.63,PUBLIC LIMITED COMPANY,BRITISH TELECOMMUNICATIONS PLC,300000015963906
Portsmouth City Council,PCC,Housing Revenue Account,Special Services,"Housing, Neighbourhood and Building Services",Supplies and Services,Communications and computing,02-Nov-21,6536729,12.63,PUBLIC LIMITED COMPANY,BRITISH TELECOMMUNICATIONS PLC,300000015963906
Portsmouth City Council,PCC,Housing Revenue Account,Special Services,"Housing, Neighbourhood and Building Services",Supplies and Services,Communications and computing,02-Nov-21,6536729,12.63,PUBLIC LIMITED COMPANY,BRITISH TELECOMMUNICATIONS PLC,300000015963906
Portsmouth City Council,PCC,Housing Revenue Account,Special Services,"Housing, Neighbourhood and Building Services",Supplies and Services,Communications and computing,02-Nov-21,6536729,12.63,PUBLIC LIMITED COMPANY,BRITISH TELECOMMUNICATIONS PLC,300000015963906
Portsmouth City Council,PCC,Housing Revenue Account,Special Services,"Housing, Neighbourhood and Building Services",Supplies and Services,Communications and computing,02-Nov-21,6536729,12.63,PUBLIC LIMITED COMPANY,BRITISH TELECOMMUNICATIONS PLC,300000015963906
Portsmouth City Council,PCC,Housing Revenue Account,Special Services,"Housing, Neighbourhood and Building Services",Supplies and Services,Communications and computing,02-Nov-21,6536729,12.63,PUBLIC LIMITED COMPANY,BRITISH TELECOMMUNICATIONS PLC,300000015963906
Portsmouth City Council,PCC,Housing Revenue Account,Special Services,"Housing, Neighbourhood and Building Services",Supplies and Services,Communications and computing,02-Nov-21,6536729,12.63,PUBLIC LIMITED COMPANY,BRITISH TELECOMMUNICATIONS PLC,300000015963906
Portsmouth City Council,PCC,Housing Revenue Account,Special Services,"Housing, Neighbourhood and Building Services",Supplies and Services,Communications and computing,02-Nov-21,6536729,12.63,PUBLIC LIMITED COMPANY,BRITISH TELECOMMUNICATIONS PLC,300000015963906
Portsmouth City Council,PCC,Housing Revenue Account,Special Services,"Housing, Neighbourhood and Building Services",Supplies and Services,Communications and computing,02-Nov-21,6536729,12.63,PUBLIC LIMITED COMPANY,BRITISH TELECOMMUNICATIONS PLC,300000015963906
Portsmouth City Council,PCC,Housing Revenue Account,Special Services,"Housing, Neighbourhood and Building Services",Supplies and Services,Communications and computing,02-Nov-21,6536729,12.63,PUBLIC LIMITED COMPANY,BRITISH TELECOMMUNICATIONS PLC,300000015963906
Portsmouth City Council,PCC,Housing Revenue Account,Special Services,"Housing, Neighbourhood and Building Services",Supplies and Services,Communications and computing,02-Nov-21,6536729,12.63,PUBLIC LIMITED COMPANY,BRITISH TELECOMMUNICATIONS PLC,300000015963906
Portsmouth City Council,PCC,Housing Revenue Account,Special Services,"Housing, Neighbourhood and Building Services",Supplies and Services,Communications and computing,02-Nov-21,6536729,12.63,PUBLIC LIMITED COMPANY,BRITISH TELECOMMUNICATIONS PLC,300000015963906
Portsmouth City Council,PCC,Housing Revenue Account,Special Services,"Housing, Neighbourhood and Building Services",Supplies and Services,Communications and computing,02-Nov-21,6536729,12.63,PUBLIC LIMITED COMPANY,BRITISH TELECOMMUNICATIONS PLC,300000015963906
Portsmouth City Council,PCC,Housing Revenue Account,Special Services,"Housing, Neighbourhood and Building Services",Supplies and Services,Communications and computing,02-Nov-21,6536729,12.63,PUBLIC LIMITED COMPANY,BRITISH TELECOMMUNICATIONS PLC,300000015963906
Portsmouth City Council,PCC,Housing Revenue Account,Special Services,"Housing, Neighbourhood and Building Services",Supplies and Services,Communications and computing,02-Nov-21,6536729,12.63,PUBLIC LIMITED COMPANY,BRITISH TELECOMMUNICATIONS PLC,300000015963906
Portsmouth City Council,PCC,Housing Revenue Account,Special Services,"Housing, Neighbourhood and Building Services",Supplies and Services,Communications and computing,02-Nov-21,6536729,12.63,PUBLIC LIMITED COMPANY,BRITISH TELECOMMUNICATIONS PLC,300000015963906
Portsmouth City Council,PCC,Housing Revenue Account,Special Services,"Housing, Neighbourhood and Building Services",Supplies and Services,Communications and computing,02-Nov-21,6536729,12.63,PUBLIC LIMITED COMPANY,BRITISH TELECOMMUNICATIONS PLC,300000015963906
Portsmouth City Council,PCC,Housing Revenue Account,Special Services,"Housing, Neighbourhood and Building Services",Supplies and Services,Communications and computing,02-Nov-21,6536729,12.63,PUBLIC LIMITED COMPANY,BRITISH TELECOMMUNICATIONS PLC,300000015963906
Portsmouth City Council,PCC,Housing Revenue Account,Special Services,"Housing, Neighbourhood and Building Services",Supplies and Services,Communications and computing,02-Nov-21,6536729,12.63,PUBLIC LIMITED COMPANY,BRITISH TELECOMMUNICATIONS PLC,300000015963906
Portsmouth City Council,PCC,Housing Revenue Account,Special Services,"Housing, Neighbourhood and Building Services",Supplies and Services,Communications and computing,02-Nov-21,6536729,12.63,PUBLIC LIMITED COMPANY,BRITISH TELECOMMUNICATIONS PLC,300000015963906
Portsmouth City Council,PCC,Housing Revenue Account,Special Services,"Housing, Neighbourhood and Building Services",Supplies and Services,Communications and computing,02-Nov-21,6536729,12.63,PUBLIC LIMITED COMPANY,BRITISH TELECOMMUNICATIONS PLC,300000015963906
Portsmouth City Council,PCC,Housing Revenue Account,Repairs and Maintenance,"Housing, Neighbourhood and Building Services",Supplies and Services,Communications and computing,02-Nov-21,6536729,12.63,PUBLIC LIMITED COMPANY,BRITISH TELECOMMUNICATIONS PLC,300000015963906
Portsmouth City Council,PCC,Housing Revenue Account,Repairs and Maintenance,"Housing, Neighbourhood and Building Services",Supplies and Services,Communications and computing,02-Nov-21,6536729,12.63,PUBLIC LIMITED COMPANY,BRITISH TELECOMMUNICATIONS PLC,300000015963906
Portsmouth City Council,PCC,Housing Revenue Account,Repairs and Maintenance,"Housing, Neighbourhood and Building Services",Supplies and Services,Communications and computing,02-Nov-21,6536729,12.63,PUBLIC LIMITED COMPANY,BRITISH TELECOMMUNICATIONS PLC,300000015963906
Portsmouth City Council,PCC,Housing Revenue Account,Repairs and Maintenance,"Housing, Neighbourhood and Building Services",Supplies and Services,Communications and computing,02-Nov-21,6536729,12.63,PUBLIC LIMITED COMPANY,BRITISH TELECOMMUNICATIONS PLC,300000015963906
Portsmouth City Council,PCC,Housing Revenue Account,Repairs and Maintenance,"Housing, Neighbourhood and Building Services",Supplies and Services,Communications and computing,02-Nov-21,6536729,12.63,PUBLIC LIMITED COMPANY,BRITISH TELECOMMUNICATIONS PLC,300000015963906
Portsmouth City Council,PCC,Housing Revenue Account,Special Services,"Housing, Neighbourhood and Building Services",Supplies and Services,Communications and computing,02-Nov-21,6536729,12.63,PUBLIC LIMITED COMPANY,BRITISH TELECOMMUNICATIONS PLC,300000015963906
Portsmouth City Council,PCC,Environmental and Regulatory Services,"Cemetery, Cremation and Mortuary Services","Culture, Leisure & Regulatory Services",Supplies and Services,Communications and computing,02-Nov-21,6536729,12.66,PUBLIC LIMITED COMPANY,BRITISH TELECOMMUNICATIONS PLC,300000015963906
Portsmouth City Council,PCC,Cultural and Related Services,Open Spaces,"Culture, Leisure & Regulatory Services",Supplies and Services,Communications and computing,02-Nov-21,6536729,12.69,PUBLIC LIMITED COMPANY,BRITISH TELECOMMUNICATIONS PLC,300000015963906
Portsmouth City Council,PCC,Planning Services,Business support,Regeneration,Supplies and Services,Communications and computing,02-Nov-21,6536729,12.71,PUBLIC LIMITED COMPANY,BRITISH TELECOMMUNICATIONS PLC,300000015963906
Portsmouth City Council,PCC,Housing Revenue Account,Repairs and Maintenance,"Housing, Neighbourhood and Building Services",Supplies and Services,Communications and computing,02-Nov-21,6536729,12.72,PUBLIC LIMITED COMPANY,BRITISH TELECOMMUNICATIONS PLC,300000015963906
Portsmouth City Council,PCC,Cultural and Related Services,Tourism,Corporate Services,Supplies and Services,Communications and computing,02-Nov-21,6536729,12.75,PUBLIC LIMITED COMPANY,BRITISH TELECOMMUNICATIONS PLC,300000015963906
Portsmouth City Council,PCC,Housing Revenue Account,Special Services,"Housing, Neighbourhood and Building Services",Supplies and Services,Communications and computing,02-Nov-21,6536729,13.04,PUBLIC LIMITED COMPANY,BRITISH TELECOMMUNICATIONS PLC,300000015963906
Portsmouth City Council,PCC,Cultural and Related Services,Culture and Heritage,"Culture, Leisure & Regulatory Services",Supplies and Services,Communications and computing,02-Nov-21,6536729,13.48,PUBLIC LIMITED COMPANY,BRITISH TELECOMMUNICATIONS PLC,300000015963906
Portsmouth City Council,PCC,Cultural and Related Services,Culture and Heritage,"Culture, Leisure & Regulatory Services",Supplies and Services,Communications and computing,02-Nov-21,6536729,13.6,PUBLIC LIMITED COMPANY,BRITISH TELECOMMUNICATIONS PLC,300000015963906
Portsmouth City Council,PCC,Cultural and Related Services,Culture and Heritage,"Culture, Leisure & Regulatory Services",Supplies and Services,Communications and computing,02-Nov-21,6536729,13.89,PUBLIC LIMITED COMPANY,BRITISH TELECOMMUNICATIONS PLC,300000015963906
Portsmouth City Council,PCC,Housing Revenue Account,Supervision and Management,"Housing, Neighbourhood and Building Services",Supplies and Services,Communications and computing,02-Nov-21,6536729,14.19,PUBLIC LIMITED COMPANY,BRITISH TELECOMMUNICATIONS PLC,300000015963906
Portsmouth City Council,PCC,Housing Revenue Account,Special Services,"Housing, Neighbourhood and Building Services",Supplies and Services,Communications and computing,02-Nov-21,6536729,14.19,PUBLIC LIMITED COMPANY,BRITISH TELECOMMUNICATIONS PLC,300000015963906
Portsmouth City Council,PCC,Cultural and Related Services,Culture and Heritage,"Culture, Leisure & Regulatory Services",Supplies and Services,Communications and computing,02-Nov-21,6536729,14.71,PUBLIC LIMITED COMPANY,BRITISH TELECOMMUNICATIONS PLC,300000015963906
Portsmouth City Council,PCC,Children's and Education Services,Primary Schools,Children's Services and Education,Supplies and Services,Communications and computing,02-Nov-21,6536729,14.8,PUBLIC LIMITED COMPANY,BRITISH TELECOMMUNICATIONS PLC,300000015963906
Portsmouth City Council,PCC,Children's and Education Services,Primary Schools,Children's Services and Education,Supplies and Services,Communications and computing,02-Nov-21,6536729,15,PUBLIC LIMITED COMPANY,BRITISH TELECOMMUNICATIONS PLC,300000015963906
Portsmouth City Council,PCC,Housing Revenue Account,Special Services,"Housing, Neighbourhood and Building Services",Supplies and Services,Communications and computing,02-Nov-21,6536729,15.7,PUBLIC LIMITED COMPANY,BRITISH TELECOMMUNICATIONS PLC,300000015963906
Portsmouth City Council,PCC,Housing Revenue Account,Special Services,"Housing, Neighbourhood and Building Services",Supplies and Services,Communications and computing,02-Nov-21,6536729,15.8,PUBLIC LIMITED COMPANY,BRITISH TELECOMMUNICATIONS PLC,300000015963906
Portsmouth City Council,PCC,Planning Services,Business support,Regeneration,Supplies and Services,Communications and computing,02-Nov-21,6536729,15.87,PUBLIC LIMITED COMPANY,BRITISH TELECOMMUNICATIONS PLC,300000015963906
Portsmouth City Council,PCC,Adult Social Care,Support with Memory and Cognition Older People (65 - 74),Adult Services,Supplies and Services,"Printing, stationery and general office expenses",19-Nov-21,6540054,20.49,SUPPLIER,AMAZON BUSINESS EU SARL,300000020473393
Portsmouth City Council,PCC,Housing Revenue Account,Special Services,"Housing, Neighbourhood and Building Services",Supplies and Services,Communications and computing,02-Nov-21,6536729,17.33,PUBLIC LIMITED COMPANY,BRITISH TELECOMMUNICATIONS PLC,300000015963906
Portsmouth City Council,PCC,Housing Revenue Account,Special Services,"Housing, Neighbourhood and Building Services",Supplies and Services,Communications and computing,02-Nov-21,6536729,17.41,PUBLIC LIMITED COMPANY,BRITISH TELECOMMUNICATIONS PLC,300000015963906
Portsmouth City Council,PCC,Housing Revenue Account,Special Services,"Housing, Neighbourhood and Building Services",Supplies and Services,Communications and computing,02-Nov-21,6536729,17.46,PUBLIC LIMITED COMPANY,BRITISH TELECOMMUNICATIONS PLC,300000015963906
Portsmouth City Council,PCC,Housing Revenue Account,Special Services,"Housing, Neighbourhood and Building Services",Supplies and Services,Communications and computing,02-Nov-21,6536729,17.5,PUBLIC LIMITED COMPANY,BRITISH TELECOMMUNICATIONS PLC,300000015963906
Portsmouth City Council,PCC,Housing Revenue Account,Special Services,"Housing, Neighbourhood and Building Services",Supplies and Services,Communications and computing,02-Nov-21,6536729,17.57,PUBLIC LIMITED COMPANY,BRITISH TELECOMMUNICATIONS PLC,300000015963906
Portsmouth City Council,PCC,Housing Revenue Account,Special Services,"Housing, Neighbourhood and Building Services",Supplies and Services,Communications and computing,02-Nov-21,6536729,17.57,PUBLIC LIMITED COMPANY,BRITISH TELECOMMUNICATIONS PLC,300000015963906
Portsmouth City Council,PCC,Housing Revenue Account,Special Services,"Housing, Neighbourhood and Building Services",Supplies and Services,Communications and computing,02-Nov-21,6536729,17.76,PUBLIC LIMITED COMPANY,BRITISH TELECOMMUNICATIONS PLC,300000015963906
Portsmouth City Council,PCC,Adult Social Care,Support with Memory and Cognition Older People (65 - 74),Adult Services,Supplies and Services,"Printing, stationery and general office expenses",19-Nov-21,6540054,22.15,SUPPLIER,AMAZON BUSINESS EU SARL,300000020473393
Portsmouth City Council,PCC,Cultural and Related Services,Culture and Heritage,"Culture, Leisure & Regulatory Services",Supplies and Services,Communications and computing,02-Nov-21,6536729,17.8,PUBLIC LIMITED COMPANY,BRITISH TELECOMMUNICATIONS PLC,300000015963906
Portsmouth City Council,PCC,Housing Revenue Account,Special Services,"Housing, Neighbourhood and Building Services",Supplies and Services,Communications and computing,02-Nov-21,6536729,17.94,PUBLIC LIMITED COMPANY,BRITISH TELECOMMUNICATIONS PLC,300000015963906
Portsmouth City Council,PCC,Cultural and Related Services,Culture and Heritage,"Culture, Leisure & Regulatory Services",Supplies and Services,Communications and computing,02-Nov-21,6536729,18.09,PUBLIC LIMITED COMPANY,BRITISH TELECOMMUNICATIONS PLC,300000015963906
Portsmouth City Council,PCC,Housing Revenue Account,Special Services,"Housing, Neighbourhood and Building Services",Supplies and Services,Communications and computing,02-Nov-21,6536729,18.18,PUBLIC LIMITED COMPANY,BRITISH TELECOMMUNICATIONS PLC,300000015963906
Portsmouth City Council,PCC,Housing Revenue Account,Special Services,"Housing, Neighbourhood and Building Services",Supplies and Services,Communications and computing,02-Nov-21,6536729,18.31,PUBLIC LIMITED COMPANY,BRITISH TELECOMMUNICATIONS PLC,300000015963906
Portsmouth City Council,PCC,Housing Revenue Account,Supervision and Management,"Housing, Neighbourhood and Building Services",Supplies and Services,Communications and computing,02-Nov-21,6536729,18.38,PUBLIC LIMITED COMPANY,BRITISH TELECOMMUNICATIONS PLC,300000015963906
Portsmouth City Council,PCC,Housing Revenue Account,Special Services,"Housing, Neighbourhood and Building Services",Supplies and Services,Communications and computing,02-Nov-21,6536729,18.41,PUBLIC LIMITED COMPANY,BRITISH TELECOMMUNICATIONS PLC,300000015963906
Portsmouth City Council,PCC,Housing Revenue Account,Special Services,"Housing, Neighbourhood and Building Services",Supplies and Services,Communications and computing,02-Nov-21,6536729,18.43,PUBLIC LIMITED COMPANY,BRITISH TELECOMMUNICATIONS PLC,300000015963906
Portsmouth City Council,PCC,Housing Revenue Account,Special Services,"Housing, Neighbourhood and Building Services",Supplies and Services,Communications and computing,02-Nov-21,6536729,18.43,PUBLIC LIMITED COMPANY,BRITISH TELECOMMUNICATIONS PLC,300000015963906
Portsmouth City Council,PCC,Housing Revenue Account,Special Services,"Housing, Neighbourhood and Building Services",Supplies and Services,Communications and computing,02-Nov-21,6536729,18.45,PUBLIC LIMITED COMPANY,BRITISH TELECOMMUNICATIONS PLC,300000015963906
Portsmouth City Council,PCC,Housing Revenue Account,Special Services,"Housing, Neighbourhood and Building Services",Supplies and Services,Communications and computing,02-Nov-21,6536729,18.49,PUBLIC LIMITED COMPANY,BRITISH TELECOMMUNICATIONS PLC,300000015963906
Portsmouth City Council,PCC,Housing Revenue Account,Special Services,"Housing, Neighbourhood and Building Services",Supplies and Services,Communications and computing,02-Nov-21,6536729,18.55,PUBLIC LIMITED COMPANY,BRITISH TELECOMMUNICATIONS PLC,300000015963906
Portsmouth City Council,PCC,Housing Revenue Account,Special Services,"Housing, Neighbourhood and Building Services",Supplies and Services,Communications and computing,02-Nov-21,6536729,19.14,PUBLIC LIMITED COMPANY,BRITISH TELECOMMUNICATIONS PLC,300000015963906
Portsmouth City Council,PCC,Housing Revenue Account,Special Services,"Housing, Neighbourhood and Building Services",Supplies and Services,Communications and computing,02-Nov-21,6536729,19.21,PUBLIC LIMITED COMPANY,BRITISH TELECOMMUNICATIONS PLC,300000015963906
Portsmouth City Council,PCC,Housing Revenue Account,Repairs and Maintenance,"Housing, Neighbourhood and Building Services",Supplies and Services,Communications and computing,02-Nov-21,6536729,19.3,PUBLIC LIMITED COMPANY,BRITISH TELECOMMUNICATIONS PLC,300000015963906
Portsmouth City Council,PCC,Housing Revenue Account,Special Services,"Housing, Neighbourhood and Building Services",Supplies and Services,Communications and computing,02-Nov-21,6536729,19.37,PUBLIC LIMITED COMPANY,BRITISH TELECOMMUNICATIONS PLC,300000015963906
Portsmouth City Council,PCC,Housing Revenue Account,Special Services,"Housing, Neighbourhood and Building Services",Supplies and Services,Communications and computing,02-Nov-21,6536729,19.57,PUBLIC LIMITED COMPANY,BRITISH TELECOMMUNICATIONS PLC,300000015963906
Portsmouth City Council,PCC,Housing Revenue Account,Supervision and Management,"Housing, Neighbourhood and Building Services",Supplies and Services,Communications and computing,02-Nov-21,6536729,19.8,PUBLIC LIMITED COMPANY,BRITISH TELECOMMUNICATIONS PLC,300000015963906
Portsmouth City Council,PCC,Housing Revenue Account,Special Services,"Housing, Neighbourhood and Building Services",Supplies and Services,Communications and computing,02-Nov-21,6536729,20.04,PUBLIC LIMITED COMPANY,BRITISH TELECOMMUNICATIONS PLC,300000015963906
Portsmouth City Council,PCC,Housing Revenue Account,Special Services,"Housing, Neighbourhood and Building Services",Supplies and Services,Communications and computing,02-Nov-21,6536729,20.16,PUBLIC LIMITED COMPANY,BRITISH TELECOMMUNICATIONS PLC,300000015963906
Portsmouth City Council,PCC,Housing Revenue Account,Special Services,"Housing, Neighbourhood and Building Services",Supplies and Services,Communications and computing,02-Nov-21,6536729,20.59,PUBLIC LIMITED COMPANY,BRITISH TELECOMMUNICATIONS PLC,300000015963906
Portsmouth City Council,PCC,Housing Revenue Account,Special Services,"Housing, Neighbourhood and Building Services",Supplies and Services,Communications and computing,02-Nov-21,6536729,21.34,PUBLIC LIMITED COMPANY,BRITISH TELECOMMUNICATIONS PLC,300000015963906
Portsmouth City Council,PCC,Housing Revenue Account,Special Services,"Housing, Neighbourhood and Building Services",Supplies and Services,Communications and computing,02-Nov-21,6536729,22.42,PUBLIC LIMITED COMPANY,BRITISH TELECOMMUNICATIONS PLC,300000015963906
Portsmouth City Council,PCC,Support Service / Transparency Costs Unallocated,Procurement,Regeneration,Supplies and Services,Communications and computing,02-Nov-21,6536729,22.9,PUBLIC LIMITED COMPANY,BRITISH TELECOMMUNICATIONS PLC,300000015963906
Portsmouth City Council,PCC,Housing Revenue Account,Special Services,"Housing, Neighbourhood and Building Services",Supplies and Services,Communications and computing,02-Nov-21,6536729,23.19,PUBLIC LIMITED COMPANY,BRITISH TELECOMMUNICATIONS PLC,300000015963906
Portsmouth City Council,PCC,Housing Revenue Account,Special Services,"Housing, Neighbourhood and Building Services",Supplies and Services,Communications and computing,02-Nov-21,6536729,24.79,PUBLIC LIMITED COMPANY,BRITISH TELECOMMUNICATIONS PLC,300000015963906
Portsmouth City Council,PCC,Housing Revenue Account,Special Services,"Housing, Neighbourhood and Building Services",Supplies and Services,Communications and computing,02-Nov-21,6536729,25.89,PUBLIC LIMITED COMPANY,BRITISH TELECOMMUNICATIONS PLC,300000015963906
Portsmouth City Council,PCC,Housing Revenue Account,Special Services,"Housing, Neighbourhood and Building Services",Supplies and Services,Communications and computing,02-Nov-21,6536729,26.48,PUBLIC LIMITED COMPANY,BRITISH TELECOMMUNICATIONS PLC,300000015963906
Portsmouth City Council,PCC,Housing Revenue Account,Special Services,"Housing, Neighbourhood and Building Services",Supplies and Services,Communications and computing,02-Nov-21,6536729,26.95,PUBLIC LIMITED COMPANY,BRITISH TELECOMMUNICATIONS PLC,300000015963906
Portsmouth City Council,PCC,Highways and Transport Services,Parking Services,Regeneration,Supplies and Services,Communications and computing,02-Nov-21,6536729,28.6,PUBLIC LIMITED COMPANY,BRITISH TELECOMMUNICATIONS PLC,300000015963906
Portsmouth City Council,PCC,Support Service / Transparency Costs Unallocated,Information Services,Corporate Services,Supplies and Services,Communications and computing,02-Nov-21,6536729,28.6,PUBLIC LIMITED COMPANY,BRITISH TELECOMMUNICATIONS PLC,300000015963906
Portsmouth City Council,PCC,Other,Suspense and Capital Schemes,Corporate Services,Supplies and Services,Communications and computing,02-Nov-21,6536729,28.6,PUBLIC LIMITED COMPANY,BRITISH TELECOMMUNICATIONS PLC,300000015963906
Portsmouth City Council,PCC,Housing Revenue Account,Supervision and Management,"Housing, Neighbourhood and Building Services",Supplies and Services,Communications and computing,02-Nov-21,6536729,28.6,PUBLIC LIMITED COMPANY,BRITISH TELECOMMUNICATIONS PLC,300000015963906
Portsmouth City Council,PCC,Housing Revenue Account,Supervision and Management,"Housing, Neighbourhood and Building Services",Supplies and Services,Communications and computing,02-Nov-21,6536729,28.6,PUBLIC LIMITED COMPANY,BRITISH TELECOMMUNICATIONS PLC,300000015963906
Portsmouth City Council,PCC,Housing Revenue Account,Special Services,"Housing, Neighbourhood and Building Services",Supplies and Services,Communications and computing,02-Nov-21,6536729,28.6,PUBLIC LIMITED COMPANY,BRITISH TELECOMMUNICATIONS PLC,300000015963906
Portsmouth City Council,PCC,Housing Revenue Account,Special Services,"Housing, Neighbourhood and Building Services",Supplies and Services,Communications and computing,02-Nov-21,6536729,28.6,PUBLIC LIMITED COMPANY,BRITISH TELECOMMUNICATIONS PLC,300000015963906
Portsmouth City Council,PCC,Housing Revenue Account,Repairs and Maintenance,"Housing, Neighbourhood and Building Services",Supplies and Services,Communications and computing,02-Nov-21,6536729,28.6,PUBLIC LIMITED COMPANY,BRITISH TELECOMMUNICATIONS PLC,300000015963906
Portsmouth City Council,PCC,Housing Revenue Account,Repairs and Maintenance,"Housing, Neighbourhood and Building Services",Supplies and Services,Communications and computing,02-Nov-21,6536729,28.6,PUBLIC LIMITED COMPANY,BRITISH TELECOMMUNICATIONS PLC,300000015963906
Portsmouth City Council,PCC,Housing Revenue Account,Repairs and Maintenance,"Housing, Neighbourhood and Building Services",Supplies and Services,Communications and computing,02-Nov-21,6536729,28.6,PUBLIC LIMITED COMPANY,BRITISH TELECOMMUNICATIONS PLC,300000015963906
Portsmouth City Council,PCC,Housing Revenue Account,Special Services,"Housing, Neighbourhood and Building Services",Supplies and Services,Communications and computing,02-Nov-21,6536729,28.85,PUBLIC LIMITED COMPANY,BRITISH TELECOMMUNICATIONS PLC,300000015963906
Portsmouth City Council,PCC,Housing Revenue Account,Special Services,"Housing, Neighbourhood and Building Services",Supplies and Services,Communications and computing,02-Nov-21,6536729,28.92,PUBLIC LIMITED COMPANY,BRITISH TELECOMMUNICATIONS PLC,300000015963906
Portsmouth City Council,PCC,Environmental and Regulatory Services,"Cemetery, Cremation and Mortuary Services","Culture, Leisure & Regulatory Services",Supplies and Services,Communications and computing,02-Nov-21,6536729,29.44,PUBLIC LIMITED COMPANY,BRITISH TELECOMMUNICATIONS PLC,300000015963906
Portsmouth City Council,PCC,Housing Revenue Account,Special Services,"Housing, Neighbourhood and Building Services",Supplies and Services,Communications and computing,02-Nov-21,6536729,30.59,PUBLIC LIMITED COMPANY,BRITISH TELECOMMUNICATIONS PLC,300000015963906
Portsmouth City Council,PCC,Adult Social Care,Learning Disability Support Adults (18 - 64),Adult Services,Supplies and Services,"Equipment, furniture and materials",12-Nov-21,6538678,34.15,SUPPLIER,AMAZON BUSINESS EU SARL,300000020473393
Portsmouth City Council,PCC,Children's and Education Services,Secondary Schools,Children's Services and Education,Supplies and Services,Communications and computing,02-Nov-21,6536729,31,PUBLIC LIMITED COMPANY,BRITISH TELECOMMUNICATIONS PLC,300000015963906
Portsmouth City Council,PCC,Children's and Education Services,Family Support Services,Children's Services and Education,Supplies and Services,Communications and computing,02-Nov-21,6536729,31,PUBLIC LIMITED COMPANY,BRITISH TELECOMMUNICATIONS PLC,300000015963906
Portsmouth City Council,PCC,Children's and Education Services,Children Looked After,Children's Services and Education,Supplies and Services,Communications and computing,02-Nov-21,6536729,31,PUBLIC LIMITED COMPANY,BRITISH TELECOMMUNICATIONS PLC,300000015963906
Portsmouth City Council,PCC,Highways and Transport Services,Parking Services,Regeneration,Supplies and Services,Communications and computing,02-Nov-21,6536729,31,PUBLIC LIMITED COMPANY,BRITISH TELECOMMUNICATIONS PLC,300000015963906
Portsmouth City Council,PCC,Cultural and Related Services,Culture and Heritage,"Culture, Leisure & Regulatory Services",Supplies and Services,Communications and computing,02-Nov-21,6536729,31,PUBLIC LIMITED COMPANY,BRITISH TELECOMMUNICATIONS PLC,300000015963906
Portsmouth City Council,PCC,Cultural and Related Services,Culture and Heritage,"Culture, Leisure & Regulatory Services",Supplies and Services,Communications and computing,02-Nov-21,6536729,31,PUBLIC LIMITED COMPANY,BRITISH TELECOMMUNICATIONS PLC,300000015963906
Portsmouth City Council,PCC,Other,Suspense and Capital Schemes,"Housing, Neighbourhood and Building Services",Supplies and Services,Communications and computing,02-Nov-21,6536729,31,PUBLIC LIMITED COMPANY,BRITISH TELECOMMUNICATIONS PLC,300000015963906
Portsmouth City Council,PCC,Support Service / Transparency Costs Unallocated,Procurement,Regeneration,Supplies and Services,Communications and computing,02-Nov-21,6536729,31,PUBLIC LIMITED COMPANY,BRITISH TELECOMMUNICATIONS PLC,300000015963906
Portsmouth City Council,PCC,Adult Social Care,Learning Disability Support Adults (18 - 64),Adult Services,Supplies and Services,"Equipment, furniture and materials",12-Nov-21,6538678,18.29,SUPPLIER,AMAZON BUSINESS EU SARL,300000020473393
Portsmouth City Council,PCC,Housing Revenue Account,Special Services,"Housing, Neighbourhood and Building Services",Supplies and Services,Communications and computing,02-Nov-21,6536729,31,PUBLIC LIMITED COMPANY,BRITISH TELECOMMUNICATIONS PLC,300000015963906
Portsmouth City Council,PCC,Housing Revenue Account,Special Services,"Housing, Neighbourhood and Building Services",Supplies and Services,Communications and computing,02-Nov-21,6536729,31,PUBLIC LIMITED COMPANY,BRITISH TELECOMMUNICATIONS PLC,300000015963906
Portsmouth City Council,PCC,Housing Revenue Account,Special Services,"Housing, Neighbourhood and Building Services",Supplies and Services,Communications and computing,02-Nov-21,6536729,31,PUBLIC LIMITED COMPANY,BRITISH TELECOMMUNICATIONS PLC,300000015963906
Portsmouth City Council,PCC,Housing Revenue Account,Special Services,"Housing, Neighbourhood and Building Services",Supplies and Services,Communications and computing,02-Nov-21,6536729,31.45,PUBLIC LIMITED COMPANY,BRITISH TELECOMMUNICATIONS PLC,300000015963906
Portsmouth City Council,PCC,Housing Revenue Account,Special Services,"Housing, Neighbourhood and Building Services",Supplies and Services,Communications and computing,02-Nov-21,6536729,31.45,PUBLIC LIMITED COMPANY,BRITISH TELECOMMUNICATIONS PLC,300000015963906
Portsmouth City Council,PCC,Housing Revenue Account,Special Services,"Housing, Neighbourhood and Building Services",Supplies and Services,Communications and computing,02-Nov-21,6536729,31.45,PUBLIC LIMITED COMPANY,BRITISH TELECOMMUNICATIONS PLC,300000015963906
Portsmouth City Council,PCC,Housing Revenue Account,Supervision and Management,"Housing, Neighbourhood and Building Services",Supplies and Services,Communications and computing,02-Nov-21,6536729,31.58,PUBLIC LIMITED COMPANY,BRITISH TELECOMMUNICATIONS PLC,300000015963906
Portsmouth City Council,PCC,Corporate and Democratic Core,Democratic Representation and Management,"Culture, Leisure & Regulatory Services",Supplies and Services,Communications and computing,02-Nov-21,6536729,31.6,PUBLIC LIMITED COMPANY,BRITISH TELECOMMUNICATIONS PLC,300000015963906
Portsmouth City Council,PCC,Housing Revenue Account,Supervision and Management,"Housing, Neighbourhood and Building Services",Supplies and Services,Communications and computing,02-Nov-21,6536729,31.6,PUBLIC LIMITED COMPANY,BRITISH TELECOMMUNICATIONS PLC,300000015963906
Portsmouth City Council,PCC,Corporate and Democratic Core,Democratic Representation and Management,"Culture, Leisure & Regulatory Services",Supplies and Services,Communications and computing,02-Nov-21,6536729,32.1,PUBLIC LIMITED COMPANY,BRITISH TELECOMMUNICATIONS PLC,300000015963906
Portsmouth City Council,PCC,Housing Revenue Account,Special Services,"Housing, Neighbourhood and Building Services",Supplies and Services,Communications and computing,02-Nov-21,6536729,32.1,PUBLIC LIMITED COMPANY,BRITISH TELECOMMUNICATIONS PLC,300000015963906
Portsmouth City Council,PCC,Housing Revenue Account,Special Services,"Housing, Neighbourhood and Building Services",Supplies and Services,Communications and computing,02-Nov-21,6536729,32.16,PUBLIC LIMITED COMPANY,BRITISH TELECOMMUNICATIONS PLC,300000015963906
Portsmouth City Council,PCC,Housing Revenue Account,Special Services,"Housing, Neighbourhood and Building Services",Supplies and Services,Communications and computing,02-Nov-21,6536729,33.39,PUBLIC LIMITED COMPANY,BRITISH TELECOMMUNICATIONS PLC,300000015963906
Portsmouth City Council,PCC,Housing Revenue Account,Special Services,"Housing, Neighbourhood and Building Services",Supplies and Services,Communications and computing,02-Nov-21,6536729,34.17,PUBLIC LIMITED COMPANY,BRITISH TELECOMMUNICATIONS PLC,300000015963906
Portsmouth City Council,PCC,Housing Revenue Account,Supervision and Management,"Housing, Neighbourhood and Building Services",Supplies and Services,Communications and computing,02-Nov-21,6536729,34.7,PUBLIC LIMITED COMPANY,BRITISH TELECOMMUNICATIONS PLC,300000015963906
Portsmouth City Council,PCC,Housing Revenue Account,Special Services,"Housing, Neighbourhood and Building Services",Supplies and Services,Communications and computing,02-Nov-21,6536729,34.97,PUBLIC LIMITED COMPANY,BRITISH TELECOMMUNICATIONS PLC,300000015963906
Portsmouth City Council,PCC,Housing Revenue Account,Special Services,"Housing, Neighbourhood and Building Services",Supplies and Services,Communications and computing,02-Nov-21,6536729,36.51,PUBLIC LIMITED COMPANY,BRITISH TELECOMMUNICATIONS PLC,300000015963906
Portsmouth City Council,PCC,Housing Revenue Account,Supervision and Management,"Housing, Neighbourhood and Building Services",Supplies and Services,Communications and computing,02-Nov-21,6536729,37.4,PUBLIC LIMITED COMPANY,BRITISH TELECOMMUNICATIONS PLC,300000015963906
Portsmouth City Council,PCC,Housing Revenue Account,Special Services,"Housing, Neighbourhood and Building Services",Supplies and Services,Communications and computing,02-Nov-21,6536729,38.51,PUBLIC LIMITED COMPANY,BRITISH TELECOMMUNICATIONS PLC,300000015963906
Portsmouth City Council,PCC,Cultural and Related Services,Culture and Heritage,"Culture, Leisure & Regulatory Services",Supplies and Services,Communications and computing,02-Nov-21,6536729,39.8,PUBLIC LIMITED COMPANY,BRITISH TELECOMMUNICATIONS PLC,300000015963906
Portsmouth City Council,PCC,Children's and Education Services,Primary Schools,Children's Services and Education,Supplies and Services,Communications and computing,02-Nov-21,6536729,40.53,PUBLIC LIMITED COMPANY,BRITISH TELECOMMUNICATIONS PLC,300000015963906
Portsmouth City Council,PCC,Housing Revenue Account,Special Services,"Housing, Neighbourhood and Building Services",Supplies and Services,Communications and computing,02-Nov-21,6536729,41.5,PUBLIC LIMITED COMPANY,BRITISH TELECOMMUNICATIONS PLC,300000015963906
Portsmouth City Council,PCC,Housing Revenue Account,Special Services,"Housing, Neighbourhood and Building Services",Supplies and Services,Communications and computing,02-Nov-21,6536729,41.5,PUBLIC LIMITED COMPANY,BRITISH TELECOMMUNICATIONS PLC,300000015963906
Portsmouth City Council,PCC,Housing Revenue Account,Special Services,"Housing, Neighbourhood and Building Services",Supplies and Services,Communications and computing,02-Nov-21,6536729,43.5,PUBLIC LIMITED COMPANY,BRITISH TELECOMMUNICATIONS PLC,300000015963906
Portsmouth City Council,PCC,Housing Revenue Account,Special Services,"Housing, Neighbourhood and Building Services",Supplies and Services,Communications and computing,02-Nov-21,6536729,43.82,PUBLIC LIMITED COMPANY,BRITISH TELECOMMUNICATIONS PLC,300000015963906
Portsmouth City Council,PCC,Housing Revenue Account,Special Services,"Housing, Neighbourhood and Building Services",Supplies and Services,Communications and computing,02-Nov-21,6536729,45.27,PUBLIC LIMITED COMPANY,BRITISH TELECOMMUNICATIONS PLC,300000015963906
Portsmouth City Council,PCC,Housing Revenue Account,Supervision and Management,"Housing, Neighbourhood and Building Services",Supplies and Services,Communications and computing,02-Nov-21,6536729,45.5,PUBLIC LIMITED COMPANY,BRITISH TELECOMMUNICATIONS PLC,300000015963906
Portsmouth City Council,PCC,Support Service / Transparency Costs Unallocated,Procurement,Regeneration,Supplies and Services,Communications and computing,02-Nov-21,6536729,46.6,PUBLIC LIMITED COMPANY,BRITISH TELECOMMUNICATIONS PLC,300000015963906
Portsmouth City Council,PCC,Housing Revenue Account,Special Services,"Housing, Neighbourhood and Building Services",Supplies and Services,Communications and computing,02-Nov-21,6536729,46.6,PUBLIC LIMITED COMPANY,BRITISH TELECOMMUNICATIONS PLC,300000015963906
Portsmouth City Council,PCC,Housing Revenue Account,Special Services,"Housing, Neighbourhood and Building Services",Supplies and Services,Communications and computing,02-Nov-21,6536729,46.6,PUBLIC LIMITED COMPANY,BRITISH TELECOMMUNICATIONS PLC,300000015963906
Portsmouth City Council,PCC,Housing Revenue Account,Special Services,"Housing, Neighbourhood and Building Services",Supplies and Services,Communications and computing,02-Nov-21,6536729,46.6,PUBLIC LIMITED COMPANY,BRITISH TELECOMMUNICATIONS PLC,300000015963906
Portsmouth City Council,PCC,Support Service / Transparency Costs Unallocated,Information Services,Corporate Services,Supplies and Services,Communications and computing,02-Nov-21,6536729,47.5,PUBLIC LIMITED COMPANY,BRITISH TELECOMMUNICATIONS PLC,300000015963906
Portsmouth City Council,PCC,Housing Revenue Account,Supervision and Management,"Housing, Neighbourhood and Building Services",Supplies and Services,Communications and computing,02-Nov-21,6536729,47.5,PUBLIC LIMITED COMPANY,BRITISH TELECOMMUNICATIONS PLC,300000015963906
Portsmouth City Council,PCC,Housing Revenue Account,Supervision and Management,"Housing, Neighbourhood and Building Services",Supplies and Services,Communications and computing,02-Nov-21,6536729,47.5,PUBLIC LIMITED COMPANY,BRITISH TELECOMMUNICATIONS PLC,300000015963906
Portsmouth City Council,PCC,Support Service / Transparency Costs Unallocated,Financial Services,Finance & Resources,Supplies and Services,Communications and computing,02-Nov-21,6536729,48.6,PUBLIC LIMITED COMPANY,BRITISH TELECOMMUNICATIONS PLC,300000015963906
Portsmouth City Council,PCC,Housing Revenue Account,Supervision and Management,"Housing, Neighbourhood and Building Services",Supplies and Services,Communications and computing,02-Nov-21,6536729,48.6,PUBLIC LIMITED COMPANY,BRITISH TELECOMMUNICATIONS PLC,300000015963906
Portsmouth City Council,PCC,Housing Revenue Account,Special Services,"Housing, Neighbourhood and Building Services",Supplies and Services,Communications and computing,02-Nov-21,6536729,48.6,PUBLIC LIMITED COMPANY,BRITISH TELECOMMUNICATIONS PLC,300000015963906
Portsmouth City Council,PCC,Housing Revenue Account,Special Services,"Housing, Neighbourhood and Building Services",Supplies and Services,Communications and computing,02-Nov-21,6536729,48.6,PUBLIC LIMITED COMPANY,BRITISH TELECOMMUNICATIONS PLC,300000015963906
Portsmouth City Council,PCC,Housing Revenue Account,Special Services,"Housing, Neighbourhood and Building Services",Supplies and Services,Communications and computing,02-Nov-21,6536729,48.6,PUBLIC LIMITED COMPANY,BRITISH TELECOMMUNICATIONS PLC,300000015963906
Portsmouth City Council,PCC,Housing Revenue Account,Special Services,"Housing, Neighbourhood and Building Services",Supplies and Services,Communications and computing,02-Nov-21,6536729,48.6,PUBLIC LIMITED COMPANY,BRITISH TELECOMMUNICATIONS PLC,300000015963906
Portsmouth City Council,PCC,Housing Revenue Account,Special Services,"Housing, Neighbourhood and Building Services",Supplies and Services,Communications and computing,02-Nov-21,6536729,48.6,PUBLIC LIMITED COMPANY,BRITISH TELECOMMUNICATIONS PLC,300000015963906
Portsmouth City Council,PCC,Housing Revenue Account,Special Services,"Housing, Neighbourhood and Building Services",Supplies and Services,Communications and computing,02-Nov-21,6536729,48.6,PUBLIC LIMITED COMPANY,BRITISH TELECOMMUNICATIONS PLC,300000015963906
Portsmouth City Council,PCC,Housing Revenue Account,Special Services,"Housing, Neighbourhood and Building Services",Supplies and Services,Communications and computing,02-Nov-21,6536729,48.6,PUBLIC LIMITED COMPANY,BRITISH TELECOMMUNICATIONS PLC,300000015963906
Portsmouth City Council,PCC,Housing Revenue Account,Special Services,"Housing, Neighbourhood and Building Services",Supplies and Services,Communications and computing,02-Nov-21,6536729,48.6,PUBLIC LIMITED COMPANY,BRITISH TELECOMMUNICATIONS PLC,300000015963906
Portsmouth City Council,PCC,Housing Revenue Account,Special Services,"Housing, Neighbourhood and Building Services",Supplies and Services,Communications and computing,02-Nov-21,6536729,48.6,PUBLIC LIMITED COMPANY,BRITISH TELECOMMUNICATIONS PLC,300000015963906
Portsmouth City Council,PCC,Housing Revenue Account,Special Services,"Housing, Neighbourhood and Building Services",Supplies and Services,Communications and computing,02-Nov-21,6536729,48.6,PUBLIC LIMITED COMPANY,BRITISH TELECOMMUNICATIONS PLC,300000015963906
Portsmouth City Council,PCC,Cultural and Related Services,Culture and Heritage,"Culture, Leisure & Regulatory Services",Supplies and Services,Communications and computing,02-Nov-21,6536729,53.3,PUBLIC LIMITED COMPANY,BRITISH TELECOMMUNICATIONS PLC,300000015963906
Portsmouth City Council,PCC,Support Service / Transparency Costs Unallocated,Financial Services,Finance & Resources,Supplies and Services,Communications and computing,02-Nov-21,6536729,53.3,PUBLIC LIMITED COMPANY,BRITISH TELECOMMUNICATIONS PLC,300000015963906
Portsmouth City Council,PCC,Housing Revenue Account,Supervision and Management,"Housing, Neighbourhood and Building Services",Supplies and Services,Communications and computing,02-Nov-21,6536729,53.3,PUBLIC LIMITED COMPANY,BRITISH TELECOMMUNICATIONS PLC,300000015963906
Portsmouth City Council,PCC,Housing Revenue Account,Special Services,"Housing, Neighbourhood and Building Services",Supplies and Services,Communications and computing,02-Nov-21,6536729,54.84,PUBLIC LIMITED COMPANY,BRITISH TELECOMMUNICATIONS PLC,300000015963906
Portsmouth City Council,PCC,Housing Revenue Account,Special Services,"Housing, Neighbourhood and Building Services",Supplies and Services,Communications and computing,02-Nov-21,6536729,55.13,PUBLIC LIMITED COMPANY,BRITISH TELECOMMUNICATIONS PLC,300000015963906
Portsmouth City Council,PCC,Housing Revenue Account,Special Services,"Housing, Neighbourhood and Building Services",Supplies and Services,Communications and computing,02-Nov-21,6536729,56.29,PUBLIC LIMITED COMPANY,BRITISH TELECOMMUNICATIONS PLC,300000015963906
Portsmouth City Council,PCC,Children's and Education Services,Family Support Services,Children's Services and Education,Supplies and Services,Communications and computing,02-Nov-21,6536729,57.2,PUBLIC LIMITED COMPANY,BRITISH TELECOMMUNICATIONS PLC,300000015963906
Portsmouth City Council,PCC,Housing Revenue Account,Special Services,"Housing, Neighbourhood and Building Services",Supplies and Services,Communications and computing,02-Nov-21,6536729,63.25,PUBLIC LIMITED COMPANY,BRITISH TELECOMMUNICATIONS PLC,300000015963906
Portsmouth City Council,PCC,Housing Revenue Account,Special Services,"Housing, Neighbourhood and Building Services",Supplies and Services,Communications and computing,02-Nov-21,6536729,65.4,PUBLIC LIMITED COMPANY,BRITISH TELECOMMUNICATIONS PLC,300000015963906
Portsmouth City Council,PCC,Housing Revenue Account,Special Services,"Housing, Neighbourhood and Building Services",Supplies and Services,Communications and computing,02-Nov-21,6536729,69.34,PUBLIC LIMITED COMPANY,BRITISH TELECOMMUNICATIONS PLC,300000015963906
Portsmouth City Council,PCC,Housing Revenue Account,Supervision and Management,"Housing, Neighbourhood and Building Services",Supplies and Services,Communications and computing,02-Nov-21,6536729,76.5,PUBLIC LIMITED COMPANY,BRITISH TELECOMMUNICATIONS PLC,300000015963906
Portsmouth City Council,PCC,Children's and Education Services,Secondary Schools,Children's Services and Education,Supplies and Services,Communications and computing,02-Nov-21,6536729,86.3,PUBLIC LIMITED COMPANY,BRITISH TELECOMMUNICATIONS PLC,300000015963906
Portsmouth City Council,PCC,Housing Revenue Account,Special Services,"Housing, Neighbourhood and Building Services",Supplies and Services,Communications and computing,02-Nov-21,6536729,88.48,PUBLIC LIMITED COMPANY,BRITISH TELECOMMUNICATIONS PLC,300000015963906
Portsmouth City Council,PCC,Cultural and Related Services,Culture and Heritage,"Culture, Leisure & Regulatory Services",Supplies and Services,Communications and computing,02-Nov-21,6536729,88.96,PUBLIC LIMITED COMPANY,BRITISH TELECOMMUNICATIONS PLC,300000015963906
Portsmouth City Council,PCC,Housing Revenue Account,Special Services,"Housing, Neighbourhood and Building Services",Supplies and Services,Communications and computing,02-Nov-21,6536729,97.2,PUBLIC LIMITED COMPANY,BRITISH TELECOMMUNICATIONS PLC,300000015963906
Portsmouth City Council,PCC,Housing Revenue Account,Special Services,"Housing, Neighbourhood and Building Services",Supplies and Services,Communications and computing,02-Nov-21,6536729,116.49,PUBLIC LIMITED COMPANY,BRITISH TELECOMMUNICATIONS PLC,300000015963906
Portsmouth City Council,PCC,Children's and Education Services,Primary Schools,Children's Services and Education,Supplies and Services,Communications and computing,02-Nov-21,6536729,124.81,PUBLIC LIMITED COMPANY,BRITISH TELECOMMUNICATIONS PLC,300000015963906
Portsmouth City Council,PCC,Support Service / Transparency Costs Unallocated,Financial Services,Finance & Resources,Supplies and Services,Communications and computing,02-Nov-21,6536729,313.96,PUBLIC LIMITED COMPANY,BRITISH TELECOMMUNICATIONS PLC,300000015963906
Portsmouth City Council,PCC,Children's and Education Services,Secondary Schools,Children's Services and Education,Supplies and Services,Communications and computing,02-Nov-21,6536729,428.61,PUBLIC LIMITED COMPANY,BRITISH TELECOMMUNICATIONS PLC,300000015963906
Portsmouth City Council,PCC,Highways and Transport Services,Parking Services,Regeneration,Supplies and Services,Communications and computing,02-Nov-21,6536729,"3,456.53",PUBLIC LIMITED COMPANY,BRITISH TELECOMMUNICATIONS PLC,300000015963906
Portsmouth City Council,PCC,Adult Social Care,Assistive Equipment & Technology,"Housing, Neighbourhood and Building Services",Supplies and Services,Communications and computing,12-Nov-21,6538678,-30.98,SUPPLIER,AMAZON BUSINESS EU SARL,300000020473393
Portsmouth City Council,PCC,Adult Social Care,Assistive Equipment & Technology,"Housing, Neighbourhood and Building Services",Supplies and Services,Communications and computing,12-Nov-21,6538678,258.2,SUPPLIER,AMAZON BUSINESS EU SARL,300000020473393
Portsmouth City Council,PCC,Adult Social Care,Support with Memory and Cognition Older People (65 - 74),Adult Services,Supplies and Services,"Printing, stationery and general office expenses",22-Nov-21,6540157,19.96,SUPPLIER,AMAZON BUSINESS EU SARL,300000020473393
Portsmouth City Council,PCC,Adult Social Care,Learning Disability Support Adults (18 - 64),Adult Services,Premises-Related Expenditure,Cleaning and domestic supplies,15-Nov-21,6538979,37.36,SUPPLIER,AMAZON BUSINESS EU SARL,300000020473393
Portsmouth City Council,PCC,Adult Social Care,Assistive Equipment & Technology,"Housing, Neighbourhood and Building Services",Premises-Related Expenditure,"Repairs, alterations and maintenance of buildings",30-Nov-21,6541777,6.04,SUPPLIER,AMAZON BUSINESS EU SARL,300000020473393
Portsmouth City Council,PCC,Adult Social Care,Assistive Equipment & Technology,"Housing, Neighbourhood and Building Services",Premises-Related Expenditure,"Repairs, alterations and maintenance of buildings",30-Nov-21,6541777,18.12,SUPPLIER,AMAZON BUSINESS EU SARL,300000020473393
Portsmouth City Council,PCC,Adult Social Care,Learning Disability Support Adults (18 - 64),Adult Services,Third Party Payments,Other establishments,12-Nov-21,6538669,"10,096.20",SUPPLIER,ASPENS CHARITIES,300000020464229
Portsmouth City Council,PCC,Adult Social Care,Learning Disability Support Adults (18 - 64),Adult Services,Third Party Payments,Other establishments,25-Nov-21,6541165,"1,621.71",SUPPLIER,ASSURE HEALTH CARE GROUP,300000020481583
Portsmouth City Council,PCC,Adult Social Care,Learning Disability Support Adults (18 - 64),Adult Services,Third Party Payments,Other establishments,25-Nov-21,6541165,"2,808.00",SUPPLIER,ASSURE HEALTH CARE GROUP,300000020481583
Portsmouth City Council,PCC,Adult Social Care,Mental Health Support Adults (18 - 64),Adult Services,Third Party Payments,Other establishments,25-Nov-21,6541165,"3,520.59",SUPPLIER,ASSURE HEALTH CARE GROUP,300000020481583
Portsmouth City Council,PCC,Adult Social Care,Mental Health Support Adults (18 - 64),Adult Services,Third Party Payments,Other establishments,25-Nov-21,6541165,"3,637.94",SUPPLIER,ASSURE HEALTH CARE GROUP,300000020481583
Portsmouth City Council,PCC,Adult Social Care,Learning Disability Support Adults (18 - 64),Adult Services,Third Party Payments,Other establishments,25-Nov-21,6541165,"3,742.20",SUPPLIER,ASSURE HEALTH CARE GROUP,300000020481583
Portsmouth City Council,PCC,Adult Social Care,Learning Disability Support Adults (18 - 64),Adult Services,Third Party Payments,Other establishments,25-Nov-21,6541165,"9,880.50",SUPPLIER,ASSURE HEALTH CARE GROUP,300000020481583
Portsmouth City Council,PCC,Adult Social Care,Learning Disability Support Adults (18 - 64),Adult Services,Third Party Payments,Other establishments,12-Nov-21,6538912,"3,738.60",SUPPLIER,AUTISM HAMPSHIRE,300000020477518
Portsmouth City Council,PCC,Adult Social Care,Learning Disability Support Adults (18 - 64),Adult Services,Third Party Payments,Other establishments,12-Nov-21,6538912,"6,248.40",SUPPLIER,AUTISM HAMPSHIRE,300000020477518
Portsmouth City Council,PCC,Adult Social Care,Learning Disability Support Adults (18 - 64),Adult Services,Third Party Payments,Other establishments,12-Nov-21,6538912,"8,974.50",SUPPLIER,AUTISM HAMPSHIRE,300000020477518
Portsmouth City Council,PCC,Adult Social Care,Social Care Activities,Adult Services,Third Party Payments,Other establishments,12-Nov-21,6538912,"15,962.70",SUPPLIER,AUTISM HAMPSHIRE,300000020477518
Portsmouth City Council,PCC,Adult Social Care,Learning Disability Support Adults (18 - 64),Adult Services,Third Party Payments,Other establishments,15-Nov-21,6538966,"1,122.20",SUPPLIER,AUTISM HAMPSHIRE,300000020477518
Portsmouth City Council,PCC,Adult Social Care,Learning Disability Support Adults (18 - 64),Adult Services,Third Party Payments,Other establishments,25-Nov-21,6541171,"3,258.00",SUPPLIER,AUTISM HAMPSHIRE,300000020477518
Portsmouth City Council,PCC,Adult Social Care,Learning Disability Support Adults (18 - 64),Adult Services,Third Party Payments,Other establishments,25-Nov-21,6541171,"3,389.10",SUPPLIER,AUTISM HAMPSHIRE,300000020477518
Portsmouth City Council,PCC,Adult Social Care,Support with Memory and Cognition Older People (85+),Adult Services,Third Party Payments,Other establishments,12-Nov-21,6538898,"-3,321.65",SUPPLIER,BETHESDA HEALTHCARE,300000020478458
Portsmouth City Council,PCC,Adult Social Care,Support with Memory and Cognition Older People (85+),Adult Services,Third Party Payments,Other establishments,12-Nov-21,6538898,"-2,250.15",SUPPLIER,BETHESDA HEALTHCARE,300000020478458
Portsmouth City Council,PCC,Adult Social Care,Physical Support Older People (85+),Adult Services,Third Party Payments,Other establishments,12-Nov-21,6538898,"-2,143.00",SUPPLIER,BETHESDA HEALTHCARE,300000020478458
Portsmouth City Council,PCC,Adult Social Care,Support with Memory and Cognition Older People (85+),Adult Services,Third Party Payments,Other establishments,12-Nov-21,6538898,76.92,SUPPLIER,BETHESDA HEALTHCARE,300000020478458
Portsmouth City Council,PCC,Adult Social Care,Physical Support Older People (85+),Adult Services,Third Party Payments,Other establishments,12-Nov-21,6538898,"1,178.65",SUPPLIER,BETHESDA HEALTHCARE,300000020478458
Portsmouth City Council,PCC,Adult Social Care,Support with Memory and Cognition Older People (85+),Adult Services,Third Party Payments,Other establishments,12-Nov-21,6538898,"1,310.40",SUPPLIER,BETHESDA HEALTHCARE,300000020478458
Portsmouth City Council,PCC,Adult Social Care,Support with Memory and Cognition Older People (85+),Adult Services,Third Party Payments,Other establishments,12-Nov-21,6538898,"1,922.70",SUPPLIER,BETHESDA HEALTHCARE,300000020478458
Portsmouth City Council,PCC,Adult Social Care,Physical Support Older People (85+),Adult Services,Third Party Payments,Other establishments,12-Nov-21,6538898,"2,250.15",SUPPLIER,BETHESDA HEALTHCARE,300000020478458
Portsmouth City Council,PCC,Adult Social Care,Physical Support Older People (85+),Adult Services,Third Party Payments,Other establishments,12-Nov-21,6538898,"2,403.30",SUPPLIER,BETHESDA HEALTHCARE,300000020478458
Portsmouth City Council,PCC,Adult Social Care,Physical Support Older People (85+),Adult Services,Third Party Payments,Other establishments,12-Nov-21,6538898,"2,535.60",SUPPLIER,BETHESDA HEALTHCARE,300000020478458
Portsmouth City Council,PCC,Adult Social Care,Support with Memory and Cognition Older People (85+),Adult Services,Third Party Payments,Other establishments,12-Nov-21,6538898,"2,840.40",SUPPLIER,BETHESDA HEALTHCARE,300000020478458
Portsmouth City Council,PCC,Adult Social Care,Support with Memory and Cognition Older People (85+),Adult Services,Third Party Payments,Other establishments,12-Nov-21,6538898,"3,076.20",SUPPLIER,BETHESDA HEALTHCARE,300000020478458
Portsmouth City Council,PCC,Adult Social Care,Support with Memory and Cognition Older People (85+),Adult Services,Third Party Payments,Other establishments,12-Nov-21,6538898,"3,214.50",SUPPLIER,BETHESDA HEALTHCARE,300000020478458
Portsmouth City Council,PCC,Adult Social Care,Support with Memory and Cognition Older People (85+),Adult Services,Third Party Payments,Other establishments,12-Nov-21,6538898,"3,277.50",SUPPLIER,BETHESDA HEALTHCARE,300000020478458
Portsmouth City Council,PCC,Adult Social Care,Support with Memory and Cognition Older People (85+),Adult Services,Third Party Payments,Other establishments,12-Nov-21,6538898,"3,277.50",SUPPLIER,BETHESDA HEALTHCARE,300000020478458
Portsmouth City Council,PCC,Adult Social Care,Support with Memory and Cognition Older People (85+),Adult Services,Third Party Payments,Other establishments,12-Nov-21,6538898,"3,277.50",SUPPLIER,BETHESDA HEALTHCARE,300000020478458
Portsmouth City Council,PCC,Adult Social Care,Support with Memory and Cognition Older People (85+),Adult Services,Third Party Payments,Other establishments,12-Nov-21,6538898,"3,277.50",SUPPLIER,BETHESDA HEALTHCARE,300000020478458
Portsmouth City Council,PCC,Adult Social Care,Support with Memory and Cognition Older People (85+),Adult Services,Third Party Payments,Other establishments,12-Nov-21,6538898,"3,386.70",SUPPLIER,BETHESDA HEALTHCARE,300000020478458
Portsmouth City Council,PCC,Adult Social Care,Support with Memory and Cognition Older People (85+),Adult Services,Third Party Payments,Other establishments,12-Nov-21,6538898,"3,428.70",SUPPLIER,BETHESDA HEALTHCARE,300000020478458
Portsmouth City Council,PCC,Adult Social Care,Support with Memory and Cognition Older People (85+),Adult Services,Third Party Payments,Other establishments,12-Nov-21,6538898,"3,495.90",SUPPLIER,BETHESDA HEALTHCARE,300000020478458
Portsmouth City Council,PCC,Adult Social Care,Support with Memory and Cognition Older People (85+),Adult Services,Third Party Payments,Other establishments,12-Nov-21,6538898,"3,514.50",SUPPLIER,BETHESDA HEALTHCARE,300000020478458
Portsmouth City Council,PCC,Adult Social Care,Support with Memory and Cognition Older People (85+),Adult Services,Third Party Payments,Other establishments,12-Nov-21,6538877,"3,598.56",SUPPLIER,BETHESDA OAKLANDS CARE HOME,300000020473843
Portsmouth City Council,PCC,Adult Social Care,Support with Memory and Cognition Older People (85+),Adult Services,Third Party Payments,Other establishments,12-Nov-21,6538877,"3,855.60",SUPPLIER,BETHESDA OAKLANDS CARE HOME,300000020473843
Portsmouth City Council,PCC,Adult Social Care,Support with Memory and Cognition Older People (85+),Adult Services,Third Party Payments,Other establishments,12-Nov-21,6538877,"3,984.12",SUPPLIER,BETHESDA OAKLANDS CARE HOME,300000020473843
Portsmouth City Council,PCC,Adult Social Care,Commissioning & service delivery,Adult Services,Third Party Payments,Private contractors,24-Nov-21,6540835,"1,250.00",LIMITED LIABILITY PARTNERSHIP,BEVAN BRITTAN LLP,300000020459782
Portsmouth City Council,PCC,Adult Social Care,Commissioning & service delivery,Adult Services,Third Party Payments,Private contractors,24-Nov-21,6540835,"11,772.50",LIMITED LIABILITY PARTNERSHIP,BEVAN BRITTAN LLP,300000020459782
Portsmouth City Council,PCC,Adult Social Care,Commissioning & service delivery,Adult Services,Third Party Payments,Private contractors,24-Nov-21,6540835,"6,049.50",LIMITED LIABILITY PARTNERSHIP,BEVAN BRITTAN LLP,300000020459782
Portsmouth City Council,PCC,Adult Social Care,Commissioning & service delivery,Adult Services,Third Party Payments,Private contractors,15-Nov-21,6539057,"3,827.00",LIMITED LIABILITY PARTNERSHIP,BEVAN BRITTAN LLP,300000020459782
Portsmouth City Council,PCC,Adult Social Care,Physical Support Older People (85+),Adult Services,Third Party Payments,Other establishments,30-Nov-21,6541790,"2,002.56",SUPPLIER,ABICARE SERVICES LTD,300000020470310
Portsmouth City Council,PCC,Adult Social Care,Physical Support Older People (85+),Adult Services,Third Party Payments,Other establishments,30-Nov-21,6541790,"2,002.56",SUPPLIER,ABICARE SERVICES LTD,300000020470310
Portsmouth City Council,PCC,Children's and Education Services,Early Years,Children's Services and Education,Third Party Payments,Other establishments,12-Nov-21,6538753,728,SUPPLIER,SOUTHSEA NATURE NURSERY,300000020483131
Portsmouth City Council,PCC,Children's and Education Services,Early Years,Children's Services and Education,Third Party Payments,Other establishments,12-Nov-21,6538753,"1,565.20",SUPPLIER,SOUTHSEA NATURE NURSERY,300000020483131
Portsmouth City Council,PCC,Children's and Education Services,Early Years,Children's Services and Education,Third Party Payments,Other establishments,12-Nov-21,6538753,"6,501.60",SUPPLIER,SOUTHSEA NATURE NURSERY,300000020483131
Portsmouth City Council,PCC,Adult Social Care,Learning Disability Support Adults (18 - 64),Adult Services,Premises-Related Expenditure,Water Services,25-Nov-21,6541173,104.85,SUPPLIER,ADVANCED DEMAND SIDE MANAGEMENT LIMITED,300000020478882
Portsmouth City Council,PCC,Children's and Education Services,Safeguarding Children and Young Peoples Services,Children's Services and Education,Third Party Payments,Other establishments,09-Nov-21,6537843,0.05,SUPPLIER,HORIZON CARE AND EDUCATION GROUP LTD,300000020480667
Portsmouth City Council,PCC,Children's and Education Services,Safeguarding Children and Young Peoples Services,Children's Services and Education,Third Party Payments,Other establishments,09-Nov-21,6537843,397.71,SUPPLIER,HORIZON CARE AND EDUCATION GROUP LTD,300000020480667
Portsmouth City Council,PCC,Children's and Education Services,Safeguarding Children and Young Peoples Services,Children's Services and Education,Third Party Payments,Other establishments,09-Nov-21,6537843,497.14,SUPPLIER,HORIZON CARE AND EDUCATION GROUP LTD,300000020480667
Portsmouth City Council,PCC,Children's and Education Services,Safeguarding Children and Young Peoples Services,Children's Services and Education,Third Party Payments,Other establishments,09-Nov-21,6537843,696,SUPPLIER,HORIZON CARE AND EDUCATION GROUP LTD,300000020480667
Portsmouth City Council,PCC,Children's and Education Services,Safeguarding Children and Young Peoples Services,Children's Services and Education,Third Party Payments,Other establishments,09-Nov-21,6537843,696,SUPPLIER,HORIZON CARE AND EDUCATION GROUP LTD,300000020480667
Portsmouth City Council,PCC,Children's and Education Services,Safeguarding Children and Young Peoples Services,Children's Services and Education,Third Party Payments,Other establishments,09-Nov-21,6537843,696,SUPPLIER,HORIZON CARE AND EDUCATION GROUP LTD,300000020480667
Portsmouth City Council,PCC,Children's and Education Services,Children Looked After,Children's Services and Education,Third Party Payments,Other establishments,11-Nov-21,6538587,-36.89,SUPPLIER,CORE ASSETS GROUP,300000020461175
Portsmouth City Council,PCC,Children's and Education Services,Children Looked After,Children's Services and Education,Third Party Payments,Other establishments,11-Nov-21,6538587,119,SUPPLIER,CORE ASSETS GROUP,300000020461175
Portsmouth City Council,PCC,Children's and Education Services,Children Looked After,Children's Services and Education,Third Party Payments,Other establishments,11-Nov-21,6538587,238,SUPPLIER,CORE ASSETS GROUP,300000020461175
Portsmouth City Council,PCC,Children's and Education Services,Children Looked After,Children's Services and Education,Third Party Payments,Other establishments,11-Nov-21,6538587,833,SUPPLIER,CORE ASSETS GROUP,300000020461175
Portsmouth City Council,PCC,Children's and Education Services,Children Looked After,Children's Services and Education,Third Party Payments,Other establishments,11-Nov-21,6538587,833,SUPPLIER,CORE ASSETS GROUP,300000020461175
Portsmouth City Council,PCC,Children's and Education Services,Children Looked After,Children's Services and Education,Third Party Payments,Other establishments,11-Nov-21,6538587,833,SUPPLIER,CORE ASSETS GROUP,300000020461175
Portsmouth City Council,PCC,Children's and Education Services,Children Looked After,Children's Services and Education,Third Party Payments,Other establishments,11-Nov-21,6538587,833,SUPPLIER,CORE ASSETS GROUP,300000020461175
Portsmouth City Council,PCC,Children's and Education Services,Children Looked After,Children's Services and Education,Third Party Payments,Other establishments,11-Nov-21,6538587,205.63,SUPPLIER,CORE ASSETS GROUP,300000020461175
Portsmouth City Council,PCC,Children's and Education Services,Children Looked After,Children's Services and Education,Third Party Payments,Other establishments,11-Nov-21,6538587,411.26,SUPPLIER,CORE ASSETS GROUP,300000020461175
Portsmouth City Council,PCC,Children's and Education Services,Children Looked After,Children's Services and Education,Third Party Payments,Other establishments,11-Nov-21,6538587,"1,439.41",SUPPLIER,CORE ASSETS GROUP,300000020461175
Portsmouth City Council,PCC,Children's and Education Services,Children Looked After,Children's Services and Education,Third Party Payments,Other establishments,11-Nov-21,6538587,"1,439.41",SUPPLIER,CORE ASSETS GROUP,300000020461175
Portsmouth City Council,PCC,Children's and Education Services,Children Looked After,Children's Services and Education,Third Party Payments,Other establishments,11-Nov-21,6538587,"1,439.41",SUPPLIER,CORE ASSETS GROUP,300000020461175
Portsmouth City Council,PCC,Children's and Education Services,Children Looked After,Children's Services and Education,Third Party Payments,Other establishments,11-Nov-21,6538587,"1,439.41",SUPPLIER,CORE ASSETS GROUP,300000020461175
Portsmouth City Council,PCC,Children's and Education Services,Asylum seekers,Children's Services and Education,Third Party Payments,Other establishments,11-Nov-21,6538634,500,SUPPLIER,FAMILY FIRST FOSTERING,300000020483859
Portsmouth City Council,PCC,Children's and Education Services,Asylum seekers,Children's Services and Education,Third Party Payments,Other establishments,11-Nov-21,6538634,625,SUPPLIER,FAMILY FIRST FOSTERING,300000020483859
Portsmouth City Council,PCC,Children's and Education Services,Asylum seekers,Children's Services and Education,Third Party Payments,Other establishments,11-Nov-21,6538634,875,SUPPLIER,FAMILY FIRST FOSTERING,300000020483859
Portsmouth City Council,PCC,Children's and Education Services,Asylum seekers,Children's Services and Education,Third Party Payments,Other establishments,11-Nov-21,6538634,875,SUPPLIER,FAMILY FIRST FOSTERING,300000020483859
Portsmouth City Council,PCC,Children's and Education Services,Asylum seekers,Children's Services and Education,Third Party Payments,Other establishments,11-Nov-21,6538634,875,SUPPLIER,FAMILY FIRST FOSTERING,300000020483859
Portsmouth City Council,PCC,Children's and Education Services,Asylum seekers,Children's Services and Education,Third Party Payments,Other establishments,11-Nov-21,6538634,493,SUPPLIER,FAMILY FIRST FOSTERING,300000020483859
Portsmouth City Council,PCC,Children's and Education Services,Asylum seekers,Children's Services and Education,Third Party Payments,Other establishments,11-Nov-21,6538634,616.25,SUPPLIER,FAMILY FIRST FOSTERING,300000020483859
Portsmouth City Council,PCC,Children's and Education Services,Asylum seekers,Children's Services and Education,Third Party Payments,Other establishments,11-Nov-21,6538634,862.75,SUPPLIER,FAMILY FIRST FOSTERING,300000020483859
Portsmouth City Council,PCC,Children's and Education Services,Asylum seekers,Children's Services and Education,Third Party Payments,Other establishments,11-Nov-21,6538634,862.75,SUPPLIER,FAMILY FIRST FOSTERING,300000020483859
Portsmouth City Council,PCC,Children's and Education Services,Asylum seekers,Children's Services and Education,Third Party Payments,Other establishments,11-Nov-21,6538634,862.75,SUPPLIER,FAMILY FIRST FOSTERING,300000020483859
Portsmouth City Council,PCC,Children's and Education Services,Safeguarding Children and Young Peoples Services,Children's Services and Education,Third Party Payments,Other establishments,11-Nov-21,6538634,405.3,SUPPLIER,FAMILY FIRST FOSTERING,300000020483859
Portsmouth City Council,PCC,Children's and Education Services,Safeguarding Children and Young Peoples Services,Children's Services and Education,Third Party Payments,Other establishments,12-Nov-21,6538749,35.71,PRIVATE PROVIDER,Classified as 'personal data' (under the Data Protection Act 2018),300000169652808
Portsmouth City Council,PCC,Children's and Education Services,Safeguarding Children and Young Peoples Services,Children's Services and Education,Third Party Payments,Other establishments,12-Nov-21,6538749,214.29,PRIVATE PROVIDER,Classified as 'personal data' (under the Data Protection Act 2018),300000169652808
Portsmouth City Council,PCC,Children's and Education Services,Safeguarding Children and Young Peoples Services,Children's Services and Education,Third Party Payments,Other establishments,12-Nov-21,6538749,250,PRIVATE PROVIDER,Classified as 'personal data' (under the Data Protection Act 2018),300000169652808
Portsmouth City Council,PCC,Children's and Education Services,Safeguarding Children and Young Peoples Services,Children's Services and Education,Third Party Payments,Other establishments,12-Nov-21,6538749,250,PRIVATE PROVIDER,Classified as 'personal data' (under the Data Protection Act 2018),300000169652808
Portsmouth City Council,PCC,Children's and Education Services,Safeguarding Children and Young Peoples Services,Children's Services and Education,Third Party Payments,Other establishments,12-Nov-21,6538749,250,PRIVATE PROVIDER,Classified as 'personal data' (under the Data Protection Act 2018),300000169652808
Portsmouth City Council,PCC,Children's and Education Services,Safeguarding Children and Young Peoples Services,Children's Services and Education,Third Party Payments,Other establishments,12-Nov-21,6538749,35.71,PRIVATE PROVIDER,Classified as 'personal data' (under the Data Protection Act 2018),300000169652808
Portsmouth City Council,PCC,Children's and Education Services,Safeguarding Children and Young Peoples Services,Children's Services and Education,Third Party Payments,Other establishments,12-Nov-21,6538749,214.29,PRIVATE PROVIDER,Classified as 'personal data' (under the Data Protection Act 2018),300000169652808
Portsmouth City Council,PCC,Children's and Education Services,Safeguarding Children and Young Peoples Services,Children's Services and Education,Third Party Payments,Other establishments,12-Nov-21,6538749,250,PRIVATE PROVIDER,Classified as 'personal data' (under the Data Protection Act 2018),300000169652808
Portsmouth City Council,PCC,Children's and Education Services,Safeguarding Children and Young Peoples Services,Children's Services and Education,Third Party Payments,Other establishments,12-Nov-21,6538749,250,PRIVATE PROVIDER,Classified as 'personal data' (under the Data Protection Act 2018),300000169652808
Portsmouth City Council,PCC,Children's and Education Services,Safeguarding Children and Young Peoples Services,Children's Services and Education,Third Party Payments,Other establishments,12-Nov-21,6538749,250,PRIVATE PROVIDER,Classified as 'personal data' (under the Data Protection Act 2018),300000169652808
Portsmouth City Council,PCC,Children's and Education Services,Children Looked After,Children's Services and Education,Third Party Payments,Other establishments,12-Nov-21,6538861,0.04,SUPPLIER,BLUE SKY FOSTERING,300000020464936
Portsmouth City Council,PCC,Children's and Education Services,Children Looked After,Children's Services and Education,Third Party Payments,Other establishments,12-Nov-21,6538861,110.43,SUPPLIER,BLUE SKY FOSTERING,300000020464936
Portsmouth City Council,PCC,Children's and Education Services,Children Looked After,Children's Services and Education,Third Party Payments,Other establishments,12-Nov-21,6538861,220.86,SUPPLIER,BLUE SKY FOSTERING,300000020464936
Portsmouth City Council,PCC,Children's and Education Services,Children Looked After,Children's Services and Education,Third Party Payments,Other establishments,12-Nov-21,6538861,773,SUPPLIER,BLUE SKY FOSTERING,300000020464936
Portsmouth City Council,PCC,Children's and Education Services,Children Looked After,Children's Services and Education,Third Party Payments,Other establishments,12-Nov-21,6538861,773,SUPPLIER,BLUE SKY FOSTERING,300000020464936
Portsmouth City Council,PCC,Children's and Education Services,Children Looked After,Children's Services and Education,Third Party Payments,Other establishments,12-Nov-21,6538861,773,SUPPLIER,BLUE SKY FOSTERING,300000020464936
Portsmouth City Council,PCC,Children's and Education Services,Children Looked After,Children's Services and Education,Third Party Payments,Other establishments,12-Nov-21,6538861,773,SUPPLIER,BLUE SKY FOSTERING,300000020464936
Portsmouth City Council,PCC,Children's and Education Services,Children Looked After,Children's Services and Education,Third Party Payments,Other establishments,12-Nov-21,6538861,-0.27,SUPPLIER,BLUE SKY FOSTERING,300000020464936
Portsmouth City Council,PCC,Children's and Education Services,Children Looked After,Children's Services and Education,Third Party Payments,Other establishments,12-Nov-21,6538861,110.43,SUPPLIER,BLUE SKY FOSTERING,300000020464936
Portsmouth City Council,PCC,Children's and Education Services,Children Looked After,Children's Services and Education,Third Party Payments,Other establishments,12-Nov-21,6538861,220.86,SUPPLIER,BLUE SKY FOSTERING,300000020464936
Portsmouth City Council,PCC,Children's and Education Services,Children Looked After,Children's Services and Education,Third Party Payments,Other establishments,12-Nov-21,6538861,773,SUPPLIER,BLUE SKY FOSTERING,300000020464936
Portsmouth City Council,PCC,Children's and Education Services,Children Looked After,Children's Services and Education,Third Party Payments,Other establishments,12-Nov-21,6538861,773,SUPPLIER,BLUE SKY FOSTERING,300000020464936
Portsmouth City Council,PCC,Children's and Education Services,Children Looked After,Children's Services and Education,Third Party Payments,Other establishments,12-Nov-21,6538861,773,SUPPLIER,BLUE SKY FOSTERING,300000020464936
Portsmouth City Council,PCC,Children's and Education Services,Children Looked After,Children's Services and Education,Third Party Payments,Other establishments,12-Nov-21,6538861,773,SUPPLIER,BLUE SKY FOSTERING,300000020464936
Portsmouth City Council,PCC,Children's and Education Services,Safeguarding Children and Young Peoples Services,Children's Services and Education,Third Party Payments,Other establishments,09-Nov-21,6537836,-10,SUPPLIER,PATHWAYS TO INDEPENDENCE HOUSING (UK) LIMITED,300000020480095
Portsmouth City Council,PCC,Children's and Education Services,Safeguarding Children and Young Peoples Services,Children's Services and Education,Third Party Payments,Other establishments,09-Nov-21,6537836,-10,SUPPLIER,PATHWAYS TO INDEPENDENCE HOUSING (UK) LIMITED,300000020480095
Portsmouth City Council,PCC,Children's and Education Services,Safeguarding Children and Young Peoples Services,Children's Services and Education,Third Party Payments,Other establishments,09-Nov-21,6537836,-10,SUPPLIER,PATHWAYS TO INDEPENDENCE HOUSING (UK) LIMITED,300000020480095
Portsmouth City Council,PCC,Children's and Education Services,Safeguarding Children and Young Peoples Services,Children's Services and Education,Third Party Payments,Other establishments,09-Nov-21,6537836,-7.14,SUPPLIER,PATHWAYS TO INDEPENDENCE HOUSING (UK) LIMITED,300000020480095
Portsmouth City Council,PCC,Children's and Education Services,Safeguarding Children and Young Peoples Services,Children's Services and Education,Third Party Payments,Other establishments,09-Nov-21,6537836,-5.71,SUPPLIER,PATHWAYS TO INDEPENDENCE HOUSING (UK) LIMITED,300000020480095
Portsmouth City Council,PCC,Children's and Education Services,Safeguarding Children and Young Peoples Services,Children's Services and Education,Third Party Payments,Other establishments,09-Nov-21,6537836,-0.58,SUPPLIER,PATHWAYS TO INDEPENDENCE HOUSING (UK) LIMITED,300000020480095
Portsmouth City Council,PCC,Children's and Education Services,Safeguarding Children and Young Peoples Services,Children's Services and Education,Third Party Payments,Other establishments,09-Nov-21,6537836,60,SUPPLIER,PATHWAYS TO INDEPENDENCE HOUSING (UK) LIMITED,300000020480095
Portsmouth City Council,PCC,Children's and Education Services,Safeguarding Children and Young Peoples Services,Children's Services and Education,Third Party Payments,Other establishments,09-Nov-21,6537836,75,SUPPLIER,PATHWAYS TO INDEPENDENCE HOUSING (UK) LIMITED,300000020480095
Portsmouth City Council,PCC,Children's and Education Services,Safeguarding Children and Young Peoples Services,Children's Services and Education,Third Party Payments,Other establishments,09-Nov-21,6537836,105,SUPPLIER,PATHWAYS TO INDEPENDENCE HOUSING (UK) LIMITED,300000020480095
Portsmouth City Council,PCC,Children's and Education Services,Safeguarding Children and Young Peoples Services,Children's Services and Education,Third Party Payments,Other establishments,09-Nov-21,6537836,105,SUPPLIER,PATHWAYS TO INDEPENDENCE HOUSING (UK) LIMITED,300000020480095
Portsmouth City Council,PCC,Children's and Education Services,Safeguarding Children and Young Peoples Services,Children's Services and Education,Third Party Payments,Other establishments,09-Nov-21,6537836,105,SUPPLIER,PATHWAYS TO INDEPENDENCE HOUSING (UK) LIMITED,300000020480095
Portsmouth City Council,PCC,Children's and Education Services,Safeguarding Children and Young Peoples Services,Children's Services and Education,Third Party Payments,Other establishments,09-Nov-21,6537836,238.86,SUPPLIER,PATHWAYS TO INDEPENDENCE HOUSING (UK) LIMITED,300000020480095
Portsmouth City Council,PCC,Children's and Education Services,Safeguarding Children and Young Peoples Services,Children's Services and Education,Third Party Payments,Other establishments,09-Nov-21,6537836,298.57,SUPPLIER,PATHWAYS TO INDEPENDENCE HOUSING (UK) LIMITED,300000020480095
Portsmouth City Council,PCC,Children's and Education Services,Safeguarding Children and Young Peoples Services,Children's Services and Education,Third Party Payments,Other establishments,09-Nov-21,6537836,418,SUPPLIER,PATHWAYS TO INDEPENDENCE HOUSING (UK) LIMITED,300000020480095
Portsmouth City Council,PCC,Children's and Education Services,Safeguarding Children and Young Peoples Services,Children's Services and Education,Third Party Payments,Other establishments,09-Nov-21,6537836,418,SUPPLIER,PATHWAYS TO INDEPENDENCE HOUSING (UK) LIMITED,300000020480095
Portsmouth City Council,PCC,Children's and Education Services,Safeguarding Children and Young Peoples Services,Children's Services and Education,Third Party Payments,Other establishments,09-Nov-21,6537836,418,SUPPLIER,PATHWAYS TO INDEPENDENCE HOUSING (UK) LIMITED,300000020480095
Portsmouth City Council,PCC,Children's and Education Services,Safeguarding Children and Young Peoples Services,Children's Services and Education,Third Party Payments,Other establishments,09-Nov-21,6537836,-300,SUPPLIER,PATHWAYS TO INDEPENDENCE HOUSING (UK) LIMITED,300000020480095
Portsmouth City Council,PCC,Children's and Education Services,Safeguarding Children and Young Peoples Services,Children's Services and Education,Third Party Payments,Other establishments,09-Nov-21,6537836,-10,SUPPLIER,PATHWAYS TO INDEPENDENCE HOUSING (UK) LIMITED,300000020480095
Portsmouth City Council,PCC,Children's and Education Services,Safeguarding Children and Young Peoples Services,Children's Services and Education,Third Party Payments,Other establishments,09-Nov-21,6537836,-10,SUPPLIER,PATHWAYS TO INDEPENDENCE HOUSING (UK) LIMITED,300000020480095
Portsmouth City Council,PCC,Children's and Education Services,Safeguarding Children and Young Peoples Services,Children's Services and Education,Third Party Payments,Other establishments,09-Nov-21,6537836,-10,SUPPLIER,PATHWAYS TO INDEPENDENCE HOUSING (UK) LIMITED,300000020480095
Portsmouth City Council,PCC,Children's and Education Services,Safeguarding Children and Young Peoples Services,Children's Services and Education,Third Party Payments,Other establishments,09-Nov-21,6537836,-7.14,SUPPLIER,PATHWAYS TO INDEPENDENCE HOUSING (UK) LIMITED,300000020480095
Portsmouth City Council,PCC,Children's and Education Services,Safeguarding Children and Young Peoples Services,Children's Services and Education,Third Party Payments,Other establishments,09-Nov-21,6537836,-5.71,SUPPLIER,PATHWAYS TO INDEPENDENCE HOUSING (UK) LIMITED,300000020480095
Portsmouth City Council,PCC,Children's and Education Services,Safeguarding Children and Young Peoples Services,Children's Services and Education,Third Party Payments,Other establishments,09-Nov-21,6537836,-0.18,SUPPLIER,PATHWAYS TO INDEPENDENCE HOUSING (UK) LIMITED,300000020480095
Portsmouth City Council,PCC,Children's and Education Services,Safeguarding Children and Young Peoples Services,Children's Services and Education,Third Party Payments,Other establishments,09-Nov-21,6537836,100,SUPPLIER,PATHWAYS TO INDEPENDENCE HOUSING (UK) LIMITED,300000020480095
Portsmouth City Council,PCC,Children's and Education Services,Safeguarding Children and Young Peoples Services,Children's Services and Education,Third Party Payments,Other establishments,09-Nov-21,6537836,125,SUPPLIER,PATHWAYS TO INDEPENDENCE HOUSING (UK) LIMITED,300000020480095
Portsmouth City Council,PCC,Children's and Education Services,Safeguarding Children and Young Peoples Services,Children's Services and Education,Third Party Payments,Other establishments,09-Nov-21,6537836,175,SUPPLIER,PATHWAYS TO INDEPENDENCE HOUSING (UK) LIMITED,300000020480095
Portsmouth City Council,PCC,Children's and Education Services,Safeguarding Children and Young Peoples Services,Children's Services and Education,Third Party Payments,Other establishments,09-Nov-21,6537836,175,SUPPLIER,PATHWAYS TO INDEPENDENCE HOUSING (UK) LIMITED,300000020480095
Portsmouth City Council,PCC,Children's and Education Services,Safeguarding Children and Young Peoples Services,Children's Services and Education,Third Party Payments,Other establishments,09-Nov-21,6537836,175,SUPPLIER,PATHWAYS TO INDEPENDENCE HOUSING (UK) LIMITED,300000020480095
Portsmouth City Council,PCC,Children's and Education Services,Safeguarding Children and Young Peoples Services,Children's Services and Education,Third Party Payments,Other establishments,09-Nov-21,6537836,238.86,SUPPLIER,PATHWAYS TO INDEPENDENCE HOUSING (UK) LIMITED,300000020480095
Portsmouth City Council,PCC,Children's and Education Services,Safeguarding Children and Young Peoples Services,Children's Services and Education,Third Party Payments,Other establishments,09-Nov-21,6537836,298.57,SUPPLIER,PATHWAYS TO INDEPENDENCE HOUSING (UK) LIMITED,300000020480095
Portsmouth City Council,PCC,Children's and Education Services,Safeguarding Children and Young Peoples Services,Children's Services and Education,Third Party Payments,Other establishments,09-Nov-21,6537836,418,SUPPLIER,PATHWAYS TO INDEPENDENCE HOUSING (UK) LIMITED,300000020480095
Portsmouth City Council,PCC,Children's and Education Services,Safeguarding Children and Young Peoples Services,Children's Services and Education,Third Party Payments,Other establishments,09-Nov-21,6537836,418,SUPPLIER,PATHWAYS TO INDEPENDENCE HOUSING (UK) LIMITED,300000020480095
Portsmouth City Council,PCC,Children's and Education Services,Safeguarding Children and Young Peoples Services,Children's Services and Education,Third Party Payments,Other establishments,09-Nov-21,6537836,418,SUPPLIER,PATHWAYS TO INDEPENDENCE HOUSING (UK) LIMITED,300000020480095
Portsmouth City Council,PCC,Children's and Education Services,Safeguarding Children and Young Peoples Services,Children's Services and Education,Third Party Payments,Other establishments,09-Nov-21,6537836,-667.53,SUPPLIER,PATHWAYS TO INDEPENDENCE HOUSING (UK) LIMITED,300000020480095
Portsmouth City Council,PCC,Children's and Education Services,Safeguarding Children and Young Peoples Services,Children's Services and Education,Third Party Payments,Other establishments,09-Nov-21,6537836,-128.57,SUPPLIER,PATHWAYS TO INDEPENDENCE HOUSING (UK) LIMITED,300000020480095
Portsmouth City Council,PCC,Children's and Education Services,Safeguarding Children and Young Peoples Services,Children's Services and Education,Third Party Payments,Other establishments,09-Nov-21,6537836,77.14,SUPPLIER,PATHWAYS TO INDEPENDENCE HOUSING (UK) LIMITED,300000020480095
Portsmouth City Council,PCC,Children's and Education Services,Safeguarding Children and Young Peoples Services,Children's Services and Education,Third Party Payments,Other establishments,09-Nov-21,6537836,96.43,SUPPLIER,PATHWAYS TO INDEPENDENCE HOUSING (UK) LIMITED,300000020480095
Portsmouth City Council,PCC,Children's and Education Services,Safeguarding Children and Young Peoples Services,Children's Services and Education,Third Party Payments,Other establishments,09-Nov-21,6537836,123.79,SUPPLIER,PATHWAYS TO INDEPENDENCE HOUSING (UK) LIMITED,300000020480095
Portsmouth City Council,PCC,Children's and Education Services,Safeguarding Children and Young Peoples Services,Children's Services and Education,Third Party Payments,Other establishments,09-Nov-21,6537836,135,SUPPLIER,PATHWAYS TO INDEPENDENCE HOUSING (UK) LIMITED,300000020480095
Portsmouth City Council,PCC,Children's and Education Services,Safeguarding Children and Young Peoples Services,Children's Services and Education,Third Party Payments,Other establishments,09-Nov-21,6537836,135,SUPPLIER,PATHWAYS TO INDEPENDENCE HOUSING (UK) LIMITED,300000020480095
Portsmouth City Council,PCC,Children's and Education Services,Safeguarding Children and Young Peoples Services,Children's Services and Education,Third Party Payments,Other establishments,09-Nov-21,6537836,135,SUPPLIER,PATHWAYS TO INDEPENDENCE HOUSING (UK) LIMITED,300000020480095
Portsmouth City Council,PCC,Children's and Education Services,Safeguarding Children and Young Peoples Services,Children's Services and Education,Third Party Payments,Other establishments,09-Nov-21,6537836,154.74,SUPPLIER,PATHWAYS TO INDEPENDENCE HOUSING (UK) LIMITED,300000020480095
Portsmouth City Council,PCC,Children's and Education Services,Safeguarding Children and Young Peoples Services,Children's Services and Education,Third Party Payments,Other establishments,09-Nov-21,6537836,216.63,SUPPLIER,PATHWAYS TO INDEPENDENCE HOUSING (UK) LIMITED,300000020480095
Portsmouth City Council,PCC,Children's and Education Services,Safeguarding Children and Young Peoples Services,Children's Services and Education,Third Party Payments,Other establishments,09-Nov-21,6537836,216.63,SUPPLIER,PATHWAYS TO INDEPENDENCE HOUSING (UK) LIMITED,300000020480095
Portsmouth City Council,PCC,Children's and Education Services,Safeguarding Children and Young Peoples Services,Children's Services and Education,Third Party Payments,Other establishments,09-Nov-21,6537836,216.63,SUPPLIER,PATHWAYS TO INDEPENDENCE HOUSING (UK) LIMITED,300000020480095
Portsmouth City Council,PCC,Children's and Education Services,Asylum seekers,Children's Services and Education,Third Party Payments,Other establishments,09-Nov-21,6537836,-85.71,SUPPLIER,PATHWAYS TO INDEPENDENCE HOUSING (UK) LIMITED,300000020480095
Portsmouth City Council,PCC,Children's and Education Services,Asylum seekers,Children's Services and Education,Third Party Payments,Other establishments,09-Nov-21,6537836,-10,SUPPLIER,PATHWAYS TO INDEPENDENCE HOUSING (UK) LIMITED,300000020480095
Portsmouth City Council,PCC,Children's and Education Services,Asylum seekers,Children's Services and Education,Third Party Payments,Other establishments,09-Nov-21,6537836,-10,SUPPLIER,PATHWAYS TO INDEPENDENCE HOUSING (UK) LIMITED,300000020480095
Portsmouth City Council,PCC,Children's and Education Services,Asylum seekers,Children's Services and Education,Third Party Payments,Other establishments,09-Nov-21,6537836,-10,SUPPLIER,PATHWAYS TO INDEPENDENCE HOUSING (UK) LIMITED,300000020480095
Portsmouth City Council,PCC,Children's and Education Services,Asylum seekers,Children's Services and Education,Third Party Payments,Other establishments,09-Nov-21,6537836,-7.14,SUPPLIER,PATHWAYS TO INDEPENDENCE HOUSING (UK) LIMITED,300000020480095
Portsmouth City Council,PCC,Children's and Education Services,Asylum seekers,Children's Services and Education,Third Party Payments,Other establishments,09-Nov-21,6537836,-5.71,SUPPLIER,PATHWAYS TO INDEPENDENCE HOUSING (UK) LIMITED,300000020480095
Portsmouth City Council,PCC,Children's and Education Services,Asylum seekers,Children's Services and Education,Third Party Payments,Other establishments,09-Nov-21,6537836,-0.19,SUPPLIER,PATHWAYS TO INDEPENDENCE HOUSING (UK) LIMITED,300000020480095
Portsmouth City Council,PCC,Children's and Education Services,Asylum seekers,Children's Services and Education,Third Party Payments,Other establishments,09-Nov-21,6537836,71.43,SUPPLIER,PATHWAYS TO INDEPENDENCE HOUSING (UK) LIMITED,300000020480095
Portsmouth City Council,PCC,Children's and Education Services,Asylum seekers,Children's Services and Education,Third Party Payments,Other establishments,09-Nov-21,6537836,89.29,SUPPLIER,PATHWAYS TO INDEPENDENCE HOUSING (UK) LIMITED,300000020480095
Portsmouth City Council,PCC,Children's and Education Services,Asylum seekers,Children's Services and Education,Third Party Payments,Other establishments,09-Nov-21,6537836,125,SUPPLIER,PATHWAYS TO INDEPENDENCE HOUSING (UK) LIMITED,300000020480095
Portsmouth City Council,PCC,Children's and Education Services,Asylum seekers,Children's Services and Education,Third Party Payments,Other establishments,09-Nov-21,6537836,125,SUPPLIER,PATHWAYS TO INDEPENDENCE HOUSING (UK) LIMITED,300000020480095
Portsmouth City Council,PCC,Children's and Education Services,Asylum seekers,Children's Services and Education,Third Party Payments,Other establishments,09-Nov-21,6537836,125,SUPPLIER,PATHWAYS TO INDEPENDENCE HOUSING (UK) LIMITED,300000020480095
Portsmouth City Council,PCC,Children's and Education Services,Asylum seekers,Children's Services and Education,Third Party Payments,Other establishments,09-Nov-21,6537836,238.86,SUPPLIER,PATHWAYS TO INDEPENDENCE HOUSING (UK) LIMITED,300000020480095
Portsmouth City Council,PCC,Children's and Education Services,Asylum seekers,Children's Services and Education,Third Party Payments,Other establishments,09-Nov-21,6537836,298.57,SUPPLIER,PATHWAYS TO INDEPENDENCE HOUSING (UK) LIMITED,300000020480095
Portsmouth City Council,PCC,Children's and Education Services,Asylum seekers,Children's Services and Education,Third Party Payments,Other establishments,09-Nov-21,6537836,418,SUPPLIER,PATHWAYS TO INDEPENDENCE HOUSING (UK) LIMITED,300000020480095
Portsmouth City Council,PCC,Children's and Education Services,Asylum seekers,Children's Services and Education,Third Party Payments,Other establishments,09-Nov-21,6537836,418,SUPPLIER,PATHWAYS TO INDEPENDENCE HOUSING (UK) LIMITED,300000020480095
Portsmouth City Council,PCC,Children's and Education Services,Asylum seekers,Children's Services and Education,Third Party Payments,Other establishments,09-Nov-21,6537836,418,SUPPLIER,PATHWAYS TO INDEPENDENCE HOUSING (UK) LIMITED,300000020480095
Portsmouth City Council,PCC,Children's and Education Services,Safeguarding Children and Young Peoples Services,Children's Services and Education,Third Party Payments,Other establishments,15-Nov-21,6538973,-10,SUPPLIER,SILVER BIRCH CARE LIMITED,300000020475620
Portsmouth City Council,PCC,Children's and Education Services,Safeguarding Children and Young Peoples Services,Children's Services and Education,Third Party Payments,Other establishments,15-Nov-21,6538973,-10,SUPPLIER,SILVER BIRCH CARE LIMITED,300000020475620
Portsmouth City Council,PCC,Children's and Education Services,Safeguarding Children and Young Peoples Services,Children's Services and Education,Third Party Payments,Other establishments,15-Nov-21,6538973,-10,SUPPLIER,SILVER BIRCH CARE LIMITED,300000020475620
Portsmouth City Council,PCC,Children's and Education Services,Safeguarding Children and Young Peoples Services,Children's Services and Education,Third Party Payments,Other establishments,15-Nov-21,6538973,-10,SUPPLIER,SILVER BIRCH CARE LIMITED,300000020475620
Portsmouth City Council,PCC,Children's and Education Services,Safeguarding Children and Young Peoples Services,Children's Services and Education,Third Party Payments,Other establishments,15-Nov-21,6538973,-2.86,SUPPLIER,SILVER BIRCH CARE LIMITED,300000020475620
Portsmouth City Council,PCC,Children's and Education Services,Safeguarding Children and Young Peoples Services,Children's Services and Education,Third Party Payments,Other establishments,15-Nov-21,6538973,-2.75,SUPPLIER,SILVER BIRCH CARE LIMITED,300000020475620
Portsmouth City Council,PCC,Children's and Education Services,Safeguarding Children and Young Peoples Services,Children's Services and Education,Third Party Payments,Other establishments,15-Nov-21,6538973,-1.43,SUPPLIER,SILVER BIRCH CARE LIMITED,300000020475620
Portsmouth City Council,PCC,Children's and Education Services,Safeguarding Children and Young Peoples Services,Children's Services and Education,Third Party Payments,Other establishments,15-Nov-21,6538973,8.27,SUPPLIER,SILVER BIRCH CARE LIMITED,300000020475620
Portsmouth City Council,PCC,Children's and Education Services,Safeguarding Children and Young Peoples Services,Children's Services and Education,Third Party Payments,Other establishments,15-Nov-21,6538973,16.54,SUPPLIER,SILVER BIRCH CARE LIMITED,300000020475620
Portsmouth City Council,PCC,Children's and Education Services,Safeguarding Children and Young Peoples Services,Children's Services and Education,Third Party Payments,Other establishments,15-Nov-21,6538973,57.9,SUPPLIER,SILVER BIRCH CARE LIMITED,300000020475620
Portsmouth City Council,PCC,Children's and Education Services,Safeguarding Children and Young Peoples Services,Children's Services and Education,Third Party Payments,Other establishments,15-Nov-21,6538973,57.9,SUPPLIER,SILVER BIRCH CARE LIMITED,300000020475620
Portsmouth City Council,PCC,Children's and Education Services,Safeguarding Children and Young Peoples Services,Children's Services and Education,Third Party Payments,Other establishments,15-Nov-21,6538973,57.9,SUPPLIER,SILVER BIRCH CARE LIMITED,300000020475620
Portsmouth City Council,PCC,Children's and Education Services,Safeguarding Children and Young Peoples Services,Children's Services and Education,Third Party Payments,Other establishments,15-Nov-21,6538973,57.9,SUPPLIER,SILVER BIRCH CARE LIMITED,300000020475620
Portsmouth City Council,PCC,Children's and Education Services,Safeguarding Children and Young Peoples Services,Children's Services and Education,Third Party Payments,Other establishments,15-Nov-21,6538973,125,SUPPLIER,SILVER BIRCH CARE LIMITED,300000020475620
Portsmouth City Council,PCC,Children's and Education Services,Safeguarding Children and Young Peoples Services,Children's Services and Education,Third Party Payments,Other establishments,15-Nov-21,6538973,250,SUPPLIER,SILVER BIRCH CARE LIMITED,300000020475620
Portsmouth City Council,PCC,Children's and Education Services,Safeguarding Children and Young Peoples Services,Children's Services and Education,Third Party Payments,Other establishments,15-Nov-21,6538973,702.4,SUPPLIER,SILVER BIRCH CARE LIMITED,300000020475620
Portsmouth City Council,PCC,Children's and Education Services,Safeguarding Children and Young Peoples Services,Children's Services and Education,Third Party Payments,Other establishments,15-Nov-21,6538973,875,SUPPLIER,SILVER BIRCH CARE LIMITED,300000020475620
Portsmouth City Council,PCC,Children's and Education Services,Safeguarding Children and Young Peoples Services,Children's Services and Education,Third Party Payments,Other establishments,15-Nov-21,6538973,875,SUPPLIER,SILVER BIRCH CARE LIMITED,300000020475620
Portsmouth City Council,PCC,Children's and Education Services,Safeguarding Children and Young Peoples Services,Children's Services and Education,Third Party Payments,Other establishments,15-Nov-21,6538973,875,SUPPLIER,SILVER BIRCH CARE LIMITED,300000020475620
Portsmouth City Council,PCC,Children's and Education Services,Safeguarding Children and Young Peoples Services,Children's Services and Education,Third Party Payments,Other establishments,15-Nov-21,6538973,875,SUPPLIER,SILVER BIRCH CARE LIMITED,300000020475620
Portsmouth City Council,PCC,Children's and Education Services,Safeguarding Children and Young Peoples Services,Children's Services and Education,Third Party Payments,Other establishments,15-Nov-21,6538973,"1,404.80",SUPPLIER,SILVER BIRCH CARE LIMITED,300000020475620
Portsmouth City Council,PCC,Children's and Education Services,Safeguarding Children and Young Peoples Services,Children's Services and Education,Third Party Payments,Other establishments,15-Nov-21,6538973,"4,916.80",SUPPLIER,SILVER BIRCH CARE LIMITED,300000020475620
Portsmouth City Council,PCC,Children's and Education Services,Safeguarding Children and Young Peoples Services,Children's Services and Education,Third Party Payments,Other establishments,15-Nov-21,6538973,"4,916.80",SUPPLIER,SILVER BIRCH CARE LIMITED,300000020475620
Portsmouth City Council,PCC,Children's and Education Services,Safeguarding Children and Young Peoples Services,Children's Services and Education,Third Party Payments,Other establishments,15-Nov-21,6538973,"4,916.80",SUPPLIER,SILVER BIRCH CARE LIMITED,300000020475620
Portsmouth City Council,PCC,Children's and Education Services,Safeguarding Children and Young Peoples Services,Children's Services and Education,Third Party Payments,Other establishments,15-Nov-21,6538973,"4,916.80",SUPPLIER,SILVER BIRCH CARE LIMITED,300000020475620
Portsmouth City Council,PCC,Children's and Education Services,Safeguarding Children and Young Peoples Services,Children's Services and Education,Third Party Payments,Other establishments,15-Nov-21,6538973,-10,SUPPLIER,SILVER BIRCH CARE LIMITED,300000020475620
Portsmouth City Council,PCC,Children's and Education Services,Safeguarding Children and Young Peoples Services,Children's Services and Education,Third Party Payments,Other establishments,15-Nov-21,6538973,-10,SUPPLIER,SILVER BIRCH CARE LIMITED,300000020475620
Portsmouth City Council,PCC,Children's and Education Services,Safeguarding Children and Young Peoples Services,Children's Services and Education,Third Party Payments,Other establishments,15-Nov-21,6538973,-10,SUPPLIER,SILVER BIRCH CARE LIMITED,300000020475620
Portsmouth City Council,PCC,Children's and Education Services,Safeguarding Children and Young Peoples Services,Children's Services and Education,Third Party Payments,Other establishments,15-Nov-21,6538973,-10,SUPPLIER,SILVER BIRCH CARE LIMITED,300000020475620
Portsmouth City Council,PCC,Children's and Education Services,Safeguarding Children and Young Peoples Services,Children's Services and Education,Third Party Payments,Other establishments,15-Nov-21,6538973,-2.86,SUPPLIER,SILVER BIRCH CARE LIMITED,300000020475620
